{"text_format":"1","workbook":"xlsx","n_sheets":33,"sheets":["TOP","11DG100C","13LG100C","10DG80C","10LG80C","9DG60HC","9LG60HC","7DGS60F","7LGS60F","7DGD60C","9LGD60C ","4DG40F","5LG40F","11DG100E","13LG100E","8DG60HE","8LG60HE","6DGE17S60E","7LGE17S60E ","5DGE17S50C","5LGE17S40C","7DGE17DS","7LGE17DS","6DHE17S60C","7LHE17S60C","4DHE17S40C","4LHE17S40C","7LE11B","5LE11D","14LW150C","7DW100E","11LW100C","7LW75C"],"not_rendered":{"charts":32,"images":66,"macros":1,"external_links":0,"defined_names":36,"comments":0,"pivot_tables":0},"unopened":[],"bounds":{"document_bytes":16777216,"sheet_cells":100000,"rows_first":2000,"rows_last":500,"rows_between":2000,"halvings":0,"cell_chars":16384,"cell_head_chars":4096},"cells_cut":0,"cells_raw":0,"read":"whole","date_system":"1900"}

{"sheet":"TOP","index":0,"n_rows":61,"n_cols":2,"rows_kept":61,"cut":false,"hidden":false,"merged":[]}
[]
[]
[]
[]
[]
[]
[]
[]
[]
[]
[]
[]
[]
[]
[]
[]
[]
[]
[]
[]
[]
[]
[]
[]
[]
[]
[]
[]
[]
[]
[]
[]
[]
[]
[]
[]
[]
[]
[]
[]
[]
[]
[]
[]
[]
[]
[]
[]
[]
[]
[]
[]
[]
[]
[]
[]
[]
[]
[]
[]
[null,"2017年 3月版"]

{"sheet":"11DG100C","index":1,"n_rows":64,"n_cols":20,"rows_kept":64,"cut":false,"hidden":false,"merged":[[22,9,22,10],[15,11,15,21],[14,6,14,10],[15,6,15,10],[16,6,16,10],[14,11,14,21],[18,6,18,10],[51,8,51,10],[35,16,35,20],[33,10,33,12],[35,10,35,12],[31,16,31,20],[37,16,37,20],[47,19,47,20],[49,8,49,10],[47,8,47,10],[44,8,44,10],[39,10,39,12],[4,11,4,21],[42,19,42,20],[44,19,44,20],[26,6,26,21],[37,10,37,12],[4,6,12,10],[12,11,12,20],[17,6,17,10],[13,6,13,10],[29,1,29,21],[33,17,33,18],[39,16,39,18],[31,10,31,12],[23,6,23,10],[24,6,24,10],[24,11,24,21],[25,6,25,21],[47,2,47,6],[44,2,44,6],[13,11,13,21],[17,11,17,21],[16,11,16,21],[23,11,23,21],[18,11,18,21],[22,11,22,21],[21,11,21,21],[20,11,20,21],[19,11,19,21],[19,6,19,10],[20,6,20,10],[21,6,22,8],[21,9,21,10]]}
[]
[]
[]
[]
[null,null,null,null,null,null,"形式",null,null,null,null,"LDA11D-G/100C"]
[]
[]
[]
[]
[]
[]
[]
[null,null,null,null,null,null,null,null,null,null,null,"オープン価格★　屋内用"]
[null,null,null,null,null,null," 光の広がり",null,null,null,null,"広配光タイプ"]
[null,null,null,null,null,null," 光色",null,null,null,null,"昼光色"]
[null,null,null,null,null,null," 全光束（lm）",null,null,null,null,1520]
[null,"●電球100W形相当の明るさ",null,null,null,null," 明るさの目安*1",null,null,null,null,"白熱電球100W形相当"]
[null,"●高効率で広がる光",null,null,null,null," 定格消費電力（W）",null,null,null,null,11.4]
[null,"●電球60W形、40W形の",null,null,null,null," エネルギー消費効率（lm/W）",null,null,null,null,{"$f":"ROUNDDOWN(L16/L18,1)","v":133.30000000000001}]
[null,"　 器具に使える",null,null,null,null," 質量（g）",null,null,null,null,140]
[null,"●密閉形器具対応",null,null,null,null," 定格寿命（時間）*2",null,null,null,null,40000]
[null,"●定格寿命40,000時間",null,null,null,null,"寸法\n（mm）",null,null,"外径",null,60]
[null,null,null,null,null,null,null,null,null,"全長",null,123]
[null,null,null,null,null,null," 断熱材施工器具対応",null,null,null,null,"×"]
[null,null,null,null,null,null," 密閉形器具対応",null,null,null,null,"○（保護機能付き）※1"]
[null,null,null,null,null,null,"＊ 調光（明るさが調整できる）機能の付いた照明器具には使用できません（100％点灯でも使用不可）。"]
[null,null,null,null,null,null,"＊ 断熱材施工器具や屋外では使用できません。"]
[null,"※1 器具内の温度や周囲温度が高くなると保護回路が働き電力を抑えるため、明るさが低下する場合があります。 "]
[]
[null,"白熱電球とＬＥＤ電球の電気代の試算ができます。目安としてご活用ください。"]
[null,"　■試算条件を入力ください。"]
[null,null,"①使用灯数は？",null,null,null,null,null,null,null,1,null,null,"灯",null,null,"電力料金単価（税込）*3"]
[]
[null,null,"②年間使用日数は？",null,null,null,null,null,null,null,365,null,null,"日",null,null,null,22,null,"円/kWh"]
[]
[null,null,"③1日の点灯時間は？",null,null,null,null,null,null,null,6,null,null,"時間/日",null,null,"に設定しています。"]
[]
[null,null,"④年間点灯時間",null,null,null,null,null,null,null,{"$f":"K34*K36","v":2190},null,null,"時間/年",null,null,"＊ 任意に変更ができます。"]
[]
[null,null,"⑤ＬＥＤ電球の購入価格（税込）は？",null,null,null,null,null,null,null,null,null,null,"円/灯",null,"合計",{"$f":"K32*K40","v":0},null,null,"円"]
[null,null,null,"＊ イニシャルコストの回収期間を試算します。"]
[null,"　■試算結果"]
[null,"　●年間電気代*3",null,null,null,null,null,null,null,"年間電気代",null,null,null,null,null,null,null,null,null,"低減効果"]
[]
[null,null,"◆白熱電球100W形",null,null,null,null,"約",{"$f":"0.09*K32*K34*K36*R34","v":4336.2000000000007},null,null,"円",null,null,null,null,null,null,null,"基準"]
[null,null,"　（100Wタイプ90Wで試算*4）"]
[]
[null,null,"◆ＬＥＤ電球100W形",null,null,null,null,"約",{"$f":"0.0114*K32*K34*K36*R34","v":549.25200000000007},null,null,"円",null,null,null,null,null,null,null,{"$f":"(I45-I48)/I45","v":0.87333333333333341}]
[null,null,"　（100Wタイプ11.4Wで試算*5）"]
[null,null,null,null,null,null,null,"白熱電球100W形と比べ　約",{"$f":"I45-I48","v":3786.9480000000008},null,null,"円お得です！（年間電気代の差額）"]
[]
[null,"　●回収期間",null,null,null,null,null,"イニシャルコストを　約",{"$f":"IF(K40=0,\"\",ROUNDUP(K40*K32/(I45-I48),1))","v":""},null,null,"年で回収できます！"]
[null,null,null,"＊ イニシャルコストの回収期間は、ＬＥＤ電球の購入価格を年間電気代の差額で割り試算しています。"]
[null,null,null,"    試算条件によっては、「一般社団法人日本照明工業会ガイド111」 による適正交換時期や耐用の限度を超える場合が"]
[null,null,null,"    ありますが、寿命を保証するものではありませんので、予めご了承ください。"]
[]
[null,"＊1 明るさの目安は、JIS C 8158 : 2012 附属書B によります。"]
[null,"＊2 定格寿命は、LED単体で定められた温度設計に基づいて算出した設計寿命であり、使用環境・使用方法により寿命が異なります。"]
[null,"＊3 年間電気代は、電力料金22円/kWh（税込）で試算しています（一般社団法人日本照明工業会 技術資料114-1996による）。"]
[null,"＊4 当社白熱電球100W形（LW100V90W、定格消費電力90W、全光束1,520lm、定格寿命1,000時間）で試算(2011年12月販売終了）。"]
[null,"＊5 当社LED電球100W形（LDA11D-G/100C、定格消費電力11.4W、全光束1,520lm、定格寿命40,000時間）で試算。"]
[]
[]
[null,{"$f":"TOP!B61","v":"2017年 3月版"}]

{"sheet":"13LG100C","index":2,"n_rows":64,"n_cols":20,"rows_kept":64,"cut":false,"hidden":false,"merged":[[4,11,4,21],[42,19,42,20],[18,6,18,10],[25,6,25,21],[19,6,19,10],[20,6,20,10],[4,6,12,10],[12,11,12,20],[33,17,33,18],[13,6,13,10],[39,16,39,18],[31,10,31,12],[16,6,16,10],[14,11,14,21],[20,11,20,21],[19,11,19,21],[51,8,51,10],[35,16,35,20],[33,10,33,12],[35,10,35,12],[29,1,29,21],[44,8,44,10],[39,10,39,12],[47,2,47,6],[47,19,47,20],[44,19,44,20],[44,2,44,6],[49,8,49,10],[47,8,47,10],[13,11,13,21],[14,6,14,10],[15,6,15,10],[16,11,16,21],[15,11,15,21],[18,11,18,21],[37,10,37,12],[37,16,37,20],[17,6,17,10],[24,6,24,10],[24,11,24,21],[23,11,23,21],[17,11,17,21],[23,6,23,10],[31,16,31,20],[26,6,26,21],[22,9,22,10],[21,6,22,8],[21,9,21,10],[22,11,22,21],[21,11,21,21]]}
[]
[]
[]
[]
[null,null,null,null,null,null,"形式",null,null,null,null,"LDA13L-G/100C"]
[]
[]
[]
[]
[]
[]
[]
[null,null,null,null,null,null,null,null,null,null,null,"オープン価格★　屋内用"]
[null,null,null,null,null,null," 光の広がり",null,null,null,null,"広配光タイプ"]
[null,null,null,null,null,null," 光色",null,null,null,null,"電球色"]
[null,null,null,null,null,null," 全光束（lm）",null,null,null,null,1520]
[null,"●電球100W形相当の明るさ",null,null,null,null," 明るさの目安*1",null,null,null,null,"白熱電球100W形相当"]
[null,"●高効率で広がる光",null,null,null,null," 定格消費電力（W）",null,null,null,null,13.3]
[null,"●電球60W形、40W形の",null,null,null,null," エネルギー消費効率（lm/W）",null,null,null,null,{"$f":"ROUNDDOWN(L16/L18,1)","v":114.2}]
[null,"　 器具に使える",null,null,null,null," 質量（g）",null,null,null,null,140]
[null,"●密閉形器具対応",null,null,null,null," 定格寿命（時間）*2",null,null,null,null,40000]
[null,"●定格寿命40,000時間",null,null,null,null,"寸法\n（mm）",null,null,"外径",null,60]
[null,null,null,null,null,null,null,null,null,"全長",null,123]
[null,null,null,null,null,null," 断熱材施工器具対応",null,null,null,null,"×"]
[null,null,null,null,null,null," 密閉形器具対応",null,null,null,null,"○（保護機能付き）※1"]
[null,null,null,null,null,null,"＊ 調光（明るさが調整できる）機能の付いた照明器具には使用できません（100％点灯でも使用不可）。"]
[null,null,null,null,null,null,"＊ 断熱材施工器具や屋外では使用できません。"]
[null,"※1 器具内の温度や周囲温度が高くなると保護回路が働き電力を抑えるため、明るさが低下する場合があります。 "]
[]
[null,"白熱電球とＬＥＤ電球の電気代の試算ができます。目安としてご活用ください。"]
[null,"　■試算条件を入力ください。"]
[null,null,"①使用灯数は？",null,null,null,null,null,null,null,1,null,null,"灯",null,null,"電力料金単価（税込）*3"]
[]
[null,null,"②年間使用日数は？",null,null,null,null,null,null,null,365,null,null,"日",null,null,null,22,null,"円/kWh"]
[]
[null,null,"③1日の点灯時間は？",null,null,null,null,null,null,null,6,null,null,"時間/日",null,null,"に設定しています。"]
[]
[null,null,"④年間点灯時間",null,null,null,null,null,null,null,{"$f":"K34*K36","v":2190},null,null,"時間/年",null,null,"＊ 任意に変更ができます。"]
[]
[null,null,"⑤ＬＥＤ電球の購入価格（税込）は？",null,null,null,null,null,null,null,null,null,null,"円/灯",null,"合計",{"$f":"K32*K40","v":0},null,null,"円"]
[null,null,null,"＊ イニシャルコストの回収期間を試算します。"]
[null,"　■試算結果"]
[null,"　●年間電気代*3",null,null,null,null,null,null,null,"年間電気代",null,null,null,null,null,null,null,null,null,"低減効果"]
[]
[null,null,"◆白熱電球100W形",null,null,null,null,"約",{"$f":"0.09*K32*K34*K36*R34","v":4336.2000000000007},null,null,"円",null,null,null,null,null,null,null,"基準"]
[null,null,"　（100Wタイプ90Wで試算*4）"]
[]
[null,null,"◆ＬＥＤ電球100W形",null,null,null,null,"約",{"$f":"0.0133*K32*K34*K36*R34","v":640.79399999999998},null,null,"円",null,null,null,null,null,null,null,{"$f":"(I45-I48)/I45","v":0.85222222222222233}]
[null,null,"　（100Wタイプ13.3Wで試算*5）"]
[null,null,null,null,null,null,null,"白熱電球100W形と比べ　約",{"$f":"I45-I48","v":3695.4060000000009},null,null,"円お得です！（年間電気代の差額）"]
[]
[null,"　●回収期間",null,null,null,null,null,"イニシャルコストを　約",{"$f":"IF(K40=0,\"\",ROUNDUP(K40*K32/(I45-I48),1))","v":""},null,null,"年で回収できます！"]
[null,null,null,"＊ イニシャルコストの回収期間は、ＬＥＤ電球の購入価格を年間電気代の差額で割り試算しています。"]
[null,null,null,"    試算条件によっては、「一般社団法人日本照明工業会ガイド111」 による適正交換時期や耐用の限度を超える場合が"]
[null,null,null,"    ありますが、寿命を保証するものではありませんので、予めご了承ください。"]
[]
[null,"＊1 明るさの目安は、JIS C 8158 : 2012 附属書B によります。"]
[null,"＊2 定格寿命は、LED単体で定められた温度設計に基づいて算出した設計寿命であり、使用環境・使用方法により寿命が異なります。"]
[null,"＊3 年間電気代は、電力料金22円/kWh（税込）で試算しています（一般社団法人日本照明工業会 技術資料114-1996による）。"]
[null,"＊4 当社白熱電球100W形（LW100V90W、定格消費電力90W、全光束1,520lm、定格寿命1,000時間）で試算(2011年12月販売終了）。"]
[null,"＊5 当社LED電球100W形（LDA13L-G/100C、定格消費電力13.3W、全光束1,520lm、定格寿命40,000時間）で試算。"]
[]
[]
[null,{"$f":"TOP!B61","v":"2017年 3月版"}]

{"sheet":"10DG80C","index":3,"n_rows":64,"n_cols":20,"rows_kept":64,"cut":false,"hidden":false,"merged":[[4,11,4,21],[42,19,42,20],[18,6,18,10],[25,6,25,21],[19,6,19,10],[20,6,20,10],[4,6,12,10],[12,11,12,20],[33,17,33,18],[13,6,13,10],[39,16,39,18],[31,10,31,12],[16,6,16,10],[14,11,14,21],[20,11,20,21],[19,11,19,21],[51,8,51,10],[35,16,35,20],[33,10,33,12],[35,10,35,12],[29,1,29,21],[44,8,44,10],[39,10,39,12],[47,2,47,6],[47,19,47,20],[44,19,44,20],[44,2,44,6],[49,8,49,10],[47,8,47,10],[13,11,13,21],[14,6,14,10],[15,6,15,10],[16,11,16,21],[15,11,15,21],[18,11,18,21],[37,10,37,12],[37,16,37,20],[17,6,17,10],[24,6,24,10],[24,11,24,21],[23,11,23,21],[17,11,17,21],[23,6,23,10],[31,16,31,20],[26,6,26,21],[22,9,22,10],[21,6,22,8],[21,9,21,10],[22,11,22,21],[21,11,21,21]]}
[]
[]
[]
[]
[null,null,null,null,null,null,"形式",null,null,null,null,"LDA10D-G/80C"]
[]
[]
[]
[]
[]
[]
[]
[null,null,null,null,null,null,null,null,null,null,null,"オープン価格★　屋内用"]
[null,null,null,null,null,null," 光の広がり",null,null,null,null,"広配光タイプ"]
[null,null,null,null,null,null," 光色",null,null,null,null,"昼光色"]
[null,null,null,null,null,null," 全光束（lm）",null,null,null,null,1160]
[null,"●電球80W形相当の明るさ",null,null,null,null," 明るさの目安*1",null,null,null,null,"白熱電球80W形相当"]
[null,"●高効率で広がる光",null,null,null,null," 定格消費電力（W）",null,null,null,null,9.5]
[null,"●電球60W形、40W形の",null,null,null,null," エネルギー消費効率（lm/W）",null,null,null,null,{"$f":"ROUNDDOWN(L16/L18,1)","v":122.1}]
[null,"　 器具に使える",null,null,null,null," 質量（g）",null,null,null,null,120]
[null,"●密閉形器具対応",null,null,null,null," 定格寿命（時間）*2",null,null,null,null,40000]
[null,"●定格寿命40,000時間",null,null,null,null,"寸法\n（mm）",null,null,"外径",null,60]
[null,null,null,null,null,null,null,null,null,"全長",null,123]
[null,null,null,null,null,null," 断熱材施工器具対応",null,null,null,null,"×"]
[null,null,null,null,null,null," 密閉形器具対応",null,null,null,null,"○（保護機能付き）※1"]
[null,null,null,null,null,null,"＊ 調光（明るさが調整できる）機能の付いた照明器具には使用できません（100％点灯でも使用不可）。"]
[null,null,null,null,null,null,"＊ 断熱材施工器具や屋外では使用できません。"]
[null,"※1 器具内の温度や周囲温度が高くなると保護回路が働き電力を抑えるため、明るさが低下する場合があります。 "]
[]
[null,"白熱電球とＬＥＤ電球の電気代の試算ができます。目安としてご活用ください。"]
[null,"　■試算条件を入力ください。"]
[null,null,"①使用灯数は？",null,null,null,null,null,null,null,1,null,null,"灯",null,null,"電力料金単価（税込）*3"]
[]
[null,null,"②年間使用日数は？",null,null,null,null,null,null,null,365,null,null,"日",null,null,null,22,null,"円/kWh"]
[]
[null,null,"③1日の点灯時間は？",null,null,null,null,null,null,null,6,null,null,"時間/日",null,null,"に設定しています。"]
[]
[null,null,"④年間点灯時間",null,null,null,null,null,null,null,{"$f":"K34*K36","v":2190},null,null,"時間/年",null,null,"＊ 任意に変更ができます。"]
[]
[null,null,"⑤ＬＥＤ電球の購入価格（税込）は？",null,null,null,null,null,null,null,null,null,null,"円/灯",null,"合計",{"$f":"K32*K40","v":0},null,null,"円"]
[null,null,null,"＊ イニシャルコストの回収期間を試算します。"]
[null,"　■試算結果"]
[null,"　●年間電気代*3",null,null,null,null,null,null,null,"年間電気代",null,null,null,null,null,null,null,null,null,"低減効果"]
[]
[null,null,"◆白熱電球80W形",null,null,null,null,"約",{"$f":"0.076*K32*K34*K36*R34","v":3661.68},null,null,"円",null,null,null,null,null,null,null,"基準"]
[null,null,"　（80Wタイプ76Wで試算*4）"]
[]
[null,null,"◆ＬＥＤ電球80W形",null,null,null,null,"約",{"$f":"0.0095*K32*K34*K36*R34","v":457.71},null,null,"円",null,null,null,null,null,null,null,{"$f":"(I45-I48)/I45","v":0.875}]
[null,null,"　（80Wタイプ9.5Wで試算*5）"]
[null,null,null,null,null,null,null,"白熱電球80W形と比べ　約",{"$f":"I45-I48","v":3203.97},null,null,"円お得です！（年間電気代の差額）"]
[]
[null,"　●回収期間",null,null,null,null,null,"イニシャルコストを　約",{"$f":"IF(K40=0,\"\",ROUNDUP(K40*K32/(I45-I48),1))","v":""},null,null,"年で回収できます！"]
[null,null,null,"＊ イニシャルコストの回収期間は、ＬＥＤ電球の購入価格を年間電気代の差額で割り試算しています。"]
[null,null,null,"    試算条件によっては、「一般社団法人日本照明工業会ガイド111」 による適正交換時期や耐用の限度を超える場合が"]
[null,null,null,"    ありますが、寿命を保証するものではありませんので、予めご了承ください。"]
[]
[null,"＊1 明るさの目安は、JIS C 8158 : 2012 附属書B によります。"]
[null,"＊2 定格寿命は、LED単体で定められた温度設計に基づいて算出した設計寿命であり、使用環境・使用方法により寿命が異なります。"]
[null,"＊3 年間電気代は、電力料金22円/kWh（税込）で試算しています（一般社団法人日本照明工業会 技術資料114-1996による）。"]
[null,"＊4 当社白熱電球80W形（LW100V76W、定格消費電力76W、全光束1,160lm、定格寿命1,000時間）で試算(2011年12月販売終了）。"]
[null,"＊5 当社LED電球80W形（LDA10D-G/80C、定格消費電力9.5W、全光束1,160lm、定格寿命40,000時間）で試算。"]
[]
[]
[null,{"$f":"TOP!B61","v":"2017年 3月版"}]

{"sheet":"10LG80C","index":4,"n_rows":64,"n_cols":20,"rows_kept":64,"cut":false,"hidden":false,"merged":[[22,9,22,10],[15,11,15,21],[14,6,14,10],[15,6,15,10],[16,6,16,10],[14,11,14,21],[18,6,18,10],[51,8,51,10],[35,16,35,20],[33,10,33,12],[35,10,35,12],[31,16,31,20],[37,16,37,20],[47,19,47,20],[49,8,49,10],[47,8,47,10],[44,8,44,10],[39,10,39,12],[4,11,4,21],[42,19,42,20],[44,19,44,20],[26,6,26,21],[37,10,37,12],[4,6,12,10],[12,11,12,20],[17,6,17,10],[13,6,13,10],[29,1,29,21],[33,17,33,18],[39,16,39,18],[31,10,31,12],[23,6,23,10],[24,6,24,10],[24,11,24,21],[25,6,25,21],[47,2,47,6],[44,2,44,6],[13,11,13,21],[17,11,17,21],[16,11,16,21],[23,11,23,21],[18,11,18,21],[22,11,22,21],[21,11,21,21],[20,11,20,21],[19,11,19,21],[19,6,19,10],[20,6,20,10],[21,6,22,8],[21,9,21,10]]}
[]
[]
[]
[]
[null,null,null,null,null,null,"形式",null,null,null,null,"LDA10L-G/80C"]
[]
[]
[]
[]
[]
[]
[]
[null,null,null,null,null,null,null,null,null,null,null,"オープン価格★　屋内用"]
[null,null,null,null,null,null," 光の広がり",null,null,null,null,"広配光タイプ"]
[null,null,null,null,null,null," 光色",null,null,null,null,"電球色"]
[null,null,null,null,null,null," 全光束（lm）",null,null,null,null,1160]
[null,"●電球80W形相当の明るさ",null,null,null,null," 明るさの目安*1",null,null,null,null,"白熱電球80W形相当"]
[null,"●高効率で広がる光",null,null,null,null," 定格消費電力（W）",null,null,null,null,10.3]
[null,"●電球60W形、40W形の",null,null,null,null," エネルギー消費効率（lm/W）",null,null,null,null,{"$f":"ROUNDDOWN(L16/L18,1)","v":112.6}]
[null,"　 器具に使える",null,null,null,null," 質量（g）",null,null,null,null,120]
[null,"●密閉形器具対応",null,null,null,null," 定格寿命（時間）*2",null,null,null,null,40000]
[null,"●定格寿命40,000時間",null,null,null,null,"寸法\n（mm）",null,null,"外径",null,60]
[null,null,null,null,null,null,null,null,null,"全長",null,123]
[null,null,null,null,null,null," 断熱材施工器具対応",null,null,null,null,"×"]
[null,null,null,null,null,null," 密閉形器具対応",null,null,null,null,"○（保護機能付き）※1"]
[null,null,null,null,null,null,"＊ 調光（明るさが調整できる）機能の付いた照明器具には使用できません（100％点灯でも使用不可）。"]
[null,null,null,null,null,null,"＊ 断熱材施工器具や屋外では使用できません。"]
[null,"※1 器具内の温度や周囲温度が高くなると保護回路が働き電力を抑えるため、明るさが低下する場合があります。 "]
[]
[null,"白熱電球とＬＥＤ電球の電気代の試算ができます。目安としてご活用ください。"]
[null,"　■試算条件を入力ください。"]
[null,null,"①使用灯数は？",null,null,null,null,null,null,null,1,null,null,"灯",null,null,"電力料金単価（税込）*3"]
[]
[null,null,"②年間使用日数は？",null,null,null,null,null,null,null,365,null,null,"日",null,null,null,22,null,"円/kWh"]
[]
[null,null,"③1日の点灯時間は？",null,null,null,null,null,null,null,6,null,null,"時間/日",null,null,"に設定しています。"]
[]
[null,null,"④年間点灯時間",null,null,null,null,null,null,null,{"$f":"K34*K36","v":2190},null,null,"時間/年",null,null,"＊ 任意に変更ができます。"]
[]
[null,null,"⑤ＬＥＤ電球の購入価格（税込）は？",null,null,null,null,null,null,null,null,null,null,"円/灯",null,"合計",{"$f":"K32*K40","v":0},null,null,"円"]
[null,null,null,"＊ イニシャルコストの回収期間を試算します。"]
[null,"　■試算結果"]
[null,"　●年間電気代*3",null,null,null,null,null,null,null,"年間電気代",null,null,null,null,null,null,null,null,null,"低減効果"]
[]
[null,null,"◆白熱電球80W形",null,null,null,null,"約",{"$f":"0.076*K32*K34*K36*R34","v":3661.68},null,null,"円",null,null,null,null,null,null,null,"基準"]
[null,null,"　（80Wタイプ76Wで試算*4）"]
[]
[null,null,"◆ＬＥＤ電球80W形",null,null,null,null,"約",{"$f":"0.0103*K32*K34*K36*R34","v":496.25400000000002},null,null,"円",null,null,null,null,null,null,null,{"$f":"(I45-I48)/I45","v":0.86447368421052628}]
[null,null,"　（80Wタイプ10.3Wで試算*5）"]
[null,null,null,null,null,null,null,"白熱電球80W形と比べ　約",{"$f":"I45-I48","v":3165.4259999999999},null,null,"円お得です！（年間電気代の差額）"]
[]
[null,"　●回収期間",null,null,null,null,null,"イニシャルコストを　約",{"$f":"IF(K40=0,\"\",ROUNDUP(K40*K32/(I45-I48),1))","v":""},null,null,"年で回収できます！"]
[null,null,null,"＊ イニシャルコストの回収期間は、ＬＥＤ電球の購入価格を年間電気代の差額で割り試算しています。"]
[null,null,null,"    試算条件によっては、「一般社団法人日本照明工業会ガイド111」 による適正交換時期や耐用の限度を超える場合が"]
[null,null,null,"    ありますが、寿命を保証するものではありませんので、予めご了承ください。"]
[]
[null,"＊1 明るさの目安は、JIS C 8158 : 2012 附属書B によります。"]
[null,"＊2 定格寿命は、LED単体で定められた温度設計に基づいて算出した設計寿命であり、使用環境・使用方法により寿命が異なります。"]
[null,"＊3 年間電気代は、電力料金22円/kWh（税込）で試算しています（一般社団法人日本照明工業会 技術資料114-1996による）。"]
[null,"＊4 当社白熱電球80W形（LW100V76W、定格消費電力76W、全光束1,160lm、定格寿命1,000時間）で試算(2011年12月販売終了）。"]
[null,"＊5 当社LED電球80W形（LDA10L-G/80C、定格消費電力10.3W、全光束1,160lm、定格寿命40,000時間）で試算。"]
[]
[]
[null,{"$f":"TOP!B61","v":"2017年 3月版"}]

{"sheet":"9DG60HC","index":5,"n_rows":64,"n_cols":20,"rows_kept":64,"cut":false,"hidden":false,"merged":[[14,6,14,10],[14,11,14,21],[4,6,12,10],[4,11,4,21],[12,11,12,20],[13,6,13,10],[13,11,13,21],[15,6,15,10],[15,11,15,21],[16,6,16,10],[16,11,16,21],[17,6,17,10],[17,11,17,21],[18,6,18,10],[18,11,18,21],[19,6,19,10],[19,11,19,21],[20,6,20,10],[20,11,20,21],[31,10,31,12],[31,16,31,20],[21,6,22,8],[21,9,21,10],[21,11,21,21],[22,9,22,10],[22,11,22,21],[23,6,23,10],[23,11,23,21],[24,6,24,10],[24,11,24,21],[25,6,25,21],[26,6,26,21],[29,1,29,21],[33,10,33,12],[33,17,33,18],[35,10,35,12],[35,16,35,20],[37,10,37,12],[37,16,37,20],[39,10,39,12],[39,16,39,18],[42,19,42,20],[44,2,44,6],[44,8,44,10],[44,19,44,20],[47,2,47,6],[47,8,47,10],[47,19,47,20],[49,8,49,10],[51,8,51,10]]}
[]
[]
[]
[]
[null,null,null,null,null,null,"形式",null,null,null,null,"LDA9D-G/60HC"]
[]
[]
[]
[]
[]
[]
[]
[null,null,null,null,null,null,null,null,null,null,null,"オープン価格★　屋内用"]
[null,null,null,null,null,null," 光の広がり",null,null,null,null,"広配光タイプ"]
[null,null,null,null,null,null," 光色",null,null,null,null,"昼光色"]
[null,null,null,null,null,null," 全光束（lm）",null,null,null,null,1000]
[null,"●全光束1,000lmの",null,null,null,null," 明るさの目安*1",null,null,null,null,"白熱電球60W形相当"]
[null,"　 明るい60W",null,null,null,null," 定格消費電力（W）",null,null,null,null,8.6999999999999993]
[null,"●高効率で広がる光",null,null,null,null," エネルギー消費効率（lm/W）",null,null,null,null,{"$f":"ROUNDDOWN(L16/L18,1)","v":114.9}]
[null,"●密閉形器具対応",null,null,null,null," 質量（g）",null,null,null,null,100]
[null,"●定格寿命40,000時間",null,null,null,null," 定格寿命（時間）*2",null,null,null,null,40000]
[null,null,null,null,null,null,"寸法\n（mm）",null,null,"外径",null,60]
[null,null,null,null,null,null,null,null,null,"全長",null,112]
[null,null,null,null,null,null," 断熱材施工器具対応",null,null,null,null,"×"]
[null,null,null,null,null,null," 密閉形器具対応",null,null,null,null,"○（保護機能付き）※1"]
[null,null,null,null,null,null,"＊ 調光（明るさが調整できる）機能の付いた照明器具には使用できません（100％点灯でも使用不可）。"]
[null,null,null,null,null,null,"＊ 断熱材施工器具や屋外では使用できません。"]
[null,"※1 器具内の温度や周囲温度が高くなると保護回路が働き電力を抑えるため、明るさが低下する場合があります。 "]
[]
[null,"白熱電球とＬＥＤ電球の電気代の試算ができます。目安としてご活用ください。"]
[null,"　■試算条件を入力ください。"]
[null,null,"①使用灯数は？",null,null,null,null,null,null,null,1,null,null,"灯",null,null,"電力料金単価（税込）*3"]
[]
[null,null,"②年間使用日数は？",null,null,null,null,null,null,null,365,null,null,"日",null,null,null,22,null,"円/kWh"]
[]
[null,null,"③1日の点灯時間は？",null,null,null,null,null,null,null,6,null,null,"時間/日",null,null,"に設定しています。"]
[]
[null,null,"④年間点灯時間",null,null,null,null,null,null,null,{"$f":"K34*K36","v":2190},null,null,"時間/年",null,null,"＊ 任意に変更ができます。"]
[]
[null,null,"⑤ＬＥＤ電球の購入価格（税込）は？",null,null,null,null,null,null,null,null,null,null,"円/灯",null,"合計",{"$f":"K32*K40","v":0},null,null,"円"]
[null,null,null,"＊ イニシャルコストの回収期間を試算します。"]
[null,"　■試算結果"]
[null,"　●年間電気代*3",null,null,null,null,null,null,null,"年間電気代",null,null,null,null,null,null,null,null,null,"低減効果"]
[]
[null,null,"◆白熱電球60W形",null,null,null,null,"約",{"$f":"0.054*K32*K34*K36*R34","v":2601.7200000000003},null,null,"円",null,null,null,null,null,null,null,"基準"]
[null,null,"　（60Wタイプ54Wで試算*4）"]
[]
[null,null,"◆ＬＥＤ電球60W形",null,null,null,null,"約",{"$f":"0.0087*K32*K34*K36*R34","v":419.166},null,null,"円",null,null,null,null,null,null,null,{"$f":"(I45-I48)/I45","v":0.8388888888888888}]
[null,null,"　（60Wタイプ8.7Wで試算*5）"]
[null,null,null,null,null,null,null,"白熱電球60W形と比べ　約",{"$f":"I45-I48","v":2182.5540000000001},null,null,"円お得です！（年間電気代の差額）"]
[]
[null,"　●回収期間",null,null,null,null,null,"イニシャルコストを　約",{"$f":"IF(K40=0,\"\",ROUNDUP(K40*K32/(I45-I48),1))","v":""},null,null,"年で回収できます！"]
[null,null,null,"＊ イニシャルコストの回収期間は、ＬＥＤ電球の購入価格を年間電気代の差額で割り試算しています。"]
[null,null,null,"    試算条件によっては、「一般社団法人日本照明工業会ガイド111」 による適正交換時期や耐用の限度を超える場合が"]
[null,null,null,"    ありますが、寿命を保証するものではありませんので、予めご了承ください。"]
[]
[null,"＊1 明るさの目安は、JIS C 8158 : 2012 附属書B によります。"]
[null,"＊2 定格寿命は、LED単体で定められた温度設計に基づいて算出した設計寿命であり、使用環境・使用方法により寿命が異なります。"]
[null,"＊3 年間電気代は、電力料金22円/kWh（税込）で試算しています（一般社団法人日本照明工業会 技術資料114-1996による）。"]
[null,"＊4 当社白熱電球60W形（LW100V54W、定格消費電力54W、全光束810lm、定格寿命1,000時間）で試算(2011年12月販売終了）。"]
[null,"＊5 当社LED電球60W形（LDA9D-G/60HC、定格消費電力8.7W、全光束1,000lm、定格寿命40,000時間）で試算。"]
[]
[]
[null,{"$f":"TOP!B61","v":"2017年 3月版"}]

{"sheet":"9LG60HC","index":6,"n_rows":64,"n_cols":20,"rows_kept":64,"cut":false,"hidden":false,"merged":[[14,6,14,10],[14,11,14,21],[4,6,12,10],[4,11,4,21],[12,11,12,20],[13,6,13,10],[13,11,13,21],[15,6,15,10],[15,11,15,21],[16,6,16,10],[16,11,16,21],[17,6,17,10],[17,11,17,21],[18,6,18,10],[18,11,18,21],[19,6,19,10],[19,11,19,21],[20,6,20,10],[20,11,20,21],[31,10,31,12],[31,16,31,20],[21,6,22,8],[21,9,21,10],[21,11,21,21],[22,9,22,10],[22,11,22,21],[23,6,23,10],[23,11,23,21],[24,6,24,10],[24,11,24,21],[25,6,25,21],[26,6,26,21],[29,1,29,21],[33,10,33,12],[33,17,33,18],[35,10,35,12],[35,16,35,20],[37,10,37,12],[37,16,37,20],[39,10,39,12],[39,16,39,18],[42,19,42,20],[44,2,44,6],[44,8,44,10],[44,19,44,20],[47,2,47,6],[47,8,47,10],[47,19,47,20],[49,8,49,10],[51,8,51,10]]}
[]
[]
[]
[]
[null,null,null,null,null,null,"形式",null,null,null,null,"LDA9L-G/60HC"]
[]
[]
[]
[]
[]
[]
[]
[null,null,null,null,null,null,null,null,null,null,null,"オープン価格★　屋内用"]
[null,null,null,null,null,null," 光の広がり",null,null,null,null,"広配光タイプ"]
[null,null,null,null,null,null," 光色",null,null,null,null,"電球色"]
[null,null,null,null,null,null," 全光束（lm）",null,null,null,null,1000]
[null,"●全光束1,000lmの",null,null,null,null," 明るさの目安*1",null,null,null,null,"白熱電球60W形相当"]
[null,"　 明るい60W",null,null,null,null," 定格消費電力（W）",null,null,null,null,9.3000000000000007]
[null,"●高効率で広がる光",null,null,null,null," エネルギー消費効率（lm/W）",null,null,null,null,{"$f":"ROUNDDOWN(L16/L18,1)","v":107.5}]
[null,"●密閉形器具対応",null,null,null,null," 質量（g）",null,null,null,null,100]
[null,"●定格寿命40,000時間",null,null,null,null," 定格寿命（時間）*2",null,null,null,null,40000]
[null,null,null,null,null,null,"寸法\n（mm）",null,null,"外径",null,60]
[null,null,null,null,null,null,null,null,null,"全長",null,112]
[null,null,null,null,null,null," 断熱材施工器具対応",null,null,null,null,"×"]
[null,null,null,null,null,null," 密閉形器具対応",null,null,null,null,"○（保護機能付き）※1"]
[null,null,null,null,null,null,"＊ 調光（明るさが調整できる）機能の付いた照明器具には使用できません（100％点灯でも使用不可）。"]
[null,null,null,null,null,null,"＊ 断熱材施工器具や屋外では使用できません。"]
[null,"※1 器具内の温度や周囲温度が高くなると保護回路が働き電力を抑えるため、明るさが低下する場合があります。 "]
[]
[null,"白熱電球とＬＥＤ電球の電気代の試算ができます。目安としてご活用ください。"]
[null,"　■試算条件を入力ください。"]
[null,null,"①使用灯数は？",null,null,null,null,null,null,null,1,null,null,"灯",null,null,"電力料金単価（税込）*3"]
[]
[null,null,"②年間使用日数は？",null,null,null,null,null,null,null,365,null,null,"日",null,null,null,22,null,"円/kWh"]
[]
[null,null,"③1日の点灯時間は？",null,null,null,null,null,null,null,6,null,null,"時間/日",null,null,"に設定しています。"]
[]
[null,null,"④年間点灯時間",null,null,null,null,null,null,null,{"$f":"K34*K36","v":2190},null,null,"時間/年",null,null,"＊ 任意に変更ができます。"]
[]
[null,null,"⑤ＬＥＤ電球の購入価格（税込）は？",null,null,null,null,null,null,null,null,null,null,"円/灯",null,"合計",{"$f":"K32*K40","v":0},null,null,"円"]
[null,null,null,"＊ イニシャルコストの回収期間を試算します。"]
[null,"　■試算結果"]
[null,"　●年間電気代*3",null,null,null,null,null,null,null,"年間電気代",null,null,null,null,null,null,null,null,null,"低減効果"]
[]
[null,null,"◆白熱電球60W形",null,null,null,null,"約",{"$f":"0.054*K32*K34*K36*R34","v":2601.7200000000003},null,null,"円",null,null,null,null,null,null,null,"基準"]
[null,null,"　（60Wタイプ54Wで試算*4）"]
[]
[null,null,"◆ＬＥＤ電球60W形",null,null,null,null,"約",{"$f":"0.0093*K32*K34*K36*R34","v":448.07399999999996},null,null,"円",null,null,null,null,null,null,null,{"$f":"(I45-I48)/I45","v":0.82777777777777772}]
[null,null,"　（60Wタイプ9.3Wで試算*5）"]
[null,null,null,null,null,null,null,"白熱電球60W形と比べ　約",{"$f":"I45-I48","v":2153.6460000000002},null,null,"円お得です！（年間電気代の差額）"]
[]
[null,"　●回収期間",null,null,null,null,null,"イニシャルコストを　約",{"$f":"IF(K40=0,\"\",ROUNDUP(K40*K32/(I45-I48),1))","v":""},null,null,"年で回収できます！"]
[null,null,null,"＊ イニシャルコストの回収期間は、ＬＥＤ電球の購入価格を年間電気代の差額で割り試算しています。"]
[null,null,null,"    試算条件によっては、「一般社団法人日本照明工業会ガイド111」 による適正交換時期や耐用の限度を超える場合が"]
[null,null,null,"    ありますが、寿命を保証するものではありませんので、予めご了承ください。"]
[]
[null,"＊1 明るさの目安は、JIS C 8158 : 2012 附属書B によります。"]
[null,"＊2 定格寿命は、LED単体で定められた温度設計に基づいて算出した設計寿命であり、使用環境・使用方法により寿命が異なります。"]
[null,"＊3 年間電気代は、電力料金22円/kWh（税込）で試算しています（一般社団法人日本照明工業会 技術資料114-1996による）。"]
[null,"＊4 当社白熱電球60W形（LW100V54W、定格消費電力54W、全光束810lm、定格寿命1,000時間）で試算(2011年12月販売終了）。"]
[null,"＊5 当社LED電球60W形（LDA9L-G/60HC、定格消費電力9.3W、全光束1,000lm、定格寿命40,000時間）で試算。"]
[]
[]
[null,{"$f":"TOP!B61","v":"2017年 3月版"}]

{"sheet":"7DGS60F","index":7,"n_rows":65,"n_cols":20,"rows_kept":65,"cut":false,"hidden":false,"merged":[[22,9,22,10],[15,11,15,21],[14,6,14,10],[15,6,15,10],[16,6,16,10],[14,11,14,21],[18,6,18,10],[52,8,52,10],[36,16,36,20],[34,10,34,12],[36,10,36,12],[32,16,32,20],[38,16,38,20],[48,19,48,20],[50,8,50,10],[48,8,48,10],[45,8,45,10],[40,10,40,12],[4,11,4,21],[43,19,43,20],[45,19,45,20],[26,6,26,21],[38,10,38,12],[4,6,12,10],[12,11,12,20],[17,6,17,10],[13,6,13,10],[30,1,30,21],[34,17,34,18],[40,16,40,18],[32,10,32,12],[23,6,23,10],[24,6,24,10],[24,11,24,21],[25,6,25,21],[48,2,48,6],[45,2,45,6],[13,11,13,21],[17,11,17,21],[16,11,16,21],[23,11,23,21],[18,11,18,21],[22,11,22,21],[21,11,21,21],[20,11,20,21],[19,11,19,21],[19,6,19,10],[20,6,20,10],[21,6,22,8],[21,9,21,10]]}
[]
[]
[]
[]
[null,null,null,null,null,null,"形式",null,null,null,null,"LDA7D-G/S/60F"]
[]
[]
[]
[]
[]
[]
[]
[null,null,null,null,null,null,null,null,null,null,null,"オープン価格★"]
[null,null,null,null,null,null," 光の広がり",null,null,null,null,"全方向タイプ（配光角２６０度）"]
[null,null,null,null,null,null," 光色",null,null,null,null,"昼光色"]
[null,null,null,null,null,null," 全光束（lm）",null,null,null,null,810]
[null,"●電球60W形相当の明るさ",null,null,null,null," 明るさの目安*1",null,null,null,null,"白熱電球60W形相当"]
[null,"●配光角260度で全方向に",null,null,null,null," 定格消費電力（W）",null,null,null,null,6.8]
[null,"　広がる光",null,null,null,null," エネルギー消費効率（lm/W）",null,null,null,null,{"$f":"ROUNDDOWN(L16/L18,1)","v":119.1}]
[null,"●断熱材施工器具対応※1",null,null,null,null," 質量（g）",null,null,null,null,80]
[null,"●密閉形器具にも対応※1",null,null,null,null," 定格寿命（時間）*2",null,null,null,null,40000]
[null,"●屋外用器具にも対応※2",null,null,null,null,"寸法\n（mm）",null,null,"外径",null,60]
[null,null,null,null,null,null,null,null,null,"全長",null,112]
[null,null,null,null,null,null," 断熱材施工器具対応",null,null,null,null,"○（保護機能付き）※1"]
[null,null,null,null,null,null," 密閉形器具対応",null,null,null,null,"○（保護機能付き）※1"]
[null,null,null,null,null,null,"・ 調光（明るさが調整できる）機能の付いた照明器具には使用できません（100％点灯でも使用不可）。"]
[null,null,null,null,null,null,"・ 街路灯には使用できません。"]
[null,"※1 器具内の温度や周囲温度が高くなると保護回路が働き電力を抑えるため、明るさが低下する場合があります。 "]
[null,"※2 防湿･防雨形の密閉形器具で使用すること、直射日光があたらない場所で使用すること、屋内配線に接続された器具で使用すること。"]
[]
[null,"白熱電球とＬＥＤ電球の電気代の試算ができます。目安としてご活用ください。"]
[null,"　■試算条件を入力ください。"]
[null,null,"①使用灯数は？",null,null,null,null,null,null,null,1,null,null,"灯",null,null,"電力料金単価（税込）*3"]
[]
[null,null,"②年間使用日数は？",null,null,null,null,null,null,null,365,null,null,"日",null,null,null,22,null,"円/kWh"]
[]
[null,null,"③1日の点灯時間は？",null,null,null,null,null,null,null,6,null,null,"時間/日",null,null,"に設定しています。"]
[]
[null,null,"④年間点灯時間",null,null,null,null,null,null,null,{"$f":"K35*K37","v":2190},null,null,"時間/年",null,null,"＊ 任意に変更ができます。"]
[]
[null,null,"⑤ＬＥＤ電球の購入価格（税込）は？",null,null,null,null,null,null,null,null,null,null,"円/灯",null,"合計",{"$f":"K33*K41","v":0},null,null,"円"]
[null,null,null,"＊ イニシャルコストの回収期間を試算します。"]
[null,"　■試算結果"]
[null,"　●年間電気代*3",null,null,null,null,null,null,null,"年間電気代",null,null,null,null,null,null,null,null,null,"低減効果"]
[]
[null,null,"◆白熱電球60W形",null,null,null,null,"約",{"$f":"0.054*K33*K35*K37*R35","v":2601.7200000000003},null,null,"円",null,null,null,null,null,null,null,"基準"]
[null,null,"　（60Wタイプ54Wで試算*4）"]
[]
[null,null,"◆ＬＥＤ電球60W形",null,null,null,null,"約",{"$f":"$L$18*K33*K35*K37*R35/1000","v":327.62400000000002},null,null,"円",null,null,null,null,null,null,null,{"$f":"(I46-I49)/I46","v":0.87407407407407411}]
[null,null,"　（60Wタイプ6.8Wで試算*5）"]
[null,null,null,null,null,null,null,"白熱電球60W形と比べ　約",{"$f":"I46-I49","v":2274.0960000000005},null,null,"円お得です！（年間電気代の差額）"]
[]
[null,"　●回収期間",null,null,null,null,null,"イニシャルコストを　約",{"$f":"IF(K41=0,\"\",ROUNDUP(K41*K33/(I46-I49),1))","v":""},null,null,"年で回収できます！"]
[null,null,null,"＊ イニシャルコストの回収期間は、ＬＥＤ電球の購入価格を年間電気代の差額で割り試算しています。"]
[null,null,null,"    試算条件によっては、「一般社団法人日本照明工業会ガイド111」 による適正交換時期や耐用の限度を超える場合が"]
[null,null,null,"    ありますが、寿命を保証するものではありませんので、予めご了承ください。"]
[]
[null,"＊1 明るさの目安は、JIS C 8158 : 2012 附属書B によります。"]
[null,"＊2 定格寿命は、LED単体で定められた温度設計に基づいて算出した設計寿命であり、使用環境・使用方法により寿命が異なります。"]
[null,"＊3 年間電気代は、電力料金22円/kWh（税込）で試算しています（一般社団法人日本照明工業会 技術資料114-1996による）。"]
[null,"＊4 当社白熱電球60W形（LW100V54W、定格消費電力54W、全光束810lm、定格寿命1,000時間）で試算(2011年12月販売終了）。"]
[null,"＊5 当社LED電球60W形（LDA7D-G/60E、定格消費電力7.0W、全光束810lm、定格寿命40,000時間）で試算。"]
[]
[]
[null,{"$f":"TOP!B61","v":"2017年 3月版"}]

{"sheet":"7LGS60F","index":8,"n_rows":65,"n_cols":20,"rows_kept":65,"cut":false,"hidden":false,"merged":[[4,11,4,21],[43,19,43,20],[18,6,18,10],[25,6,25,21],[19,6,19,10],[20,6,20,10],[4,6,12,10],[12,11,12,20],[34,17,34,18],[13,6,13,10],[40,16,40,18],[32,10,32,12],[16,6,16,10],[14,11,14,21],[20,11,20,21],[19,11,19,21],[52,8,52,10],[36,16,36,20],[34,10,34,12],[36,10,36,12],[30,1,30,21],[45,8,45,10],[40,10,40,12],[48,2,48,6],[48,19,48,20],[45,19,45,20],[45,2,45,6],[50,8,50,10],[48,8,48,10],[13,11,13,21],[14,6,14,10],[15,6,15,10],[16,11,16,21],[15,11,15,21],[18,11,18,21],[38,10,38,12],[38,16,38,20],[17,6,17,10],[24,6,24,10],[24,11,24,21],[23,11,23,21],[17,11,17,21],[23,6,23,10],[32,16,32,20],[26,6,26,21],[22,9,22,10],[21,6,22,8],[21,9,21,10],[22,11,22,21],[21,11,21,21]]}
[]
[]
[]
[]
[null,null,null,null,null,null,"形式",null,null,null,null,"LDA7L-G/S/60F"]
[]
[]
[]
[]
[]
[]
[]
[null,null,null,null,null,null,null,null,null,null,null,"オープン価格★"]
[null,null,null,null,null,null," 光の広がり",null,null,null,null,"全方向タイプ（配光角２６０度）"]
[null,null,null,null,null,null," 光色",null,null,null,null,"電球色"]
[null,null,null,null,null,null," 全光束（lm）",null,null,null,null,810]
[null,"●電球60W形相当の明るさ",null,null,null,null," 明るさの目安*1",null,null,null,null,"白熱電球60W形相当"]
[null,"●配光角260度で全方向に",null,null,null,null," 定格消費電力（W）",null,null,null,null,7.2]
[null,"　広がる光",null,null,null,null," エネルギー消費効率（lm/W）",null,null,null,null,{"$f":"ROUNDDOWN(L16/L18,1)","v":112.5}]
[null,"●断熱材施工器具対応※1",null,null,null,null," 質量（g）",null,null,null,null,80]
[null,"●密閉形器具にも対応※1",null,null,null,null," 定格寿命（時間）*2",null,null,null,null,40000]
[null,"●屋外用器具にも対応※2",null,null,null,null,"寸法\n（mm）",null,null,"外径",null,60]
[null,null,null,null,null,null,null,null,null,"全長",null,112]
[null,null,null,null,null,null," 断熱材施工器具対応",null,null,null,null,"○（保護機能付き）※1"]
[null,null,null,null,null,null," 密閉形器具対応",null,null,null,null,"○（保護機能付き）※1"]
[null,null,null,null,null,null,"・ 調光（明るさが調整できる）機能の付いた照明器具には使用できません（100％点灯でも使用不可）。"]
[null,null,null,null,null,null,"・ 街路灯には使用できません。"]
[null,"※1 器具内の温度や周囲温度が高くなると保護回路が働き電力を抑えるため、明るさが低下する場合があります。 "]
[null,"※2 防湿･防雨形の密閉形器具で使用すること、直射日光があたらない場所で使用すること、屋内配線に接続された器具で使用すること。"]
[]
[null,"白熱電球とＬＥＤ電球の電気代の試算ができます。目安としてご活用ください。"]
[null,"　■試算条件を入力ください。"]
[null,null,"①使用灯数は？",null,null,null,null,null,null,null,1,null,null,"灯",null,null,"電力料金単価（税込）*3"]
[]
[null,null,"②年間使用日数は？",null,null,null,null,null,null,null,365,null,null,"日",null,null,null,22,null,"円/kWh"]
[]
[null,null,"③1日の点灯時間は？",null,null,null,null,null,null,null,6,null,null,"時間/日",null,null,"に設定しています。"]
[]
[null,null,"④年間点灯時間",null,null,null,null,null,null,null,{"$f":"K35*K37","v":2190},null,null,"時間/年",null,null,"＊ 任意に変更ができます。"]
[]
[null,null,"⑤ＬＥＤ電球の購入価格（税込）は？",null,null,null,null,null,null,null,null,null,null,"円/灯",null,"合計",{"$f":"K33*K41","v":0},null,null,"円"]
[null,null,null,"＊ イニシャルコストの回収期間を試算します。"]
[null,"　■試算結果"]
[null,"　●年間電気代*3",null,null,null,null,null,null,null,"年間電気代",null,null,null,null,null,null,null,null,null,"低減効果"]
[]
[null,null,"◆白熱電球60W形",null,null,null,null,"約",{"$f":"0.054*K33*K35*K37*R35","v":2601.7200000000003},null,null,"円",null,null,null,null,null,null,null,"基準"]
[null,null,"　（60Wタイプ54Wで試算*4）"]
[]
[null,null,"◆ＬＥＤ電球60W形",null,null,null,null,"約",{"$f":"$L$18*K33*K35*K37*R35/1000","v":346.89600000000002},null,null,"円",null,null,null,null,null,null,null,{"$f":"(I46-I49)/I46","v":0.86666666666666659}]
[null,null,"　（60Wタイプ7.2Wで試算*5）"]
[null,null,null,null,null,null,null,"白熱電球60W形と比べ　約",{"$f":"I46-I49","v":2254.8240000000001},null,null,"円お得です！（年間電気代の差額）"]
[]
[null,"　●回収期間",null,null,null,null,null,"イニシャルコストを　約",{"$f":"IF(K41=0,\"\",ROUNDUP(K41*K33/(I46-I49),1))","v":""},null,null,"年で回収できます！"]
[null,null,null,"＊ イニシャルコストの回収期間は、ＬＥＤ電球の購入価格を年間電気代の差額で割り試算しています。"]
[null,null,null,"    試算条件によっては、「一般社団法人日本照明工業会ガイド111」 による適正交換時期や耐用の限度を超える場合が"]
[null,null,null,"    ありますが、寿命を保証するものではありませんので、予めご了承ください。"]
[]
[null,"＊1 明るさの目安は、JIS C 8158 : 2012 附属書B によります。"]
[null,"＊2 定格寿命は、LED単体で定められた温度設計に基づいて算出した設計寿命であり、使用環境・使用方法により寿命が異なります。"]
[null,"＊3 年間電気代は、電力料金22円/kWh（税込）で試算しています（一般社団法人日本照明工業会 技術資料114-1996による）。"]
[null,"＊4 当社白熱電球60W形（LW100V54W、定格消費電力54W、全光束810lm、定格寿命1,000時間）で試算(2011年12月販売終了）。"]
[null,"＊5 当社LED電球60W形（LDA8L-G/60E、定格消費電力7.8W、全光束810lm、定格寿命40,000時間）で試算。"]
[]
[]
[null,{"$f":"TOP!B61","v":"2017年 3月版"}]

{"sheet":"7DGD60C","index":9,"n_rows":64,"n_cols":20,"rows_kept":64,"cut":false,"hidden":false,"merged":[[14,6,14,10],[14,11,14,21],[4,6,12,10],[4,11,4,21],[12,11,12,20],[13,6,13,10],[13,11,13,21],[15,6,15,10],[15,11,15,21],[16,6,16,10],[16,11,16,21],[17,6,17,10],[17,11,17,21],[18,6,18,10],[18,11,18,21],[19,6,19,10],[19,11,19,21],[20,6,20,10],[20,11,20,21],[31,10,31,12],[31,16,31,20],[21,6,22,8],[21,9,21,10],[21,11,21,21],[22,9,22,10],[22,11,22,21],[23,6,23,10],[23,11,23,21],[24,6,24,10],[24,11,24,21],[25,6,25,21],[26,6,26,21],[29,1,29,21],[33,10,33,12],[33,17,33,18],[35,10,35,12],[35,16,35,20],[37,10,37,12],[37,16,37,20],[39,10,39,12],[39,16,39,18],[42,19,42,20],[44,2,44,6],[44,8,44,10],[44,19,44,20],[47,2,47,6],[47,8,47,10],[47,19,47,20],[49,8,49,10],[51,8,51,10]]}
[]
[]
[]
[]
[null,null,null,null,null,null,"形式",null,null,null,null,"LDA7D-G/D/60C"]
[]
[]
[]
[]
[]
[]
[]
[null,null,null,null,null,null,null,null,null,null,null,"オープン価格★　屋内用"]
[null,null,null,null,null,null," 光の広がり",null,null,null,null,"広配光タイプ"]
[null,null,null,null,null,null," 光色",null,null,null,null,"昼光色"]
[null,null,null,null,null,null," 全光束（lm）",null,null,null,null,810]
[null,"●電球60W形相当の明るさ",null,null,null,null," 明るさの目安*1",null,null,null,null,"白熱電球60W形相当"]
[null,"●調光器対応",null,null,null,null," 定格消費電力（W）",null,null,null,null,7.3]
[null,"●電球のような広がる光",null,null,null,null," エネルギー消費効率（lm/W）",null,null,null,null,{"$f":"ROUNDDOWN(L16/L18,1)","v":110.9}]
[null,"●密閉形器具対応",null,null,null,null," 質量（g）",null,null,null,null,125]
[null,"●定格寿命40,000時間",null,null,null,null," 定格寿命（時間）*2",null,null,null,null,40000]
[null,null,null,null,null,null,"寸法\n（mm）",null,null,"外径",null,60]
[null,null,null,null,null,null,null,null,null,"全長",null,112]
[null,null,null,null,null,null," 断熱材施工器具対応",null,null,null,null,"×"]
[null,null,null,null,null,null," 密閉形器具対応",null,null,null,null,"○（保護機能付き）※1"]
[null,null,null,null,null,null,"＊ 断熱材施工器具や屋外では使用できません。"]
[]
[null,"※1 器具内の温度や周囲温度が高くなると保護回路が働き電力を抑えるため、明るさが低下する場合があります。 "]
[]
[null,"白熱電球とＬＥＤ電球の電気代の試算ができます。目安としてご活用ください。"]
[null,"　■試算条件を入力ください。"]
[null,null,"①使用灯数は？",null,null,null,null,null,null,null,1,null,null,"灯",null,null,"電力料金単価（税込）*3"]
[]
[null,null,"②年間使用日数は？",null,null,null,null,null,null,null,365,null,null,"日",null,null,null,22,null,"円/kWh"]
[]
[null,null,"③1日の点灯時間は？",null,null,null,null,null,null,null,6,null,null,"時間/日",null,null,"に設定しています。"]
[]
[null,null,"④年間点灯時間",null,null,null,null,null,null,null,{"$f":"K34*K36","v":2190},null,null,"時間/年",null,null,"＊ 任意に変更ができます。"]
[]
[null,null,"⑤ＬＥＤ電球の購入価格（税込）は？",null,null,null,null,null,null,null,null,null,null,"円/灯",null,"合計",{"$f":"K32*K40","v":0},null,null,"円"]
[null,null,null,"＊ イニシャルコストの回収期間を試算します。"]
[null,"　■試算結果"]
[null,"　●年間電気代*3",null,null,null,null,null,null,null,"年間電気代",null,null,null,null,null,null,null,null,null,"低減効果"]
[]
[null,null,"◆白熱電球60W形",null,null,null,null,"約",{"$f":"0.054*K32*K34*K36*R34","v":2601.7200000000003},null,null,"円",null,null,null,null,null,null,null,"基準"]
[null,null,"　（60Wタイプ54Wで試算*4）"]
[]
[null,null,"◆ＬＥＤ電球60W形",null,null,null,null,"約",{"$f":"0.0073*K32*K34*K36*R34","v":351.71399999999994},null,null,"円",null,null,null,null,null,null,null,{"$f":"(I45-I48)/I45","v":0.86481481481481481}]
[null,null,"　（60Wタイプ7.3Wで試算*5）"]
[null,null,null,null,null,null,null,"白熱電球60W形と比べ　約",{"$f":"I45-I48","v":2250.0060000000003},null,null,"円お得です！（年間電気代の差額）"]
[]
[null,"　●回収期間",null,null,null,null,null,"イニシャルコストを　約",{"$f":"IF(K40=0,\"\",ROUNDUP(K40*K32/(I45-I48),1))","v":""},null,null,"年で回収できます！"]
[null,null,null,"＊ イニシャルコストの回収期間は、ＬＥＤ電球の購入価格を年間電気代の差額で割り試算しています。"]
[null,null,null,"    試算条件によっては、「一般社団法人日本照明工業会ガイド111」 による適正交換時期や耐用の限度を超える場合が"]
[null,null,null,"    ありますが、寿命を保証するものではありませんので、予めご了承ください。"]
[]
[null,"＊1 明るさの目安は、JIS C 8158 : 2012 附属書B によります。"]
[null,"＊2 定格寿命は、LED単体で定められた温度設計に基づいて算出した設計寿命であり、使用環境・使用方法により寿命が異なります。"]
[null,"＊3 年間電気代は、電力料金22円/kWh（税込）で試算しています（一般社団法人日本照明工業会 技術資料114-1996による）。"]
[null,"＊4 当社白熱電球60W形（LW100V54W、定格消費電力54W、全光束810lm、定格寿命1,000時間）で試算(2011年12月販売終了）。"]
[null,"＊5 当社LED電球60W形（LDA7D-G/D/60C、定格消費電力7.3W、全光束810lm、定格寿命40,000時間）で試算。"]
[]
[]
[null,{"$f":"TOP!B61","v":"2017年 3月版"}]

{"sheet":"9LGD60C ","index":10,"n_rows":64,"n_cols":23,"rows_kept":64,"cut":false,"hidden":false,"merged":[[14,6,14,10],[14,11,14,21],[4,6,12,10],[4,11,4,21],[12,11,12,20],[13,6,13,10],[13,11,13,21],[15,6,15,10],[15,11,15,21],[16,6,16,10],[16,11,16,21],[17,6,17,10],[17,11,17,21],[18,6,18,10],[18,11,18,21],[19,6,19,10],[19,11,19,21],[20,6,20,10],[20,11,20,21],[31,10,31,12],[31,16,31,20],[21,6,22,8],[21,9,21,10],[21,11,21,21],[22,9,22,10],[22,11,22,21],[23,6,23,10],[23,11,23,21],[24,6,24,10],[24,11,24,21],[25,6,25,21],[26,6,26,21],[29,1,29,21],[33,10,33,12],[33,17,33,18],[35,10,35,12],[35,16,35,20],[37,10,37,12],[37,16,37,20],[39,10,39,12],[39,16,39,18],[42,19,42,20],[44,2,44,6],[44,8,44,10],[44,19,44,20],[47,2,47,6],[47,8,47,10],[47,19,47,20],[49,8,49,10],[51,8,51,10]]}
[]
[]
[]
[]
[null,null,null,null,null,null,"形式",null,null,null,null,"LDA9L-G/D/60C"]
[]
[]
[]
[]
[]
[]
[]
[null,null,null,null,null,null,null,null,null,null,null,"オープン価格★　屋内用"]
[null,null,null,null,null,null," 光の広がり",null,null,null,null,"広配光タイプ"]
[null,null,null,null,null,null," 光色",null,null,null,null,"電球色"]
[null,null,null,null,null,null," 全光束（lm）",null,null,null,null,810]
[null,"●電球60W形相当の明るさ",null,null,null,null," 明るさの目安*1",null,null,null,null,"白熱電球60W形相当"]
[null,"●調光器対応",null,null,null,null," 定格消費電力（W）",null,null,null,null,9]
[null,"●電球のような広がる光",null,null,null,null," エネルギー消費効率（lm/W）",null,null,null,null,{"$f":"ROUNDDOWN(L16/L18,1)","v":90}]
[null,"●密閉形器具対応",null,null,null,null," 質量（g）",null,null,null,null,125]
[null,"●定格寿命40,000時間",null,null,null,null," 定格寿命（時間）*2",null,null,null,null,40000]
[null,null,null,null,null,null,"寸法\n（mm）",null,null,"外径",null,60]
[null,null,null,null,null,null,null,null,null,"全長",null,112]
[null,null,null,null,null,null," 断熱材施工器具対応",null,null,null,null,"×"]
[null,null,null,null,null,null," 密閉形器具対応",null,null,null,null,"○（保護機能付き）※1"]
[null,null,null,null,null,null,"＊ 断熱材施工器具や屋外では使用できません。"]
[]
[null,"※1 器具内の温度や周囲温度が高くなると保護回路が働き電力を抑えるため、明るさが低下する場合があります。 "]
[]
[null,"白熱電球とＬＥＤ電球の電気代の試算ができます。目安としてご活用ください。"]
[null,"　■試算条件を入力ください。"]
[null,null,"①使用灯数は？",null,null,null,null,null,null,null,1,null,null,"灯",null,null,"電力料金単価（税込）*3"]
[]
[null,null,"②年間使用日数は？",null,null,null,null,null,null,null,365,null,null,"日",null,null,null,22,null,"円/kWh"]
[]
[null,null,"③1日の点灯時間は？",null,null,null,null,null,null,null,6,null,null,"時間/日",null,null,"に設定しています。"]
[]
[null,null,"④年間点灯時間",null,null,null,null,null,null,null,{"$f":"K34*K36","v":2190},null,null,"時間/年",null,null,"＊ 任意に変更ができます。"]
[]
[null,null,"⑤ＬＥＤ電球の購入価格（税込）は？",null,null,null,null,null,null,null,null,null,null,"円/灯",null,"合計",{"$f":"K32*K40","v":0},null,null,"円"]
[null,null,null,"＊ イニシャルコストの回収期間を試算します。"]
[null,"　■試算結果"]
[null,"　●年間電気代*3",null,null,null,null,null,null,null,"年間電気代",null,null,null,null,null,null,null,null,null,"低減効果"]
[]
[null,null,"◆白熱電球60W形",null,null,null,null,"約",{"$f":"0.054*K32*K34*K36*R34","v":2601.7200000000003},null,null,"円",null,null,null,null,null,null,null,"基準"]
[null,null,"　（60Wタイプ54Wで試算*4）"]
[]
[null,null,"◆ＬＥＤ電球60W形",null,null,null,null,"約",{"$f":"0.009*K32*K34*K36*R34","v":433.61999999999995},null,null,"円",null,null,null,null,null,null,null,{"$f":"(I45-I48)/I45","v":0.83333333333333337}]
[null,null,"　（60Wタイプ9.0Wで試算*5）"]
[null,null,null,null,null,null,null,"白熱電球60W形と比べ　約",{"$f":"I45-I48","v":2168.1000000000004},null,null,"円お得です！（年間電気代の差額）"]
[]
[null,"　●回収期間",null,null,null,null,null,"イニシャルコストを　約",{"$f":"IF(K40=0,\"\",ROUNDUP(K40*K32/(I45-I48),1))","v":""},null,null,"年で回収できます！"]
[null,null,null,"＊ イニシャルコストの回収期間は、ＬＥＤ電球の購入価格を年間電気代の差額で割り試算しています。"]
[null,null,null,"    試算条件によっては、「一般社団法人日本照明工業会ガイド111」 による適正交換時期や耐用の限度を超える場合が"]
[null,null,null,"    ありますが、寿命を保証するものではありませんので、予めご了承ください。"]
[]
[null,"＊1 明るさの目安は、JIS C 8158 : 2012 附属書B によります。"]
[null,"＊2 定格寿命は、LED単体で定められた温度設計に基づいて算出した設計寿命であり、使用環境・使用方法により寿命が異なります。"]
[null,"＊3 年間電気代は、電力料金22円/kWh（税込）で試算しています（一般社団法人日本照明工業会 技術資料114-1996による）。"]
[null,"＊4 当社白熱電球60W形（LW100V54W、定格消費電力54W、全光束810lm、定格寿命1,000時間）で試算(2011年12月販売終了）。"]
[null,"＊5 当社LED電球60W形（LDA9L-G/D/60C、定格消費電力9.0W、全光束810lm、定格寿命40,000時間）で試算。"]
[]
[]
[null,{"$f":"TOP!B61","v":"2017年 3月版"},null,null,null,null,null,null,null,null,null,null,null,null,null,null,null,null,null,null,null,null,"※1 器具内の温度や周囲温度が高くなると保護回路が働き電力を抑えるため、明るさが低下する場合があります。 "]

{"sheet":"4DG40F","index":11,"n_rows":64,"n_cols":20,"rows_kept":64,"cut":false,"hidden":false,"merged":[[4,11,4,21],[42,19,42,20],[18,6,18,10],[25,6,25,21],[19,6,19,10],[20,6,20,10],[4,6,12,10],[12,11,12,20],[33,17,33,18],[13,6,13,10],[39,16,39,18],[31,10,31,12],[16,6,16,10],[14,11,14,21],[20,11,20,21],[19,11,19,21],[51,8,51,10],[35,16,35,20],[33,10,33,12],[35,10,35,12],[29,1,29,21],[44,8,44,10],[39,10,39,12],[47,2,47,6],[47,19,47,20],[44,19,44,20],[44,2,44,6],[49,8,49,10],[47,8,47,10],[13,11,13,21],[14,6,14,10],[15,6,15,10],[16,11,16,21],[15,11,15,21],[18,11,18,21],[37,10,37,12],[37,16,37,20],[17,6,17,10],[24,6,24,10],[24,11,24,21],[23,11,23,21],[17,11,17,21],[23,6,23,10],[31,16,31,20],[26,6,26,21],[22,9,22,10],[21,6,22,8],[21,9,21,10],[22,11,22,21],[21,11,21,21]]}
[]
[]
[]
[]
[null,null,null,null,null,null,"形式",null,null,null,null,"LDA4D-G/40F"]
[]
[]
[]
[]
[]
[]
[]
[null,null,null,null,null,null,null,null,null,null,null,"オープン価格★　屋内用"]
[null,null,null,null,null,null," 光の広がり",null,null,null,null,"広配光タイプ"]
[null,null,null,null,null,null," 光色",null,null,null,null,"昼光色"]
[null,null,null,null,null,null," 全光束（lm）",null,null,null,null,485]
[null,"●電球40W形相当の明るさ",null,null,null,null," 明るさの目安*1",null,null,null,null,"白熱電球40W形相当"]
[null,"●広い範囲に光が広がる",null,null,null,null," 定格消費電力（W）",null,null,null,null,4.4000000000000004]
[null,"　広配光タイプ",null,null,null,null," エネルギー消費効率（lm/W）",null,null,null,null,{"$f":"ROUNDDOWN(L16/L18,1)","v":110.2}]
[null,"●密閉形器具対応",null,null,null,null," 質量（g）",null,null,null,null,95]
[null,"●定格寿命40,000時間",null,null,null,null," 定格寿命（時間）*2",null,null,null,null,40000]
[null,null,null,null,null,null,"寸法\n（mm）",null,null,"外径",null,60]
[null,null,null,null,null,null,null,null,null,"全長",null,112]
[null,null,null,null,null,null," 断熱材施工器具対応",null,null,null,null,"×"]
[null,null,null,null,null,null," 密閉形器具対応",null,null,null,null,"○（保護機能付き）※1"]
[null,null,null,null,null,null,"・ 調光（明るさが調整できる）機能の付いた照明器具には使用できません（100％点灯でも使用不可）。"]
[null,null,null,null,null,null,"・ 断熱材施工器具や屋外では使用できません。"]
[null,"※1 器具内の温度や周囲温度が高くなると保護回路が働き電力を抑えるため、明るさが低下する場合があります。 "]
[]
[null,"白熱電球とＬＥＤ電球の電気代の試算ができます。目安としてご活用ください。"]
[null,"　■試算条件を入力ください。"]
[null,null,"①使用灯数は？",null,null,null,null,null,null,null,1,null,null,"灯",null,null,"電力料金単価（税込）*3"]
[]
[null,null,"②年間使用日数は？",null,null,null,null,null,null,null,365,null,null,"日",null,null,null,22,null,"円/kWh"]
[]
[null,null,"③1日の点灯時間は？",null,null,null,null,null,null,null,6,null,null,"時間/日",null,null,"に設定しています。"]
[]
[null,null,"④年間点灯時間",null,null,null,null,null,null,null,{"$f":"K34*K36","v":2190},null,null,"時間/年",null,null,"＊ 任意に変更ができます。"]
[]
[null,null,"⑤ＬＥＤ電球の購入価格（税込）は？",null,null,null,null,null,null,null,null,null,null,"円/灯",null,"合計",{"$f":"K32*K40","v":0},null,null,"円"]
[null,null,null,"＊ イニシャルコストの回収期間を試算します。"]
[null,"　■試算結果"]
[null,"　●年間電気代*3",null,null,null,null,null,null,null,"年間電気代",null,null,null,null,null,null,null,null,null,"低減効果"]
[]
[null,null,"◆白熱電球40W形",null,null,null,null,"約",{"$f":"0.036*K32*K34*K36*R34","v":1734.4799999999998},null,null,"円",null,null,null,null,null,null,null,"基準"]
[null,null,"　（40Wタイプ36Wで試算*4）"]
[]
[null,null,"◆ＬＥＤ電球40W形",null,null,null,null,"約",{"$f":"$L$18*K32*K34*K36*R34/1000","v":211.99200000000002},null,null,"円",null,null,null,null,null,null,null,{"$f":"(I45-I48)/I45","v":0.87777777777777777}]
[null,null,"　（40Wタイプ4.4Wで試算*5）"]
[null,null,null,null,null,null,null,"白熱電球40W形と比べ　約",{"$f":"I45-I48","v":1522.4879999999998},null,null,"円お得です！（年間電気代の差額）"]
[]
[null,"　●回収期間",null,null,null,null,null,"イニシャルコストを　約",{"$f":"IF(K40=0,\"\",ROUNDUP(K40*K32/(I45-I48),1))","v":""},null,null,"年で回収できます！"]
[null,null,null,"＊ イニシャルコストの回収期間は、ＬＥＤ電球の購入価格を年間電気代の差額で割り試算しています。"]
[null,null,null,"    試算条件によっては、「一般社団法人日本照明工業会ガイド111」 による適正交換時期や耐用の限度を超える場合が"]
[null,null,null,"    ありますが、寿命を保証するものではありませんので、予めご了承ください。"]
[]
[null,"＊1 明るさの目安は、JIS C 8158 : 2012 附属書B によります。"]
[null,"＊2 定格寿命は、LED単体で定められた温度設計に基づいて算出した設計寿命であり、使用環境・使用方法により寿命が異なります。"]
[null,"＊3 年間電気代は、電力料金22円/kWh（税込）で試算しています（一般社団法人日本照明工業会 技術資料114-1996による）。"]
[null,"＊4 当社白熱電球40W形（LW100V36W、定格消費電力36W、全光束485lm、定格寿命1,000時間）で試算(2011年12月販売終了）。"]
[null,"＊5 当社LED電球40W形（LDA6D-G/40A、定格消費電力6.0W、全光束485lm、定格寿命40,000時間）で試算。"]
[]
[]
[null,{"$f":"TOP!B61","v":"2017年 3月版"}]

{"sheet":"5LG40F","index":12,"n_rows":64,"n_cols":20,"rows_kept":64,"cut":false,"hidden":false,"merged":[[22,9,22,10],[15,11,15,21],[14,6,14,10],[15,6,15,10],[16,6,16,10],[14,11,14,21],[18,6,18,10],[51,8,51,10],[35,16,35,20],[33,10,33,12],[35,10,35,12],[31,16,31,20],[37,16,37,20],[47,19,47,20],[49,8,49,10],[47,8,47,10],[44,8,44,10],[39,10,39,12],[4,11,4,21],[42,19,42,20],[44,19,44,20],[26,6,26,21],[37,10,37,12],[4,6,12,10],[12,11,12,20],[17,6,17,10],[13,6,13,10],[29,1,29,21],[33,17,33,18],[39,16,39,18],[31,10,31,12],[23,6,23,10],[24,6,24,10],[24,11,24,21],[25,6,25,21],[47,2,47,6],[44,2,44,6],[13,11,13,21],[17,11,17,21],[16,11,16,21],[23,11,23,21],[18,11,18,21],[22,11,22,21],[21,11,21,21],[20,11,20,21],[19,11,19,21],[19,6,19,10],[20,6,20,10],[21,6,22,8],[21,9,21,10]]}
[]
[]
[]
[]
[null,null,null,null,null,null,"形式",null,null,null,null,"LDA5L-G/40F"]
[]
[]
[]
[]
[]
[]
[]
[null,null,null,null,null,null,null,null,null,null,null,"オープン価格★　屋内用"]
[null,null,null,null,null,null," 光の広がり",null,null,null,null,"広配光タイプ"]
[null,null,null,null,null,null," 光色",null,null,null,null,"電球色"]
[null,null,null,null,null,null," 全光束（lm）",null,null,null,null,485]
[null,"●電球40W形相当の明るさ",null,null,null,null," 明るさの目安*1",null,null,null,null,"白熱電球40W形相当"]
[null,"●広い範囲に光が広がる",null,null,null,null," 定格消費電力（W）",null,null,null,null,4.9000000000000004]
[null,"　広配光タイプ",null,null,null,null," エネルギー消費効率（lm/W）",null,null,null,null,{"$f":"ROUNDDOWN(L16/L18,1)","v":98.9}]
[null,"●密閉形器具対応",null,null,null,null," 質量（g）",null,null,null,null,95]
[null,"●定格寿命40,000時間",null,null,null,null," 定格寿命（時間）*2",null,null,null,null,40000]
[null,null,null,null,null,null,"寸法\n（mm）",null,null,"外径",null,60]
[null,null,null,null,null,null,null,null,null,"全長",null,112]
[null,null,null,null,null,null," 断熱材施工器具対応",null,null,null,null,"×"]
[null,null,null,null,null,null," 密閉形器具対応",null,null,null,null,"○（保護機能付き）※1"]
[null,null,null,null,null,null,"･ 調光（明るさが調整できる）機能の付いた照明器具には使用できません（100％点灯でも使用不可）。"]
[null,null,null,null,null,null,"・ 断熱材施工器具や屋外では使用できません。"]
[null,"※1 器具内の温度や周囲温度が高くなると保護回路が働き電力を抑えるため、明るさが低下する場合があります。 "]
[]
[null,"白熱電球とＬＥＤ電球の電気代の試算ができます。目安としてご活用ください。"]
[null,"　■試算条件を入力ください。"]
[null,null,"①使用灯数は？",null,null,null,null,null,null,null,1,null,null,"灯",null,null,"電力料金単価（税込）*3"]
[]
[null,null,"②年間使用日数は？",null,null,null,null,null,null,null,365,null,null,"日",null,null,null,22,null,"円/kWh"]
[]
[null,null,"③1日の点灯時間は？",null,null,null,null,null,null,null,6,null,null,"時間/日",null,null,"に設定しています。"]
[]
[null,null,"④年間点灯時間",null,null,null,null,null,null,null,{"$f":"K34*K36","v":2190},null,null,"時間/年",null,null,"＊ 任意に変更ができます。"]
[]
[null,null,"⑤ＬＥＤ電球の購入価格（税込）は？",null,null,null,null,null,null,null,null,null,null,"円/灯",null,"合計",{"$f":"K32*K40","v":0},null,null,"円"]
[null,null,null,"＊ イニシャルコストの回収期間を試算します。"]
[null,"　■試算結果"]
[null,"　●年間電気代*3",null,null,null,null,null,null,null,"年間電気代",null,null,null,null,null,null,null,null,null,"低減効果"]
[]
[null,null,"◆白熱電球40W形",null,null,null,null,"約",{"$f":"0.036*K32*K34*K36*R34","v":1734.4799999999998},null,null,"円",null,null,null,null,null,null,null,"基準"]
[null,null,"　（40Wタイプ36Wで試算*4）"]
[]
[null,null,"◆ＬＥＤ電球40W形",null,null,null,null,"約",{"$f":"$L$18*K32*K34*K36*R34/1000","v":236.08200000000002},null,null,"円",null,null,null,null,null,null,null,{"$f":"(I45-I48)/I45","v":0.86388888888888882}]
[null,null,"　（40Wタイプ4.9Wで試算*5）"]
[null,null,null,null,null,null,null,"白熱電球40W形と比べ　約",{"$f":"I45-I48","v":1498.3979999999997},null,null,"円お得です！（年間電気代の差額）"]
[]
[null,"　●回収期間",null,null,null,null,null,"イニシャルコストを　約",{"$f":"IF(K40=0,\"\",ROUNDUP(K40*K32/(I45-I48),1))","v":""},null,null,"年で回収できます！"]
[null,null,null,"＊ イニシャルコストの回収期間は、ＬＥＤ電球の購入価格を年間電気代の差額で割り試算しています。"]
[null,null,null,"    試算条件によっては、「一般社団法人日本照明工業会ガイド111」 による適正交換時期や耐用の限度を超える場合が"]
[null,null,null,"    ありますが、寿命を保証するものではありませんので、予めご了承ください。"]
[]
[null,"＊1 明るさの目安は、JIS C 8158 : 2012 附属書B によります。"]
[null,"＊2 定格寿命は、LED単体で定められた温度設計に基づいて算出した設計寿命であり、使用環境・使用方法により寿命が異なります。"]
[null,"＊3 年間電気代は、電力料金22円/kWh（税込）で試算しています（一般社団法人日本照明工業会 技術資料114-1996による）。"]
[null,"＊4 当社白熱電球40W形（LW100V36W、定格消費電力36W、全光束485lm、定格寿命1,000時間）で試算(2011年12月販売終了）。"]
[null,"＊5 当社LED電球40W形（LDA7L-G/40A、定格消費電力6.9W、全光束485lm、定格寿命40,000時間）で試算。"]
[]
[]
[null,{"$f":"TOP!B61","v":"2017年 3月版"}]

{"sheet":"11DG100E","index":13,"n_rows":64,"n_cols":20,"rows_kept":64,"cut":false,"hidden":false,"merged":[[4,11,4,21],[42,19,42,20],[18,6,18,10],[25,6,25,21],[19,6,19,10],[20,6,20,10],[4,6,12,10],[12,11,12,20],[33,17,33,18],[13,6,13,10],[39,16,39,18],[31,10,31,12],[16,6,16,10],[14,11,14,21],[20,11,20,21],[19,11,19,21],[51,8,51,10],[35,16,35,20],[33,10,33,12],[35,10,35,12],[29,1,29,21],[44,8,44,10],[39,10,39,12],[47,2,47,6],[47,19,47,20],[44,19,44,20],[44,2,44,6],[49,8,49,10],[47,8,47,10],[13,11,13,21],[14,6,14,10],[15,6,15,10],[16,11,16,21],[15,11,15,21],[18,11,18,21],[37,10,37,12],[37,16,37,20],[17,6,17,10],[24,6,24,10],[24,11,24,21],[23,11,23,21],[17,11,17,21],[23,6,23,10],[31,16,31,20],[26,6,26,21],[22,9,22,10],[21,6,22,8],[21,9,21,10],[22,11,22,21],[21,11,21,21]]}
[]
[]
[]
[]
[null,null,null,null,null,null,"形式",null,null,null,null,"LDG11D-G/100E"]
[]
[]
[]
[]
[]
[]
[]
[null,null,null,null,null,null,null,null,null,null,null,"オープン価格★　屋内用"]
[null,null,null,null,null,null," 光の広がり",null,null,null,null,"広配光タイプ"]
[null,null,null,null,null,null," 光色",null,null,null,null,"昼光色"]
[null,null,null,null,null,null," 全光束（lm）",null,null,null,null,1380]
[null,"●ボール電球100W形相当",null,null,null,null," 明るさの目安*1",null,null,null,null,"ボール電球100W形相当"]
[null,"　の明るさ",null,null,null,null," 定格消費電力（W）",null,null,null,null,10.9]
[null,"●電球のような広がる光",null,null,null,null," エネルギー消費効率（lm/W）",null,null,null,null,{"$f":"ROUNDDOWN(L16/L18,1)","v":126.6}]
[null,"●密閉形器具対応",null,null,null,null," 質量（g）",null,null,null,null,190]
[null,"●定格寿命40,000時間",null,null,null,null," 定格寿命（時間）*2",null,null,null,null,40000]
[null,null,null,null,null,null,"寸法\n（mm）",null,null,"外径",null,95]
[null,null,null,null,null,null,null,null,null,"全長",null,127]
[null,null,null,null,null,null," 断熱材施工器具対応",null,null,null,null,"×"]
[null,null,null,null,null,null," 密閉形器具対応",null,null,null,null,"○（保護機能付き）※1"]
[null,null,null,null,null,null,"＊ 調光（明るさが調整できる）機能の付いた照明器具には使用できません（100％点灯でも使用不可）。"]
[null,null,null,null,null,null,"＊ 断熱材施工器具や屋外では使用できません。"]
[null,"※1 器具内の温度や周囲温度が高くなると保護回路が働き電力を抑えるため、明るさが低下する場合があります。 "]
[]
[null,"ボール電球とＬＥＤ電球の電気代の試算ができます。目安としてご活用ください。"]
[null,"　■試算条件を入力ください。"]
[null,null,"①使用灯数は？",null,null,null,null,null,null,null,1,null,null,"灯",null,null,"電力料金単価（税込）*3"]
[]
[null,null,"②年間使用日数は？",null,null,null,null,null,null,null,365,null,null,"日",null,null,null,22,null,"円/kWh"]
[]
[null,null,"③1日の点灯時間は？",null,null,null,null,null,null,null,6,null,null,"時間/日",null,null,"に設定しています。"]
[]
[null,null,"④年間点灯時間",null,null,null,null,null,null,null,{"$f":"K34*K36","v":2190},null,null,"時間/年",null,null,"＊ 任意に変更ができます。"]
[]
[null,null,"⑤ＬＥＤ電球の購入価格（税込）は？",null,null,null,null,null,null,null,null,null,null,"円/灯",null,"合計",{"$f":"K32*K40","v":0},null,null,"円"]
[null,null,null,"＊ イニシャルコストの回収期間を試算します。"]
[null,"　■試算結果"]
[null,"　●年間電気代*3",null,null,null,null,null,null,null,"年間電気代",null,null,null,null,null,null,null,null,null,"低減効果"]
[]
[null,null,"◆ボール電球100W形",null,null,null,null,"約",{"$f":"0.095*K32*K34*K36*R34","v":4577.0999999999995},null,null,"円",null,null,null,null,null,null,null,"基準"]
[null,null,"　（100Wタイプ95Wで試算*4）"]
[]
[null,null,"◆ＬＥＤ電球100W形",null,null,null,null,"約",{"$f":"$L$18*K32*K34*K36*R34/1000","v":525.16200000000003},null,null,"円",null,null,null,null,null,null,null,{"$f":"(I45-I48)/I45","v":0.88526315789473675}]
[null,null,"　（100Wタイプ10.9Wで試算*5）"]
[null,null,null,null,null,null,null,"ボール電球100W形と比べ　約",{"$f":"I45-I48","v":4051.9379999999992},null,null,"円お得です！（年間電気代の差額）"]
[]
[null,"　●回収期間",null,null,null,null,null,"イニシャルコストを　約",{"$f":"IF(K40=0,\"\",ROUNDUP(K40*K32/(I45-I48),1))","v":""},null,null,"年で回収できます！"]
[null,null,null,"＊ イニシャルコストの回収期間は、ＬＥＤ電球の購入価格を年間電気代の差額で割り試算しています。"]
[null,null,null,"    試算条件によっては、「一般社団法人日本照明工業会ガイド111」 による適正交換時期や耐用の限度を超える場合が"]
[null,null,null,"    ありますが、寿命を保証するものではありませんので、予めご了承ください。"]
[]
[null,"＊1 明るさの目安は、JIS C 8158 : 2012 附属書B によります。"]
[null,"＊2 定格寿命は、LED単体で定められた温度設計に基づいて算出した設計寿命であり、使用環境・使用方法により寿命が異なります。"]
[null,"＊3 年間電気代は、電力料金22円/kWh（税込）で試算しています（一般社団法人日本照明工業会 技術資料114-1996による）。"]
[null,"＊4 当社ボール電球100W形（GW100V95W95、定格消費電力95W、全光束1,340lm、定格寿命2,000時間）で試算(2011年12月販売終了）。"]
[null,"＊5 当社LED電球100W形（LDG11D-G/100E、定格消費電力10.9W、全光束1,380lm、定格寿命40,000時間）で試算。"]
[]
[]
[null,{"$f":"TOP!B61","v":"2017年 3月版"}]

{"sheet":"13LG100E","index":14,"n_rows":64,"n_cols":20,"rows_kept":64,"cut":false,"hidden":false,"merged":[[22,9,22,10],[15,11,15,21],[14,6,14,10],[15,6,15,10],[16,6,16,10],[14,11,14,21],[18,6,18,10],[51,8,51,10],[35,16,35,20],[33,10,33,12],[35,10,35,12],[31,16,31,20],[37,16,37,20],[47,19,47,20],[49,8,49,10],[47,8,47,10],[44,8,44,10],[39,10,39,12],[4,11,4,21],[42,19,42,20],[44,19,44,20],[26,6,26,21],[37,10,37,12],[4,6,12,10],[12,11,12,20],[17,6,17,10],[13,6,13,10],[29,1,29,21],[33,17,33,18],[39,16,39,18],[31,10,31,12],[23,6,23,10],[24,6,24,10],[24,11,24,21],[25,6,25,21],[47,2,47,6],[44,2,44,6],[13,11,13,21],[17,11,17,21],[16,11,16,21],[23,11,23,21],[18,11,18,21],[22,11,22,21],[21,11,21,21],[20,11,20,21],[19,11,19,21],[19,6,19,10],[20,6,20,10],[21,6,22,8],[21,9,21,10]]}
[]
[]
[]
[]
[null,null,null,null,null,null,"形式",null,null,null,null,"LDG13L-G/100E"]
[]
[]
[]
[]
[]
[]
[]
[null,null,null,null,null,null,null,null,null,null,null,"オープン価格★　屋内用"]
[null,null,null,null,null,null," 光の広がり",null,null,null,null,"広配光タイプ"]
[null,null,null,null,null,null," 光色",null,null,null,null,"電球色"]
[null,null,null,null,null,null," 全光束（lm）",null,null,null,null,1380]
[null,"●ボール電球100W形相当",null,null,null,null," 明るさの目安*1",null,null,null,null,"ボール電球100W形相当"]
[null,"　の明るさ",null,null,null,null," 定格消費電力（W）",null,null,null,null,12.6]
[null,"●電球のような広がる光",null,null,null,null," エネルギー消費効率（lm/W）",null,null,null,null,{"$f":"ROUNDDOWN(L16/L18,1)","v":109.5}]
[null,"●密閉形器具対応",null,null,null,null," 質量（g）",null,null,null,null,200]
[null,"●定格寿命40,000時間",null,null,null,null," 定格寿命（時間）*2",null,null,null,null,40000]
[null,null,null,null,null,null,"寸法\n（mm）",null,null,"外径",null,95]
[null,null,null,null,null,null,null,null,null,"全長",null,127]
[null,null,null,null,null,null," 断熱材施工器具対応",null,null,null,null,"×"]
[null,null,null,null,null,null," 密閉形器具対応",null,null,null,null,"○（保護機能付き）※1"]
[null,null,null,null,null,null,"＊ 調光（明るさが調整できる）機能の付いた照明器具には使用できません（100％点灯でも使用不可）。"]
[null,null,null,null,null,null,"＊ 断熱材施工器具や屋外では使用できません。"]
[null,"※1 器具内の温度や周囲温度が高くなると保護回路が働き電力を抑えるため、明るさが低下する場合があります。 "]
[]
[null,"ボール電球とＬＥＤ電球の電気代の試算ができます。目安としてご活用ください。"]
[null,"　■試算条件を入力ください。"]
[null,null,"①使用灯数は？",null,null,null,null,null,null,null,1,null,null,"灯",null,null,"電力料金単価（税込）*3"]
[]
[null,null,"②年間使用日数は？",null,null,null,null,null,null,null,365,null,null,"日",null,null,null,22,null,"円/kWh"]
[]
[null,null,"③1日の点灯時間は？",null,null,null,null,null,null,null,6,null,null,"時間/日",null,null,"に設定しています。"]
[]
[null,null,"④年間点灯時間",null,null,null,null,null,null,null,{"$f":"K34*K36","v":2190},null,null,"時間/年",null,null,"＊ 任意に変更ができます。"]
[]
[null,null,"⑤ＬＥＤ電球の購入価格（税込）は？",null,null,null,null,null,null,null,null,null,null,"円/灯",null,"合計",{"$f":"K32*K40","v":0},null,null,"円"]
[null,null,null,"＊ イニシャルコストの回収期間を試算します。"]
[null,"　■試算結果"]
[null,"　●年間電気代*3",null,null,null,null,null,null,null,"年間電気代",null,null,null,null,null,null,null,null,null,"低減効果"]
[]
[null,null,"◆ボール電球100W形",null,null,null,null,"約",{"$f":"0.095*K32*K34*K36*R34","v":4577.0999999999995},null,null,"円",null,null,null,null,null,null,null,"基準"]
[null,null,"　（100Wタイプ95Wで試算*4）"]
[]
[null,null,"◆ＬＥＤ電球100W形",null,null,null,null,"約",{"$f":"$L$18*K32*K34*K36*R34/1000","v":607.06799999999998},null,null,"円",null,null,null,null,null,null,null,{"$f":"(I45-I48)/I45","v":0.86736842105263157}]
[null,null,"　（100Wタイプ12.6Wで試算*5）"]
[null,null,null,null,null,null,null,"ボール電球100W形と比べ　約",{"$f":"I45-I48","v":3970.0319999999992},null,null,"円お得です！（年間電気代の差額）"]
[]
[null,"　●回収期間",null,null,null,null,null,"イニシャルコストを　約",{"$f":"IF(K40=0,\"\",ROUNDUP(K40*K32/(I45-I48),1))","v":""},null,null,"年で回収できます！"]
[null,null,null,"＊ イニシャルコストの回収期間は、ＬＥＤ電球の購入価格を年間電気代の差額で割り試算しています。"]
[null,null,null,"    試算条件によっては、「一般社団法人日本照明工業会ガイド111」 による適正交換時期や耐用の限度を超える場合が"]
[null,null,null,"    ありますが、寿命を保証するものではありませんので、予めご了承ください。"]
[]
[null,"＊1 明るさの目安は、JIS C 8158 : 2012 附属書B によります。"]
[null,"＊2 定格寿命は、LED単体で定められた温度設計に基づいて算出した設計寿命であり、使用環境・使用方法により寿命が異なります。"]
[null,"＊3 年間電気代は、電力料金22円/kWh（税込）で試算しています（一般社団法人日本照明工業会 技術資料114-1996による）。"]
[null,"＊4 当社ボール電球100W形（GW100V95W95、定格消費電力95W、全光束1,340lm、定格寿命2,000時間）で試算(2011年12月販売終了）。"]
[null,"＊5 当社LED電球100W形（LDG13L-G/100E、定格消費電力12.6W、全光束1,380lm、定格寿命40,000時間）で試算。"]
[]
[]
[null,{"$f":"TOP!B61","v":"2017年 3月版"}]

{"sheet":"8DG60HE","index":15,"n_rows":64,"n_cols":20,"rows_kept":64,"cut":false,"hidden":false,"merged":[[22,9,22,10],[15,11,15,21],[14,6,14,10],[15,6,15,10],[16,6,16,10],[14,11,14,21],[18,6,18,10],[51,8,51,10],[35,16,35,20],[33,10,33,12],[35,10,35,12],[31,16,31,20],[37,16,37,20],[47,19,47,20],[49,8,49,10],[47,8,47,10],[44,8,44,10],[39,10,39,12],[4,11,4,21],[42,19,42,20],[44,19,44,20],[26,6,26,21],[37,10,37,12],[4,6,12,10],[12,11,12,20],[17,6,17,10],[13,6,13,10],[29,1,29,21],[33,17,33,18],[39,16,39,18],[31,10,31,12],[23,6,23,10],[24,6,24,10],[24,11,24,21],[25,6,25,21],[47,2,47,6],[44,2,44,6],[13,11,13,21],[17,11,17,21],[16,11,16,21],[23,11,23,21],[18,11,18,21],[22,11,22,21],[21,11,21,21],[20,11,20,21],[19,11,19,21],[19,6,19,10],[20,6,20,10],[21,6,22,8],[21,9,21,10]]}
[]
[]
[]
[]
[null,null,null,null,null,null,"形式",null,null,null,null,"LDG8D-G/60HE"]
[]
[]
[]
[]
[]
[]
[]
[null,null,null,null,null,null,null,null,null,null,null,"オープン価格★　屋内用"]
[null,null,null,null,null,null," 光の広がり",null,null,null,null,"広配光タイプ"]
[null,null,null,null,null,null," 光色",null,null,null,null,"昼光色"]
[null,null,null,null,null,null," 全光束（lm）",null,null,null,null,840]
[null,"●ボール電球60W形相当",null,null,null,null," 明るさの目安*1",null,null,null,null,"ボール電球60W形相当"]
[null,"　の明るさ",null,null,null,null," 定格消費電力（W）",null,null,null,null,7.6]
[null,"●電球のような広がる光",null,null,null,null," エネルギー消費効率（lm/W）",null,null,null,null,{"$f":"ROUNDDOWN(L16/L18,1)","v":110.5}]
[null,"●密閉形器具対応",null,null,null,null," 質量（g）",null,null,null,null,190]
[null,"●定格寿命40,000時間",null,null,null,null," 定格寿命（時間）*2",null,null,null,null,40000]
[null,null,null,null,null,null,"寸法\n（mm）",null,null,"外径",null,95]
[null,null,null,null,null,null,null,null,null,"全長",null,127]
[null,null,null,null,null,null," 断熱材施工器具対応",null,null,null,null,"×"]
[null,null,null,null,null,null," 密閉形器具対応",null,null,null,null,"○（保護機能付き）※1"]
[null,null,null,null,null,null,"＊ 調光（明るさが調整できる）機能の付いた照明器具には使用できません（100％点灯でも使用不可）。"]
[null,null,null,null,null,null,"＊ 断熱材施工器具や屋外では使用できません。"]
[null,"※1 器具内の温度や周囲温度が高くなると保護回路が働き電力を抑えるため、明るさが低下する場合があります。 "]
[]
[null,"ボール電球とＬＥＤ電球の電気代の試算ができます。目安としてご活用ください。"]
[null,"　■試算条件を入力ください。"]
[null,null,"①使用灯数は？",null,null,null,null,null,null,null,1,null,null,"灯",null,null,"電力料金単価（税込）*3"]
[]
[null,null,"②年間使用日数は？",null,null,null,null,null,null,null,365,null,null,"日",null,null,null,22,null,"円/kWh"]
[]
[null,null,"③1日の点灯時間は？",null,null,null,null,null,null,null,6,null,null,"時間/日",null,null,"に設定しています。"]
[]
[null,null,"④年間点灯時間",null,null,null,null,null,null,null,{"$f":"K34*K36","v":2190},null,null,"時間/年",null,null,"＊ 任意に変更ができます。"]
[]
[null,null,"⑤ＬＥＤ電球の購入価格（税込）は？",null,null,null,null,null,null,null,null,null,null,"円/灯",null,"合計",{"$f":"K32*K40","v":0},null,null,"円"]
[null,null,null,"＊ イニシャルコストの回収期間を試算します。"]
[null,"　■試算結果"]
[null,"　●年間電気代*3",null,null,null,null,null,null,null,"年間電気代",null,null,null,null,null,null,null,null,null,"低減効果"]
[]
[null,null,"◆ボール電球60W形",null,null,null,null,"約",{"$f":"0.057*K32*K34*K36*R34","v":2746.2599999999998},null,null,"円",null,null,null,null,null,null,null,"基準"]
[null,null,"　（60Wタイプ57Wで試算*4）"]
[]
[null,null,"◆ＬＥＤ電球60W形",null,null,null,null,"約",{"$f":"$L$18*K32*K34*K36*R34/1000","v":366.16800000000001},null,null,"円",null,null,null,null,null,null,null,{"$f":"(I45-I48)/I45","v":0.86666666666666659}]
[null,null,"　（60Wタイプ7.6Wで試算*5）"]
[null,null,null,null,null,null,null,"ボール電球60W形と比べ　約",{"$f":"I45-I48","v":2380.0919999999996},null,null,"円お得です！（年間電気代の差額）"]
[]
[null,"　●回収期間",null,null,null,null,null,"イニシャルコストを　約",{"$f":"IF(K40=0,\"\",ROUNDUP(K40*K32/(I45-I48),1))","v":""},null,null,"年で回収できます！"]
[null,null,null,"＊ イニシャルコストの回収期間は、ＬＥＤ電球の購入価格を年間電気代の差額で割り試算しています。"]
[null,null,null,"    試算条件によっては、「一般社団法人日本照明工業会ガイド111」 による適正交換時期や耐用の限度を超える場合が"]
[null,null,null,"    ありますが、寿命を保証するものではありませんので、予めご了承ください。"]
[]
[null,"＊1 明るさの目安は、JIS C 8158 : 2012 附属書B によります。"]
[null,"＊2 定格寿命は、LED単体で定められた温度設計に基づいて算出した設計寿命であり、使用環境・使用方法により寿命が異なります。"]
[null,"＊3 年間電気代は、電力料金22円/kWh（税込）で試算しています（一般社団法人日本照明工業会 技術資料114-1996による）。"]
[null,"＊4 当社ボール電球60W形（GW100V57W95、定格消費電力57W、全光束725lm、定格寿命2,000時間）で試算(2011年12月販売終了）。"]
[null,"＊5 当社LED電球60W形（LDG8D-G/80HC、定格消費電力7.6W、全光束840lm、定格寿命40,000時間）で試算。"]
[]
[]
[null,{"$f":"TOP!B61","v":"2017年 3月版"}]

{"sheet":"8LG60HE","index":16,"n_rows":64,"n_cols":20,"rows_kept":64,"cut":false,"hidden":false,"merged":[[4,11,4,21],[42,19,42,20],[18,6,18,10],[25,6,25,21],[19,6,19,10],[20,6,20,10],[4,6,12,10],[12,11,12,20],[33,17,33,18],[13,6,13,10],[39,16,39,18],[31,10,31,12],[16,6,16,10],[14,11,14,21],[20,11,20,21],[19,11,19,21],[51,8,51,10],[35,16,35,20],[33,10,33,12],[35,10,35,12],[29,1,29,21],[44,8,44,10],[39,10,39,12],[47,2,47,6],[47,19,47,20],[44,19,44,20],[44,2,44,6],[49,8,49,10],[47,8,47,10],[13,11,13,21],[14,6,14,10],[15,6,15,10],[16,11,16,21],[15,11,15,21],[18,11,18,21],[37,10,37,12],[37,16,37,20],[17,6,17,10],[24,6,24,10],[24,11,24,21],[23,11,23,21],[17,11,17,21],[23,6,23,10],[31,16,31,20],[26,6,26,21],[22,9,22,10],[21,6,22,8],[21,9,21,10],[22,11,22,21],[21,11,21,21]]}
[]
[]
[]
[]
[null,null,null,null,null,null,"形式",null,null,null,null,"LDG8L-G/60HE"]
[]
[]
[]
[]
[]
[]
[]
[null,null,null,null,null,null,null,null,null,null,null,"オープン価格★　屋内用"]
[null,null,null,null,null,null," 光の広がり",null,null,null,null,"広配光タイプ"]
[null,null,null,null,null,null," 光色",null,null,null,null,"電球色"]
[null,null,null,null,null,null," 全光束（lm）",null,null,null,null,840]
[null,"●ボール電球60W形相当",null,null,null,null," 明るさの目安*1",null,null,null,null,"ボール電球60W形相当"]
[null,"　の明るさ",null,null,null,null," 定格消費電力（W）",null,null,null,null,8.3000000000000007]
[null,"●電球のような広がる光",null,null,null,null," エネルギー消費効率（lm/W）",null,null,null,null,{"$f":"ROUNDDOWN(L16/L18,1)","v":101.2}]
[null,"●密閉形器具対応",null,null,null,null," 質量（g）",null,null,null,null,190]
[null,"●定格寿命40,000時間",null,null,null,null," 定格寿命（時間）*2",null,null,null,null,40000]
[null,null,null,null,null,null,"寸法\n（mm）",null,null,"外径",null,95]
[null,null,null,null,null,null,null,null,null,"全長",null,127]
[null,null,null,null,null,null," 断熱材施工器具対応",null,null,null,null,"×"]
[null,null,null,null,null,null," 密閉形器具対応",null,null,null,null,"○（保護機能付き）※1"]
[null,null,null,null,null,null,"＊ 調光（明るさが調整できる）機能の付いた照明器具には使用できません（100％点灯でも使用不可）。"]
[null,null,null,null,null,null,"＊ 断熱材施工器具や屋外では使用できません。"]
[null,"※1 器具内の温度や周囲温度が高くなると保護回路が働き電力を抑えるため、明るさが低下する場合があります。 "]
[]
[null,"ボール電球とＬＥＤ電球の電気代の試算ができます。目安としてご活用ください。"]
[null,"　■試算条件を入力ください。"]
[null,null,"①使用灯数は？",null,null,null,null,null,null,null,1,null,null,"灯",null,null,"電力料金単価（税込）*3"]
[]
[null,null,"②年間使用日数は？",null,null,null,null,null,null,null,365,null,null,"日",null,null,null,22,null,"円/kWh"]
[]
[null,null,"③1日の点灯時間は？",null,null,null,null,null,null,null,6,null,null,"時間/日",null,null,"に設定しています。"]
[]
[null,null,"④年間点灯時間",null,null,null,null,null,null,null,{"$f":"K34*K36","v":2190},null,null,"時間/年",null,null,"＊ 任意に変更ができます。"]
[]
[null,null,"⑤ＬＥＤ電球の購入価格（税込）は？",null,null,null,null,null,null,null,null,null,null,"円/灯",null,"合計",{"$f":"K32*K40","v":0},null,null,"円"]
[null,null,null,"＊ イニシャルコストの回収期間を試算します。"]
[null,"　■試算結果"]
[null,"　●年間電気代*3",null,null,null,null,null,null,null,"年間電気代",null,null,null,null,null,null,null,null,null,"低減効果"]
[]
[null,null,"◆ボール電球60W形",null,null,null,null,"約",{"$f":"0.057*K32*K34*K36*R34","v":2746.2599999999998},null,null,"円",null,null,null,null,null,null,null,"基準"]
[null,null,"　（60Wタイプ57Wで試算*4）"]
[]
[null,null,"◆ＬＥＤ電球60W形",null,null,null,null,"約",{"$f":"$L$18*K32*K34*K36*R34/1000","v":399.89400000000006},null,null,"円",null,null,null,null,null,null,null,{"$f":"(I45-I48)/I45","v":0.85438596491228058}]
[null,null,"　（60Wタイプ8.3Wで試算*5）"]
[null,null,null,null,null,null,null,"ボール電球60W形と比べ　約",{"$f":"I45-I48","v":2346.3659999999995},null,null,"円お得です！（年間電気代の差額）"]
[]
[null,"　●回収期間",null,null,null,null,null,"イニシャルコストを　約",{"$f":"IF(K40=0,\"\",ROUNDUP(K40*K32/(I45-I48),1))","v":""},null,null,"年で回収できます！"]
[null,null,null,"＊ イニシャルコストの回収期間は、ＬＥＤ電球の購入価格を年間電気代の差額で割り試算しています。"]
[null,null,null,"    試算条件によっては、「一般社団法人日本照明工業会ガイド111」 による適正交換時期や耐用の限度を超える場合が"]
[null,null,null,"    ありますが、寿命を保証するものではありませんので、予めご了承ください。"]
[]
[null,"＊1 明るさの目安は、JIS C 8158 : 2012 附属書B によります。"]
[null,"＊2 定格寿命は、LED単体で定められた温度設計に基づいて算出した設計寿命であり、使用環境・使用方法により寿命が異なります。"]
[null,"＊3 年間電気代は、電力料金22円/kWh（税込）で試算しています（一般社団法人日本照明工業会 技術資料114-1996による）。"]
[null,"＊4 当社ボール電球60W形（GW100V57W95、定格消費電力57W、全光束725lm、定格寿命2,000時間）で試算(2011年12月販売終了）。"]
[null,"＊5 当社LED電球60W形（LDG8L-G/60HE、定格消費電力8.3W、全光束840lm、定格寿命40,000時間）で試算。"]
[]
[]
[null,{"$f":"TOP!B61","v":"2017年 3月版"}]

{"sheet":"6DGE17S60E","index":17,"n_rows":64,"n_cols":20,"rows_kept":64,"cut":false,"hidden":false,"merged":[[14,6,14,10],[14,11,14,21],[4,6,12,10],[4,11,4,21],[12,11,12,20],[13,6,13,10],[13,11,13,21],[15,6,15,10],[15,11,15,21],[16,6,16,10],[16,11,16,21],[17,6,17,10],[17,11,17,21],[18,6,18,10],[18,11,18,21],[19,6,19,10],[19,11,19,21],[20,6,20,10],[20,11,20,21],[31,10,31,12],[31,16,31,20],[21,6,22,8],[21,9,21,10],[21,11,21,21],[22,9,22,10],[22,11,22,21],[23,6,23,10],[23,11,23,21],[24,6,24,10],[24,11,24,21],[25,6,25,21],[26,6,26,21],[29,1,29,21],[33,10,33,12],[33,17,33,18],[35,10,35,12],[35,16,35,20],[37,10,37,12],[37,16,37,20],[39,10,39,12],[39,16,39,18],[42,19,42,20],[44,2,44,6],[44,8,44,10],[44,19,44,20],[47,2,47,6],[47,8,47,10],[47,19,47,20],[49,8,49,10],[51,8,51,10]]}
[]
[]
[]
[]
[null,null,null,null,null,null,"形式",null,null,null,null,"LDA6D-G-E17/S/60E"]
[]
[]
[]
[]
[]
[]
[]
[null,null,null,null,null,null,null,null,null,null,null,"オープン価格★　屋内用"]
[null,null,null,null,null,null," 光の広がり",null,null,null,null,"広配光タイプ"]
[null,null,null,null,null,null," 光色",null,null,null,null,"昼光色"]
[null,null,null,null,null,null," 全光束（lm）",null,null,null,null,760]
[null,"●小形電球60W形相当",null,null,null,null," 明るさの目安*1",null,null,null,null,"小形電球60W形相当"]
[null,"　 の明るさ",null,null,null,null," 定格消費電力（W）",null,null,null,null,5.8]
[null,"●断熱材施工器具対応",null,null,null,null," エネルギー消費効率（lm/W）",null,null,null,null,{"$f":"ROUNDDOWN(L16/L18,1)","v":131}]
[null,"●高効率で広がる光",null,null,null,null," 質量（g）",null,null,null,null,55]
[null,"●密閉形器具対応",null,null,null,null," 定格寿命（時間）*2",null,null,null,null,40000]
[null,"●定格寿命40,000時間",null,null,null,null,"寸法\n（mm）",null,null,"外径",null,40]
[null,null,null,null,null,null,null,null,null,"全長",null,77]
[null,null,null,null,null,null," 断熱材施工器具対応",null,null,null,null,"○（保護機能付き）※1"]
[null,null,null,null,null,null," 密閉形器具対応",null,null,null,null,"○（保護機能付き）※1"]
[null,null,null,null,null,null,"＊ 調光（明るさが調整できる）機能の付いた照明器具には使用できません（100％点灯でも使用不可）。"]
[null,null,null,null,null,null,"＊ 屋外では使用できません。"]
[null,"※1 器具内の温度や周囲温度が高くなると保護回路が働き電力を抑えるため、明るさが低下する場合があります。 "]
[]
[null,"小形電球とＬＥＤ電球の電気代の試算ができます。目安としてご活用ください。"]
[null,"　■試算条件を入力ください。"]
[null,null,"①使用灯数は？",null,null,null,null,null,null,null,1,null,null,"灯",null,null,"電力料金単価（税込）*3"]
[]
[null,null,"②年間使用日数は？",null,null,null,null,null,null,null,365,null,null,"日",null,null,null,22,null,"円/kWh"]
[]
[null,null,"③1日の点灯時間は？",null,null,null,null,null,null,null,6,null,null,"時間/日",null,null,"に設定しています。"]
[]
[null,null,"④年間点灯時間",null,null,null,null,null,null,null,{"$f":"K34*K36","v":2190},null,null,"時間/年",null,null,"＊ 任意に変更ができます。"]
[]
[null,null,"⑤ＬＥＤ電球の購入価格（税込）は？",null,null,null,null,null,null,null,null,null,null,"円/灯",null,"合計",{"$f":"K32*K40","v":0},null,null,"円"]
[null,null,null,"＊ イニシャルコストの回収期間を試算します。"]
[null,"　■試算結果"]
[null,"　●年間電気代*3",null,null,null,null,null,null,null,"年間電気代",null,null,null,null,null,null,null,null,null,"低減効果"]
[]
[null,null,"◆小形電球60W形",null,null,null,null,"約",{"$f":"0.054*K32*K34*K36*R34","v":2601.7200000000003},null,null,"円",null,null,null,null,null,null,null,"基準"]
[null,null,"　（60Wタイプ54Wで試算*4）"]
[]
[null,null,"◆ＬＥＤ電球60W形",null,null,null,null,"約",{"$f":"$L$18*K32*K34*K36*R34/1000","v":279.44400000000002},null,null,"円",null,null,null,null,null,null,null,{"$f":"(I45-I48)/I45","v":0.8925925925925926}]
[null,null,{"$f":"CONCATENATE(\"(60Wタイプ\",L18,\"Wで試算*5)\")","v":"(60Wタイプ5.8Wで試算*5)"}]
[null,null,null,null,null,null,null,"小形電球60W形と比べ　約",{"$f":"I45-I48","v":2322.2760000000003},null,null,"円お得です！（年間電気代の差額） "]
[]
[null,"　●回収期間",null,null,null,null,null,"イニシャルコストを　約",{"$f":"IF(K40=0,\"\",ROUNDUP(K40*K32/(I45-I48),1))","v":""},null,null,"年で回収できます！"]
[null,null,null,"＊ イニシャルコストの回収期間は、ＬＥＤ電球の購入価格を年間電気代の差額で割り試算しています。"]
[null,null,null,"    試算条件によっては、「一般社団法人日本照明工業会ガイド111」 による適正交換時期や耐用の限度を超える場合が"]
[null,null,null,"    ありますが、寿命を保証するものではありませんので、予めご了承ください。"]
[]
[null,"＊1 明るさの目安は、JIS C 8158 : 2012 附属書B によります。"]
[null,"＊2 定格寿命は、LED単体で定められた温度設計に基づいて算出した設計寿命であり、使用環境・使用方法により寿命が異なります。"]
[null,"＊3 年間電気代は、電力料金22円/kWh（税込）で試算しています（一般社団法人日本照明工業会 技術資料114-1996による）。"]
[null,"＊4 当社小形電球40W形（KR100/110V54WW、定格消費電力54W、全光束760lm、定格寿命2,000時間）で試算。"]
[null,{"$f":"CONCATENATE(\"＊5 当社LED電球60W形（\",L5,\"、定格消費電力\",L18,\"W、全光束\",L16,\"lm、定格寿命\",L21,\"時間）で試算。\")","v":"＊5 当社LED電球60W形（LDA6D-G-E17/S/60E、定格消費電力5.8W、全光束760lm、定格寿命40000時間）で試算。"}]
[]
[]
[null,{"$f":"TOP!B61","v":"2017年 3月版"}]

{"sheet":"7LGE17S60E ","index":18,"n_rows":64,"n_cols":20,"rows_kept":64,"cut":false,"hidden":false,"merged":[[14,6,14,10],[14,11,14,21],[4,6,12,10],[4,11,4,21],[12,11,12,20],[13,6,13,10],[13,11,13,21],[15,6,15,10],[15,11,15,21],[16,6,16,10],[16,11,16,21],[17,6,17,10],[17,11,17,21],[18,6,18,10],[18,11,18,21],[19,6,19,10],[19,11,19,21],[20,6,20,10],[20,11,20,21],[31,10,31,12],[31,16,31,20],[21,6,22,8],[21,9,21,10],[21,11,21,21],[22,9,22,10],[22,11,22,21],[23,6,23,10],[23,11,23,21],[24,6,24,10],[24,11,24,21],[25,6,25,21],[26,6,26,21],[29,1,29,21],[33,10,33,12],[33,17,33,18],[35,10,35,12],[35,16,35,20],[37,10,37,12],[37,16,37,20],[39,10,39,12],[39,16,39,18],[42,19,42,20],[44,2,44,6],[44,8,44,10],[44,19,44,20],[47,2,47,6],[47,8,47,10],[47,19,47,20],[49,8,49,10],[51,8,51,10]]}
[]
[]
[]
[]
[null,null,null,null,null,null,"形式",null,null,null,null,"LDA7L-G-E17/S/60E"]
[]
[]
[]
[]
[]
[]
[]
[null,null,null,null,null,null,null,null,null,null,null,"オープン価格★　屋内用"]
[null,null,null,null,null,null," 光の広がり",null,null,null,null,"広配光タイプ"]
[null,null,null,null,null,null," 光色",null,null,null,null,"電球色"]
[null,null,null,null,null,null," 全光束（lm）",null,null,null,null,760]
[null,"●小形電球60W形相当",null,null,null,null," 明るさの目安*1",null,null,null,null,"小形電球60W形相当"]
[null,"　 の明るさ",null,null,null,null," 定格消費電力（W）",null,null,null,null,6.7]
[null,"●断熱材施工器具対応",null,null,null,null," エネルギー消費効率（lm/W）",null,null,null,null,{"$f":"ROUNDDOWN(L16/L18,1)","v":113.4}]
[null,"●高効率で広がる光",null,null,null,null," 質量（g）",null,null,null,null,55]
[null,"●密閉形器具対応",null,null,null,null," 定格寿命（時間）*2",null,null,null,null,40000]
[null,"●定格寿命40,000時間",null,null,null,null,"寸法\n（mm）",null,null,"外径",null,40]
[null,null,null,null,null,null,null,null,null,"全長",null,77]
[null,null,null,null,null,null," 断熱材施工器具対応",null,null,null,null,"○（保護機能付き）※1"]
[null,null,null,null,null,null," 密閉形器具対応",null,null,null,null,"○（保護機能付き）※1"]
[null,null,null,null,null,null,"＊ 調光（明るさが調整できる）機能の付いた照明器具には使用できません（100％点灯でも使用不可）。"]
[null,null,null,null,null,null,"＊ 屋外では使用できません。"]
[null,"※1 器具内の温度や周囲温度が高くなると保護回路が働き電力を抑えるため、明るさが低下する場合があります。 "]
[]
[null,"小形電球とＬＥＤ電球の電気代の試算ができます。目安としてご活用ください。"]
[null,"　■試算条件を入力ください。"]
[null,null,"①使用灯数は？",null,null,null,null,null,null,null,1,null,null,"灯",null,null,"電力料金単価（税込）*3"]
[]
[null,null,"②年間使用日数は？",null,null,null,null,null,null,null,365,null,null,"日",null,null,null,22,null,"円/kWh"]
[]
[null,null,"③1日の点灯時間は？",null,null,null,null,null,null,null,6,null,null,"時間/日",null,null,"に設定しています。"]
[]
[null,null,"④年間点灯時間",null,null,null,null,null,null,null,{"$f":"K34*K36","v":2190},null,null,"時間/年",null,null,"＊ 任意に変更ができます。"]
[]
[null,null,"⑤ＬＥＤ電球の購入価格（税込）は？",null,null,null,null,null,null,null,null,null,null,"円/灯",null,"合計",{"$f":"K32*K40","v":0},null,null,"円"]
[null,null,null,"＊ イニシャルコストの回収期間を試算します。"]
[null,"　■試算結果"]
[null,"　●年間電気代*3",null,null,null,null,null,null,null,"年間電気代",null,null,null,null,null,null,null,null,null,"低減効果"]
[]
[null,null,"◆小形電球60W形",null,null,null,null,"約",{"$f":"0.054*K32*K34*K36*R34","v":2601.7200000000003},null,null,"円",null,null,null,null,null,null,null,"基準"]
[null,null,"　（60Wタイプ54Wで試算*4）"]
[]
[null,null,"◆ＬＥＤ電球60W形",null,null,null,null,"約",{"$f":"$L$18*K32*K34*K36*R34/1000","v":322.80599999999998},null,null,"円",null,null,null,null,null,null,null,{"$f":"(I45-I48)/I45","v":0.87592592592592589}]
[null,null,{"$f":"CONCATENATE(\"(60Wタイプ\",L18,\"Wで試算*5)\")","v":"(60Wタイプ6.7Wで試算*5)"}]
[null,null,null,null,null,null,null,"小形電球60W形と比べ　約",{"$f":"I45-I48","v":2278.9140000000002},null,null,"円お得です！（年間電気代の差額） "]
[]
[null,"　●回収期間",null,null,null,null,null,"イニシャルコストを　約",{"$f":"IF(K40=0,\"\",ROUNDUP(K40*K32/(I45-I48),1))","v":""},null,null,"年で回収できます！"]
[null,null,null,"＊ イニシャルコストの回収期間は、ＬＥＤ電球の購入価格を年間電気代の差額で割り試算しています。"]
[null,null,null,"    試算条件によっては、「一般社団法人日本照明工業会ガイド111」 による適正交換時期や耐用の限度を超える場合が"]
[null,null,null,"    ありますが、寿命を保証するものではありませんので、予めご了承ください。"]
[]
[null,"＊1 明るさの目安は、JIS C 8158 : 2012 附属書B によります。"]
[null,"＊2 定格寿命は、LED単体で定められた温度設計に基づいて算出した設計寿命であり、使用環境・使用方法により寿命が異なります。"]
[null,"＊3 年間電気代は、電力料金22円/kWh（税込）で試算しています（一般社団法人日本照明工業会 技術資料114-1996による）。"]
[null,"＊4 当社小形電球40W形（KR100/110V54WW、定格消費電力54W、全光束760lm、定格寿命2,000時間）で試算。"]
[null,{"$f":"CONCATENATE(\"＊5 当社LED電球60W形（\",L5,\"、定格消費電力\",L18,\"W、全光束\",L16,\"lm、定格寿命\",L21,\"時間）で試算。\")","v":"＊5 当社LED電球60W形（LDA7L-G-E17/S/60E、定格消費電力6.7W、全光束760lm、定格寿命40000時間）で試算。"}]
[]
[]
[null,{"$f":"TOP!B61","v":"2017年 3月版"}]

{"sheet":"5DGE17S50C","index":19,"n_rows":64,"n_cols":20,"rows_kept":64,"cut":false,"hidden":false,"merged":[[22,9,22,10],[15,11,15,21],[14,6,14,10],[15,6,15,10],[16,6,16,10],[14,11,14,21],[18,6,18,10],[51,8,51,10],[35,16,35,20],[33,10,33,12],[35,10,35,12],[31,16,31,20],[37,16,37,20],[47,19,47,20],[49,8,49,10],[47,8,47,10],[44,8,44,10],[39,10,39,12],[4,11,4,21],[42,19,42,20],[44,19,44,20],[26,6,26,21],[37,10,37,12],[4,6,12,10],[12,11,12,20],[17,6,17,10],[13,6,13,10],[29,1,29,21],[33,17,33,18],[39,16,39,18],[31,10,31,12],[23,6,23,10],[24,6,24,10],[24,11,24,21],[25,6,25,21],[47,2,47,6],[44,2,44,6],[13,11,13,21],[17,11,17,21],[16,11,16,21],[23,11,23,21],[18,11,18,21],[22,11,22,21],[21,11,21,21],[20,11,20,21],[19,11,19,21],[19,6,19,10],[20,6,20,10],[21,6,22,8],[21,9,21,10]]}
[]
[]
[]
[]
[null,null,null,null,null,null,"形式",null,null,null,null,"LDA5D-G-E17/S/50C"]
[]
[]
[]
[]
[]
[]
[]
[null,null,null,null,null,null,null,null,null,null,null,"オープン価格★　屋内用"]
[null,null,null,null,null,null," 光の広がり",null,null,null,null,"広配光タイプ"]
[null,null,null,null,null,null," 光色",null,null,null,null,"昼光色"]
[null,null,null,null,null,null," 全光束（lm）",null,null,null,null,600]
[null,"●小形電球50W形相当",null,null,null,null," 明るさの目安*1",null,null,null,null,"小形電球50W形相当"]
[null,"　 の明るさ",null,null,null,null," 定格消費電力（W）",null,null,null,null,5.2]
[null,"●断熱材施工器具対応",null,null,null,null," エネルギー消費効率（lm/W）",null,null,null,null,{"$f":"ROUNDDOWN(L16/L18,1)","v":115.3}]
[null,"●高効率で広がる光",null,null,null,null," 質量（g）",null,null,null,null,45]
[null,"●密閉形器具対応",null,null,null,null," 定格寿命（時間）*2",null,null,null,null,40000]
[null,"●定格寿命40,000時間",null,null,null,null,"寸法\n（mm）",null,null,"外径",null,35]
[null,null,null,null,null,null,null,null,null,"全長",null,74]
[null,null,null,null,null,null," 断熱材施工器具対応",null,null,null,null,"○（保護機能付き）※1"]
[null,null,null,null,null,null," 密閉形器具対応",null,null,null,null,"○（保護機能付き）※1"]
[null,null,null,null,null,null,"＊ 調光（明るさが調整できる）機能の付いた照明器具には使用できません（100％点灯でも使用不可）。"]
[null,null,null,null,null,null,"＊ 屋外では使用できません。"]
[null,"※1 器具内の温度や周囲温度が高くなると保護回路が働き電力を抑えるため、明るさが低下する場合があります。 "]
[]
[null,"小形電球とＬＥＤ電球の電気代の試算ができます。目安としてご活用ください。"]
[null,"　■試算条件を入力ください。"]
[null,null,"①使用灯数は？",null,null,null,null,null,null,null,1,null,null,"灯",null,null,"電力料金単価（税込）*3"]
[]
[null,null,"②年間使用日数は？",null,null,null,null,null,null,null,365,null,null,"日",null,null,null,22,null,"円/kWh"]
[]
[null,null,"③1日の点灯時間は？",null,null,null,null,null,null,null,6,null,null,"時間/日",null,null,"に設定しています。"]
[]
[null,null,"④年間点灯時間",null,null,null,null,null,null,null,{"$f":"K34*K36","v":2190},null,null,"時間/年",null,null,"＊ 任意に変更ができます。"]
[]
[null,null,"⑤ＬＥＤ電球の購入価格（税込）は？",null,null,null,null,null,null,null,null,null,null,"円/灯",null,"合計",{"$f":"K32*K40","v":0},null,null,"円"]
[null,null,null,"＊ イニシャルコストの回収期間を試算します。"]
[null,"　■試算結果"]
[null,"　●年間電気代*3",null,null,null,null,null,null,null,"年間電気代",null,null,null,null,null,null,null,null,null,"低減効果"]
[]
[null,null,"◆小形電球40W形",null,null,null,null,"約",{"$f":"0.036*K32*K34*K36*R34","v":1734.4799999999998},null,null,"円",null,null,null,null,null,null,null,"基準"]
[null,null,"　（40Wタイプ36Wで試算*4）"]
[]
[null,null,"◆ＬＥＤ電球50W形",null,null,null,null,"約",{"$f":"0.0052*K32*K34*K36*R34","v":250.536},null,null,"円",null,null,null,null,null,null,null,{"$f":"(I45-I48)/I45","v":0.85555555555555551}]
[null,null,"　（50Wタイプ5.2Wで試算*5）"]
[null,null,null,null,null,null,null,"小形電球40W形と比べ　約",{"$f":"I45-I48","v":1483.9439999999997},null,null,"円お得です！（年間電気代の差額）"]
[]
[null,"　●回収期間",null,null,null,null,null,"イニシャルコストを　約",{"$f":"IF(K40=0,\"\",ROUNDUP(K40*K32/(I45-I48),1))","v":""},null,null,"年で回収できます！"]
[null,null,null,"＊ イニシャルコストの回収期間は、ＬＥＤ電球の購入価格を年間電気代の差額で割り試算しています。"]
[null,null,null,"    試算条件によっては、「一般社団法人日本照明工業会ガイド111」 による適正交換時期や耐用の限度を超える場合が"]
[null,null,null,"    ありますが、寿命を保証するものではありませんので、予めご了承ください。"]
[]
[null,"＊1 明るさの目安は、JIS C 8158 : 2012 附属書B によります。"]
[null,"＊2 定格寿命は、LED単体で定められた温度設計に基づいて算出した設計寿命であり、使用環境・使用方法により寿命が異なります。"]
[null,"＊3 年間電気代は、電力料金22円/kWh（税込）で試算しています（一般社団法人日本照明工業会 技術資料114-1996による）。"]
[null,"＊4 当社小形電球40W形（KR100/110V36WW、定格消費電力36W、全光束460lm、定格寿命2,000時間）で試算。"]
[null,"＊5 当社LED電球50W形（LDA5D-G-E17/S/50C、定格消費電力5.2W、全光束600lm、定格寿命40,000時間）で試算。"]
[]
[]
[null,{"$f":"TOP!B61","v":"2017年 3月版"}]

{"sheet":"5LGE17S40C","index":20,"n_rows":64,"n_cols":20,"rows_kept":64,"cut":false,"hidden":false,"merged":[[4,11,4,21],[42,19,42,20],[18,6,18,10],[25,6,25,21],[19,6,19,10],[20,6,20,10],[4,6,12,10],[12,11,12,20],[33,17,33,18],[13,6,13,10],[39,16,39,18],[31,10,31,12],[16,6,16,10],[14,11,14,21],[20,11,20,21],[19,11,19,21],[51,8,51,10],[35,16,35,20],[33,10,33,12],[35,10,35,12],[29,1,29,21],[44,8,44,10],[39,10,39,12],[47,2,47,6],[47,19,47,20],[44,19,44,20],[44,2,44,6],[49,8,49,10],[47,8,47,10],[13,11,13,21],[14,6,14,10],[15,6,15,10],[16,11,16,21],[15,11,15,21],[18,11,18,21],[37,10,37,12],[37,16,37,20],[17,6,17,10],[24,6,24,10],[24,11,24,21],[23,11,23,21],[17,11,17,21],[23,6,23,10],[31,16,31,20],[26,6,26,21],[22,9,22,10],[21,6,22,8],[21,9,21,10],[22,11,22,21],[21,11,21,21]]}
[]
[]
[]
[]
[null,null,null,null,null,null,"形式",null,null,null,null,"LDA5L-G-E17/S/40C"]
[]
[]
[]
[]
[]
[]
[]
[null,null,null,null,null,null,null,null,null,null,null,"オープン価格★　屋内用"]
[null,null,null,null,null,null," 光の広がり",null,null,null,null,"広配光タイプ"]
[null,null,null,null,null,null," 光色",null,null,null,null,"電球色"]
[null,null,null,null,null,null," 全光束（lm）",null,null,null,null,500]
[null,"●小形電球40W形相当",null,null,null,null," 明るさの目安*1",null,null,null,null,"小形電球40W形相当"]
[null,"　 の明るさ",null,null,null,null," 定格消費電力（W）",null,null,null,null,5]
[null,"●断熱材施工器具対応",null,null,null,null," エネルギー消費効率（lm/W）",null,null,null,null,{"$f":"ROUNDDOWN(L16/L18,1)","v":100}]
[null,"●高効率で広がる光",null,null,null,null," 質量（g）",null,null,null,null,45]
[null,"●密閉形器具対応",null,null,null,null," 定格寿命（時間）*2",null,null,null,null,40000]
[null,"●定格寿命40,000時間",null,null,null,null,"寸法\n（mm）",null,null,"外径",null,35]
[null,null,null,null,null,null,null,null,null,"全長",null,74]
[null,null,null,null,null,null," 断熱材施工器具対応",null,null,null,null,"○（保護機能付き）※1"]
[null,null,null,null,null,null," 密閉形器具対応",null,null,null,null,"○（保護機能付き）※1"]
[null,null,null,null,null,null,"＊ 調光（明るさが調整できる）機能の付いた照明器具には使用できません（100％点灯でも使用不可）。"]
[null,null,null,null,null,null,"＊ 屋外では使用できません。"]
[null,"※1 器具内の温度や周囲温度が高くなると保護回路が働き電力を抑えるため、明るさが低下する場合があります。 "]
[]
[null,"小形電球とＬＥＤ電球の電気代の試算ができます。目安としてご活用ください。"]
[null,"　■試算条件を入力ください。"]
[null,null,"①使用灯数は？",null,null,null,null,null,null,null,1,null,null,"灯",null,null,"電力料金単価（税込）*3"]
[]
[null,null,"②年間使用日数は？",null,null,null,null,null,null,null,365,null,null,"日",null,null,null,22,null,"円/kWh"]
[]
[null,null,"③1日の点灯時間は？",null,null,null,null,null,null,null,6,null,null,"時間/日",null,null,"に設定しています。"]
[]
[null,null,"④年間点灯時間",null,null,null,null,null,null,null,{"$f":"K34*K36","v":2190},null,null,"時間/年",null,null,"＊ 任意に変更ができます。"]
[]
[null,null,"⑤ＬＥＤ電球の購入価格（税込）は？",null,null,null,null,null,null,null,null,null,null,"円/灯",null,"合計",{"$f":"K32*K40","v":0},null,null,"円"]
[null,null,null,"＊ イニシャルコストの回収期間を試算します。"]
[null,"　■試算結果"]
[null,"　●年間電気代*3",null,null,null,null,null,null,null,"年間電気代",null,null,null,null,null,null,null,null,null,"低減効果"]
[]
[null,null,"◆小形電球40W形",null,null,null,null,"約",{"$f":"0.036*K32*K34*K36*R34","v":1734.4799999999998},null,null,"円",null,null,null,null,null,null,null,"基準"]
[null,null,"　（40Wタイプ36Wで試算*4）"]
[]
[null,null,"◆ＬＥＤ電球40W形",null,null,null,null,"約",{"$f":"0.005*K32*K34*K36*R34","v":240.89999999999998},null,null,"円",null,null,null,null,null,null,null,{"$f":"(I45-I48)/I45","v":0.86111111111111116}]
[null,null,"　（40Wタイプ5.0Wで試算*5）"]
[null,null,null,null,null,null,null,"小形電球40W形と比べ　約",{"$f":"I45-I48","v":1493.58},null,null,"円お得です！（年間電気代の差額）"]
[]
[null,"　●回収期間",null,null,null,null,null,"イニシャルコストを　約",{"$f":"IF(K40=0,\"\",ROUNDUP(K40*K32/(I45-I48),1))","v":""},null,null,"年で回収できます！"]
[null,null,null,"＊ イニシャルコストの回収期間は、ＬＥＤ電球の購入価格を年間電気代の差額で割り試算しています。"]
[null,null,null,"    試算条件によっては、「一般社団法人日本照明工業会ガイド111」 による適正交換時期や耐用の限度を超える場合が"]
[null,null,null,"    ありますが、寿命を保証するものではありませんので、予めご了承ください。"]
[]
[null,"＊1 明るさの目安は、JIS C 8158 : 2012 附属書B によります。"]
[null,"＊2 定格寿命は、LED単体で定められた温度設計に基づいて算出した設計寿命であり、使用環境・使用方法により寿命が異なります。"]
[null,"＊3 年間電気代は、電力料金22円/kWh（税込）で試算しています（一般社団法人日本照明工業会 技術資料114-1996による）。"]
[null,"＊4 当社小形電球40W形（KR100/110V36WW、定格消費電力36W、全光束460lm、定格寿命2,000時間）で試算。"]
[null,"＊5 当社LED電球40W形（LDA5L-G-E17/S/40C、定格消費電力5.0W、全光束500lm、定格寿命40,000時間）で試算。"]
[]
[]
[null,{"$f":"TOP!B61","v":"2017年 3月版"}]

{"sheet":"7DGE17DS","index":21,"n_rows":64,"n_cols":20,"rows_kept":64,"cut":false,"hidden":false,"merged":[[53,8,53,10],[37,16,37,20],[35,10,35,12],[37,10,37,12],[51,8,51,10],[41,16,41,18],[49,2,49,6],[44,19,44,20],[39,10,39,12],[39,16,39,20],[49,8,49,10],[46,8,46,10],[33,16,33,20],[20,6,20,10],[46,19,46,20],[49,19,49,20],[35,17,35,18],[33,10,33,12],[31,1,31,21],[26,6,26,21],[46,2,46,6],[41,10,41,12],[25,6,25,10],[24,11,24,21],[20,11,20,21],[25,11,25,21],[22,9,22,10],[24,6,24,10],[17,6,17,10],[22,11,22,21],[16,11,16,21],[21,11,21,21],[23,6,23,10],[18,11,18,21],[17,11,17,21],[21,9,21,10],[18,6,18,10],[19,6,19,10],[19,11,19,21],[21,6,22,8],[23,11,23,21],[15,6,15,10],[16,6,16,10],[4,6,12,10],[4,11,4,21],[14,11,14,21],[14,6,14,10],[13,11,13,21],[13,6,13,10],[12,11,12,20],[15,11,15,21]]}
[]
[]
[]
[]
[null,null,null,null,null,null,"形式",null,null,null,null,"LDA7D-G-E17/DS"]
[]
[]
[]
[]
[]
[]
[]
[null,null,null,null,null,null,null,null,null,null,null,"オープン価格★　屋内用"]
[null,null,null,null,null,null," 光の広がり",null,null,null,null,"広配光タイプ"]
[null,null,null,null,null,null," 光色",null,null,null,null,"昼光色"]
[null,null,null,null,null,null," 全光束（lm）",null,null,null,null,500]
[null,"●小形電球40W形相当",null,null,null,null," 明るさの目安*1",null,null,null,null,"小形電球40W形相当"]
[null,"　 の明るさ",null,null,null,null," 定格消費電力（W）",null,null,null,null,7]
[null,"●電球のような広がる光",null,null,null,null," エネルギー消費効率（lm/W）",null,null,null,null,{"$f":"ROUNDDOWN(L16/L18,1)","v":71.400000000000006}]
[null,"●調光器対応",null,null,null,null," 質量（g）",null,null,null,null,48]
[null,"●断熱材施工器具対応",null,null,null,null," 定格寿命（時間）*2",null,null,null,null,40000]
[null,"●密閉形器具対応",null,null,null,null,"寸法\n（mm）",null,null,"外径",null,35]
[null,"●定格寿命40,000時間",null,null,null,null,null,null,null,"全長",null,77]
[null,null,null,null,null,null," 調光器対応",null,null,null,null,"○（白熱電球の調光器）※1"]
[null,null,null,null,null,null," 断熱材施工器具対応",null,null,null,null,"○（保護機能付き）※2"]
[null,null,null,null,null,null," 密閉形器具対応",null,null,null,null,"○（保護機能付き）※2"]
[null,null,null,null,null,null,"＊ 屋外では使用できません。"]
[null,"※1 次のような調光器と組み合わせて使用した場合、点灯しない場合や調光できない場合があります。[電球用以外の調光器具(蛍光ラン"]
[null,"  プ用調光器具など)、人感センサーつき調光器、段調光器、リモコン式調光器、記憶式調光器、容量500W超の調光器のついた器具など] "]
[null,"※2 器具内の温度や周囲温度が高くなると保護回路が働き電力を抑えるため、明るさが低下する場合があります。 "]
[]
[null,"小形電球とＬＥＤ電球の電気代の試算ができます。目安としてご活用ください。"]
[null,"　■試算条件を入力ください。"]
[null,null,"①使用灯数は？",null,null,null,null,null,null,null,1,null,null,"灯",null,null,"電力料金単価（税込）*3"]
[]
[null,null,"②年間使用日数は？",null,null,null,null,null,null,null,365,null,null,"日",null,null,null,22,null,"円/kWh"]
[]
[null,null,"③1日の点灯時間は？",null,null,null,null,null,null,null,6,null,null,"時間/日",null,null,"に設定しています。"]
[]
[null,null,"④年間点灯時間",null,null,null,null,null,null,null,{"$f":"K36*K38","v":2190},null,null,"時間/年",null,null,"＊ 任意に変更ができます。"]
[]
[null,null,"⑤ＬＥＤ電球の購入価格（税込）は？",null,null,null,null,null,null,null,null,null,null,"円/灯",null,"合計",{"$f":"K34*K42","v":0},null,null,"円"]
[null,null,null,"＊ イニシャルコストの回収期間を試算します。"]
[null,"　■試算結果"]
[null,"　●年間電気代*3",null,null,null,null,null,null,null,"年間電気代",null,null,null,null,null,null,null,null,null,"低減効果"]
[]
[null,null,"◆小形電球40W形",null,null,null,null,"約",{"$f":"0.036*K34*K36*K38*R36","v":1734.4799999999998},null,null,"円",null,null,null,null,null,null,null,"基準"]
[null,null,"　（40Wタイプ36Wで試算*4）"]
[]
[null,null,"◆ＬＥＤ電球40W形",null,null,null,null,"約",{"$f":"0.007*K34*K36*K38*R36","v":337.26000000000005},null,null,"円",null,null,null,null,null,null,null,{"$f":"(I47-I50)/I47","v":0.80555555555555558}]
[null,null,"　（40Wタイプ7.0Wで試算*5）"]
[null,null,null,null,null,null,null,"小形電球40W形と比べ　約",{"$f":"I47-I50","v":1397.2199999999998},null,null,"円お得です！（年間電気代の差額）"]
[]
[null,"　●回収期間",null,null,null,null,null,"イニシャルコストを　約",{"$f":"IF(K42=0,\"\",ROUNDUP(K42*K34/(I47-I50),1))","v":""},null,null,"年で回収できます！"]
[null,null,null,"＊ イニシャルコストの回収期間は、ＬＥＤ電球の購入価格を年間電気代の差額で割り試算しています。"]
[null,null,null,"    試算条件によっては、「一般社団法人日本照明工業会ガイド111」 による適正交換時期や耐用の限度を超える場合が"]
[null,null,null,"    ありますが、寿命を保証するものではありませんので、予めご了承ください。"]
[]
[null,"＊1 明るさの目安は、JIS C 8158 : 2012 附属書B によります。"]
[null,"＊2 定格寿命は、LED単体で定められた温度設計に基づいて算出した設計寿命であり、使用環境・使用方法により寿命が異なります。"]
[null,"＊3 年間電気代は、電力料金22円/kWh（税込）で試算しています（一般社団法人日本照明工業会 技術資料114-1996による）。"]
[null,"＊4 当社小形電球40W形（KR100/110V36WW、定格消費電力36W、全光束460lm、定格寿命2,000時間）で試算。"]
[null,"＊5 当社LED電球40W形（LDA7D-G-E17/DS、定格消費電力7.0W、全光束500lm、定格寿命40,000時間）で試算。"]
[null,{"$f":"TOP!B61","v":"2017年 3月版"}]

{"sheet":"7LGE17DS","index":22,"n_rows":64,"n_cols":20,"rows_kept":64,"cut":false,"hidden":false,"merged":[[53,8,53,10],[37,16,37,20],[35,10,35,12],[37,10,37,12],[51,8,51,10],[49,8,49,10],[49,19,49,20],[46,19,46,20],[41,10,41,12],[46,8,46,10],[41,16,41,18],[35,17,35,18],[39,16,39,20],[49,2,49,6],[21,6,22,8],[23,11,23,21],[4,11,4,21],[44,19,44,20],[26,6,26,21],[39,10,39,12],[4,6,12,10],[15,11,15,21],[21,11,21,21],[46,2,46,6],[33,16,33,20],[31,1,31,21],[33,10,33,12],[20,6,20,10],[22,11,22,21],[12,11,12,20],[17,6,17,10],[13,6,13,10],[20,11,20,21],[18,6,18,10],[16,6,16,10],[14,11,14,21],[17,11,17,21],[15,6,15,10],[19,6,19,10],[18,11,18,21],[14,6,14,10],[16,11,16,21],[19,11,19,21],[25,11,25,21],[13,11,13,21],[25,6,25,10],[24,11,24,21],[22,9,22,10],[21,9,21,10],[23,6,23,10],[24,6,24,10]]}
[]
[]
[]
[]
[null,null,null,null,null,null,"形式",null,null,null,null,"LDA7L-G-E17/DS"]
[]
[]
[]
[]
[]
[]
[]
[null,null,null,null,null,null,null,null,null,null,null,"オープン価格★　屋内用"]
[null,null,null,null,null,null," 光の広がり",null,null,null,null,"広配光タイプ"]
[null,null,null,null,null,null," 光色",null,null,null,null,"電球色"]
[null,null,null,null,null,null," 全光束（lm）",null,null,null,null,420]
[null,"●電球25W形相当の明るさ",null,null,null,null," 明るさの目安*1",null,null,null,null,"小形電球25W形相当"]
[null,"●電球のような広がる光",null,null,null,null," 定格消費電力（W）",null,null,null,null,7]
[null,"●調光器対応",null,null,null,null," エネルギー消費効率（lm/W）",null,null,null,null,{"$f":"ROUNDDOWN(L16/L18,1)","v":60}]
[null,"●断熱材施工器具対応",null,null,null,null," 質量（g）",null,null,null,null,48]
[null,"●密閉形器具対応",null,null,null,null," 定格寿命（時間）*2",null,null,null,null,40000]
[null,"●定格寿命40,000時間",null,null,null,null,"寸法\n（mm）",null,null,"外径",null,35]
[null,null,null,null,null,null,null,null,null,"全長",null,77]
[null,null,null,null,null,null," 調光器対応",null,null,null,null,"○（白熱電球の調光器）※1"]
[null,null,null,null,null,null," 断熱材施工器具対応",null,null,null,null,"○（保護機能付き）※2"]
[null,null,null,null,null,null," 密閉形器具対応",null,null,null,null,"○（保護機能付き）※2"]
[null,null,null,null,null,null,"＊ 屋外では使用できません。"]
[null,"※1 次のような調光器と組み合わせて使用した場合、点灯しない場合や調光できない場合があります。[電球用以外の調光器具(蛍光ラン"]
[null,"  プ用調光器具など)、人感センサーつき調光器、段調光器、リモコン式調光器、記憶式調光器、容量500W超の調光器のついた器具など] "]
[null,"※2 器具内の温度や周囲温度が高くなると保護回路が働き電力を抑えるため、明るさが低下する場合があります。 "]
[]
[null,"小形電球とＬＥＤ電球の電気代の試算ができます。目安としてご活用ください。"]
[null,"　■試算条件を入力ください。"]
[null,null,"①使用灯数は？",null,null,null,null,null,null,null,1,null,null,"灯",null,null,"電力料金単価（税込）*3"]
[]
[null,null,"②年間使用日数は？",null,null,null,null,null,null,null,365,null,null,"日",null,null,null,22,null,"円/kWh"]
[]
[null,null,"③1日の点灯時間は？",null,null,null,null,null,null,null,6,null,null,"時間/日",null,null,"に設定しています。"]
[]
[null,null,"④年間点灯時間",null,null,null,null,null,null,null,{"$f":"K36*K38","v":2190},null,null,"時間/年",null,null,"＊ 任意に変更ができます。"]
[]
[null,null,"⑤ＬＥＤ電球の購入価格（税込）は？",null,null,null,null,null,null,null,null,null,null,"円/灯",null,"合計",{"$f":"K34*K42","v":0},null,null,"円"]
[null,null,null,"＊ イニシャルコストの回収期間を試算します。"]
[null,"　■試算結果"]
[null,"　●年間電気代*3",null,null,null,null,null,null,null,"年間電気代",null,null,null,null,null,null,null,null,null,"低減効果"]
[]
[null,null,"◆小形電球25W形",null,null,null,null,"約",{"$f":"0.022*K34*K36*K38*R36","v":1059.9599999999998},null,null,"円",null,null,null,null,null,null,null,"基準"]
[null,null,"　（25Wタイプ22Wで試算*4）"]
[]
[null,null,"◆ＬＥＤ電球25W形",null,null,null,null,"約",{"$f":"0.007*K34*K36*K38*R36","v":337.26000000000005},null,null,"円",null,null,null,null,null,null,null,{"$f":"(I47-I50)/I47","v":0.68181818181818177}]
[null,null,"　（25Wタイプ7.0Wで試算*5）"]
[null,null,null,null,null,null,null,"小形電球25W形と比べ　約",{"$f":"I47-I50","v":722.69999999999982},null,null,"円お得です！（年間電気代の差額）"]
[]
[null,"　●回収期間",null,null,null,null,null,"イニシャルコストを　約",{"$f":"IF(K42=0,\"\",ROUNDUP(K42*K34/(I47-I50),1))","v":""},null,null,"年で回収できます！"]
[null,null,null,"＊ イニシャルコストの回収期間は、ＬＥＤ電球の購入価格を年間電気代の差額で割り試算しています。"]
[null,null,null,"    試算条件によっては、「一般社団法人日本照明工業会ガイド111」 による適正交換時期や耐用の限度を超える場合が"]
[null,null,null,"    ありますが、寿命を保証するものではありませんので、予めご了承ください。"]
[]
[null,"＊1 明るさの目安は、JIS C 8158 : 2012 附属書B によります。"]
[null,"＊2 定格寿命は、LED単体で定められた温度設計に基づいて算出した設計寿命であり、使用環境・使用方法により寿命が異なります。"]
[null,"＊3 年間電気代は、電力料金22円/kWh（税込）で試算しています（一般社団法人日本照明工業会 技術資料114-1996による）。"]
[null,"＊4 当社小形電球25W形（KR100/110V22WW、定格消費電力22W、全光束250lm、定格寿命2,000時間）で試算。"]
[null,"＊5 当社LED電球25W形（LDA7L-G-E17/DS、定格消費電力7.0W、全光束420lm、定格寿命40,000時間）で試算。"]
[null,{"$f":"TOP!B61","v":"2017年 3月版"}]

{"sheet":"6DHE17S60C","index":23,"n_rows":64,"n_cols":20,"rows_kept":64,"cut":false,"hidden":false,"merged":[[22,9,22,10],[15,11,15,21],[14,6,14,10],[15,6,15,10],[16,6,16,10],[14,11,14,21],[18,6,18,10],[51,8,51,10],[35,16,35,20],[33,10,33,12],[35,10,35,12],[31,16,31,20],[37,16,37,20],[47,19,47,20],[49,8,49,10],[47,8,47,10],[44,8,44,10],[39,10,39,12],[4,11,4,21],[42,19,42,20],[44,19,44,20],[26,6,26,21],[37,10,37,12],[4,6,12,10],[12,11,12,20],[17,6,17,10],[13,6,13,10],[29,1,29,21],[33,17,33,18],[39,16,39,18],[31,10,31,12],[23,6,23,10],[24,6,24,10],[24,11,24,21],[25,6,25,21],[47,2,47,6],[44,2,44,6],[13,11,13,21],[17,11,17,21],[16,11,16,21],[23,11,23,21],[18,11,18,21],[22,11,22,21],[21,11,21,21],[20,11,20,21],[19,11,19,21],[19,6,19,10],[20,6,20,10],[21,6,22,8],[21,9,21,10]]}
[]
[]
[]
[]
[null,null,null,null,null,null,"形式",null,null,null,null,"LDA6D-H-E17/S/60C"]
[]
[]
[]
[]
[]
[]
[]
[null,null,null,null,null,null,null,null,null,null,null,"オープン価格★　屋内用"]
[null,null,null,null,null,null," 光の広がり",null,null,null,null,"下方配光タイプ"]
[null,null,null,null,null,null," 光色",null,null,null,null,"昼光色"]
[null,null,null,null,null,null," 全光束（lm）",null,null,null,null,760]
[null,"●小形電球60W形相当",null,null,null,null," 明るさの目安*1",null,null,null,null,"小形電球60W形相当"]
[null,"　 の明るさ",null,null,null,null," 定格消費電力（W）",null,null,null,null,5.8]
[null,"●下方配光タイプ",null,null,null,null," エネルギー消費効率（lm/W）",null,null,null,null,{"$f":"ROUNDDOWN(L16/L18,1)","v":131}]
[null,"●電球同等コンパクトサイズ",null,null,null,null," 質量（g）",null,null,null,null,55]
[null,"●断熱材施工器具対応",null,null,null,null," 定格寿命（時間）*2",null,null,null,null,40000]
[null,"●密閉形器具対応",null,null,null,null,"寸法\n（mm）",null,null,"外径",null,40]
[null,"●定格寿命40,000時間",null,null,null,null,null,null,null,"全長",null,67]
[null,null,null,null,null,null," 断熱材施工器具対応",null,null,null,null,"○（保護機能付き）※1"]
[null,null,null,null,null,null," 密閉形器具対応",null,null,null,null,"○（保護機能付き）※1"]
[null,null,null,null,null,null,"＊ 調光（明るさが調整できる）機能の付いた照明器具には使用できません（100％点灯でも使用不可）。"]
[null,null,null,null,null,null,"＊ 屋外では使用できません。"]
[null,"※1 器具内の温度や周囲温度が高くなると保護回路が働き電力を抑えるため、明るさが低下する場合があります。 "]
[]
[null,"小形電球とＬＥＤ電球の電気代の試算ができます。目安としてご活用ください。"]
[null,"　■試算条件を入力ください。"]
[null,null,"①使用灯数は？",null,null,null,null,null,null,null,1,null,null,"灯",null,null,"電力料金単価（税込）*3"]
[]
[null,null,"②年間使用日数は？",null,null,null,null,null,null,null,365,null,null,"日",null,null,null,22,null,"円/kWh"]
[]
[null,null,"③1日の点灯時間は？",null,null,null,null,null,null,null,6,null,null,"時間/日",null,null,"に設定しています。"]
[]
[null,null,"④年間点灯時間",null,null,null,null,null,null,null,{"$f":"K34*K36","v":2190},null,null,"時間/年",null,null,"＊ 任意に変更ができます。"]
[]
[null,null,"⑤ＬＥＤ電球の購入価格（税込）は？",null,null,null,null,null,null,null,null,null,null,"円/灯",null,"合計",{"$f":"K32*K40","v":0},null,null,"円"]
[null,null,null,"＊ イニシャルコストの回収期間を試算します。"]
[null,"　■試算結果"]
[null,"　●年間電気代*3",null,null,null,null,null,null,null,"年間電気代",null,null,null,null,null,null,null,null,null,"低減効果"]
[]
[null,null,"◆小形電球60W形",null,null,null,null,"約",{"$f":"0.054*K32*K34*K36*R34","v":2601.7200000000003},null,null,"円",null,null,null,null,null,null,null,"基準"]
[null,null,"　（60Wタイプ54Wで試算*4）"]
[]
[null,null,"◆ＬＥＤ電球60W形",null,null,null,null,"約",{"$f":"0.0058*K32*K34*K36*R34","v":279.44400000000002},null,null,"円",null,null,null,null,null,null,null,{"$f":"(I45-I48)/I45","v":0.8925925925925926}]
[null,null,"　（60Wタイプ5.8Wで試算*5）"]
[null,null,null,null,null,null,null,"小形電球60W形と比べ　約",{"$f":"I45-I48","v":2322.2760000000003},null,null,"円お得です！（年間電気代の差額）"]
[]
[null,"　●回収期間",null,null,null,null,null,"イニシャルコストを　約",{"$f":"IF(K40=0,\"\",ROUNDUP(K40*K32/(I45-I48),1))","v":""},null,null,"年で回収できます！"]
[null,null,null,"＊ イニシャルコストの回収期間は、ＬＥＤ電球の購入価格を年間電気代の差額で割り試算しています。"]
[null,null,null,"    試算条件によっては、「一般社団法人日本照明工業会ガイド111」 による適正交換時期や耐用の限度を超える場合が"]
[null,null,null,"    ありますが、寿命を保証するものではありませんので、予めご了承ください。"]
[]
[null,"＊1 明るさの目安は、JIS C 8158 : 2012 附属書B によります。"]
[null,"＊2 定格寿命は、LED単体で定められた温度設計に基づいて算出した設計寿命であり、使用環境・使用方法により寿命が異なります。"]
[null,"＊3 年間電気代は、電力料金22円/kWh（税込）で試算しています（一般社団法人日本照明工業会 技術資料114-1996による）。"]
[null,"＊4 当社小形電球60W形（KR100/110V54WW、定格消費電力54W、全光束760lm、定格寿命2,000時間）で試算。"]
[null,"＊5 当社LED電球60W形（LDA6D-H-E17/S/60C、定格消費電力5.8W、全光束760lm、定格寿命40,000時間）で試算。"]
[]
[]
[null,{"$f":"TOP!B61","v":"2017年 3月版"}]

{"sheet":"7LHE17S60C","index":24,"n_rows":64,"n_cols":20,"rows_kept":64,"cut":false,"hidden":false,"merged":[[4,11,4,21],[42,19,42,20],[18,6,18,10],[25,6,25,21],[19,6,19,10],[20,6,20,10],[4,6,12,10],[12,11,12,20],[33,17,33,18],[13,6,13,10],[39,16,39,18],[31,10,31,12],[16,6,16,10],[14,11,14,21],[20,11,20,21],[19,11,19,21],[51,8,51,10],[35,16,35,20],[33,10,33,12],[35,10,35,12],[29,1,29,21],[44,8,44,10],[39,10,39,12],[47,2,47,6],[47,19,47,20],[44,19,44,20],[44,2,44,6],[49,8,49,10],[47,8,47,10],[13,11,13,21],[14,6,14,10],[15,6,15,10],[16,11,16,21],[15,11,15,21],[18,11,18,21],[37,10,37,12],[37,16,37,20],[17,6,17,10],[24,6,24,10],[24,11,24,21],[23,11,23,21],[17,11,17,21],[23,6,23,10],[31,16,31,20],[26,6,26,21],[22,9,22,10],[21,6,22,8],[21,9,21,10],[22,11,22,21],[21,11,21,21]]}
[]
[]
[]
[]
[null,null,null,null,null,null,"形式",null,null,null,null,"LDA7L-H-E17/S/60C"]
[]
[]
[]
[]
[]
[]
[]
[null,null,null,null,null,null,null,null,null,null,null,"オープン価格★　屋内用"]
[null,null,null,null,null,null," 光の広がり",null,null,null,null,"下方配光タイプ"]
[null,null,null,null,null,null," 光色",null,null,null,null,"電球色"]
[null,null,null,null,null,null," 全光束（lm）",null,null,null,null,760]
[null,"●小形電球60W形相当",null,null,null,null," 明るさの目安*1",null,null,null,null,"小形電球60W形相当"]
[null,"　 の明るさ",null,null,null,null," 定格消費電力（W）",null,null,null,null,6.9]
[null,"●下方配光タイプ",null,null,null,null," エネルギー消費効率（lm/W）",null,null,null,null,{"$f":"ROUNDDOWN(L16/L18,1)","v":110.1}]
[null,"●電球同等コンパクトサイズ",null,null,null,null," 質量（g）",null,null,null,null,55]
[null,"●断熱材施工器具対応",null,null,null,null," 定格寿命（時間）*2",null,null,null,null,40000]
[null,"●密閉形器具対応",null,null,null,null,"寸法\n（mm）",null,null,"外径",null,40]
[null,"●定格寿命40,000時間",null,null,null,null,null,null,null,"全長",null,67]
[null,null,null,null,null,null," 断熱材施工器具対応",null,null,null,null,"○（保護機能付き）※1"]
[null,null,null,null,null,null," 密閉形器具対応",null,null,null,null,"○（保護機能付き）※1"]
[null,null,null,null,null,null,"＊ 調光（明るさが調整できる）機能の付いた照明器具には使用できません（100％点灯でも使用不可）。"]
[null,null,null,null,null,null,"＊ 屋外では使用できません。"]
[null,"※1 器具内の温度や周囲温度が高くなると保護回路が働き電力を抑えるため、明るさが低下する場合があります。 "]
[]
[null,"小形電球とＬＥＤ電球の電気代の試算ができます。目安としてご活用ください。"]
[null,"　■試算条件を入力ください。"]
[null,null,"①使用灯数は？",null,null,null,null,null,null,null,1,null,null,"灯",null,null,"電力料金単価（税込）*3"]
[]
[null,null,"②年間使用日数は？",null,null,null,null,null,null,null,365,null,null,"日",null,null,null,22,null,"円/kWh"]
[]
[null,null,"③1日の点灯時間は？",null,null,null,null,null,null,null,6,null,null,"時間/日",null,null,"に設定しています。"]
[]
[null,null,"④年間点灯時間",null,null,null,null,null,null,null,{"$f":"K34*K36","v":2190},null,null,"時間/年",null,null,"＊ 任意に変更ができます。"]
[]
[null,null,"⑤ＬＥＤ電球の購入価格（税込）は？",null,null,null,null,null,null,null,null,null,null,"円/灯",null,"合計",{"$f":"K32*K40","v":0},null,null,"円"]
[null,null,null,"＊ イニシャルコストの回収期間を試算します。"]
[null,"　■試算結果"]
[null,"　●年間電気代*3",null,null,null,null,null,null,null,"年間電気代",null,null,null,null,null,null,null,null,null,"低減効果"]
[]
[null,null,"◆小形電球40W形",null,null,null,null,"約",{"$f":"0.036*K32*K34*K36*R34","v":1734.4799999999998},null,null,"円",null,null,null,null,null,null,null,"基準"]
[null,null,"　（40Wタイプ36Wで試算*4）"]
[]
[null,null,"◆ＬＥＤ電球50W形",null,null,null,null,"約",{"$f":"0.0069*K32*K34*K36*R34","v":332.44200000000001},null,null,"円",null,null,null,null,null,null,null,{"$f":"(I45-I48)/I45","v":0.80833333333333335}]
[null,null,"　（50Wタイプ6.9Wで試算*5）"]
[null,null,null,null,null,null,null,"小形電球40W形と比べ　約",{"$f":"I45-I48","v":1402.0379999999998},null,null,"円お得です！（年間電気代の差額）"]
[]
[null,"　●回収期間",null,null,null,null,null,"イニシャルコストを　約",{"$f":"IF(K40=0,\"\",ROUNDUP(K40*K32/(I45-I48),1))","v":""},null,null,"年で回収できます！"]
[null,null,null,"＊ イニシャルコストの回収期間は、ＬＥＤ電球の購入価格を年間電気代の差額で割り試算しています。"]
[null,null,null,"    試算条件によっては、「一般社団法人日本照明工業会ガイド111」 による適正交換時期や耐用の限度を超える場合が"]
[null,null,null,"    ありますが、寿命を保証するものではありませんので、予めご了承ください。"]
[]
[null,"＊1 明るさの目安は、JIS C 8158 : 2012 附属書B によります。"]
[null,"＊2 定格寿命は、LED単体で定められた温度設計に基づいて算出した設計寿命であり、使用環境・使用方法により寿命が異なります。"]
[null,"＊3 年間電気代は、電力料金22円/kWh（税込）で試算しています（一般社団法人日本照明工業会 技術資料114-1996による）。"]
[null,"＊4 当社小形電球40W形（KR100/110V36WW、定格消費電力36W、全光束460lm、定格寿命2,000時間）で試算。"]
[null,"＊5 当社LED電球60W形（LDA7L-H-E17/S/60C、定格消費電力6.9W、全光束760lm、定格寿命40,000時間）で試算。"]
[]
[]
[null,{"$f":"TOP!B61","v":"2017年 3月版"}]

{"sheet":"4DHE17S40C","index":25,"n_rows":64,"n_cols":20,"rows_kept":64,"cut":false,"hidden":false,"merged":[[4,11,4,21],[42,19,42,20],[18,6,18,10],[25,6,25,21],[19,6,19,10],[20,6,20,10],[4,6,12,10],[12,11,12,20],[33,17,33,18],[13,6,13,10],[39,16,39,18],[31,10,31,12],[16,6,16,10],[14,11,14,21],[20,11,20,21],[19,11,19,21],[51,8,51,10],[35,16,35,20],[33,10,33,12],[35,10,35,12],[29,1,29,21],[44,8,44,10],[39,10,39,12],[47,2,47,6],[47,19,47,20],[44,19,44,20],[44,2,44,6],[49,8,49,10],[47,8,47,10],[13,11,13,21],[14,6,14,10],[15,6,15,10],[16,11,16,21],[15,11,15,21],[18,11,18,21],[37,10,37,12],[37,16,37,20],[17,6,17,10],[24,6,24,10],[24,11,24,21],[23,11,23,21],[17,11,17,21],[23,6,23,10],[31,16,31,20],[26,6,26,21],[22,9,22,10],[21,6,22,8],[21,9,21,10],[22,11,22,21],[21,11,21,21]]}
[]
[]
[]
[]
[null,null,null,null,null,null,"形式",null,null,null,null,"LDA4D-H-E17/S/40C"]
[]
[]
[]
[]
[]
[]
[]
[null,null,null,null,null,null,null,null,null,null,null,"オープン価格★　屋内用"]
[null,null,null,null,null,null," 光の広がり",null,null,null,null,"下方配光タイプ"]
[null,null,null,null,null,null," 光色",null,null,null,null,"昼光色"]
[null,null,null,null,null,null," 全光束（lm）",null,null,null,null,440]
[null,"●小形電球40W形相当",null,null,null,null," 明るさの目安*1",null,null,null,null,"小形電球40W形相当"]
[null,"　 の明るさ",null,null,null,null," 定格消費電力（W）",null,null,null,null,4]
[null,"●下方配光タイプ",null,null,null,null," エネルギー消費効率（lm/W）",null,null,null,null,{"$f":"ROUNDDOWN(L16/L18,1)","v":110}]
[null,"●電球ジャストサイズ",null,null,null,null," 質量（g）",null,null,null,null,35]
[null,"●断熱材施工器具対応",null,null,null,null," 定格寿命（時間）*2",null,null,null,null,40000]
[null,"●密閉形器具対応",null,null,null,null,"寸法\n（mm）",null,null,"外径",null,35]
[null,"●定格寿命40,000時間",null,null,null,null,null,null,null,"全長",null,67]
[null,null,null,null,null,null," 断熱材施工器具対応",null,null,null,null,"○（保護機能付き）※1"]
[null,null,null,null,null,null," 密閉形器具対応",null,null,null,null,"○（保護機能付き）※1"]
[null,null,null,null,null,null,"＊ 調光（明るさが調整できる）機能の付いた照明器具には使用できません（100％点灯でも使用不可）。"]
[null,null,null,null,null,null,"＊ 屋外では使用できません。"]
[null,"※1 器具内の温度や周囲温度が高くなると保護回路が働き電力を抑えるため、明るさが低下する場合があります。 "]
[]
[null,"小形電球とＬＥＤ電球の電気代の試算ができます。目安としてご活用ください。"]
[null,"　■試算条件を入力ください。"]
[null,null,"①使用灯数は？",null,null,null,null,null,null,null,1,null,null,"灯",null,null,"電力料金単価（税込）*3"]
[]
[null,null,"②年間使用日数は？",null,null,null,null,null,null,null,365,null,null,"日",null,null,null,22,null,"円/kWh"]
[]
[null,null,"③1日の点灯時間は？",null,null,null,null,null,null,null,6,null,null,"時間/日",null,null,"に設定しています。"]
[]
[null,null,"④年間点灯時間",null,null,null,null,null,null,null,{"$f":"K34*K36","v":2190},null,null,"時間/年",null,null,"＊ 任意に変更ができます。"]
[]
[null,null,"⑤ＬＥＤ電球の購入価格（税込）は？",null,null,null,null,null,null,null,null,null,null,"円/灯",null,"合計",{"$f":"K32*K40","v":0},null,null,"円"]
[null,null,null,"＊ イニシャルコストの回収期間を試算します。"]
[null,"　■試算結果"]
[null,"　●年間電気代*3",null,null,null,null,null,null,null,"年間電気代",null,null,null,null,null,null,null,null,null,"低減効果"]
[]
[null,null,"◆小形電球40W形",null,null,null,null,"約",{"$f":"0.036*K32*K34*K36*R34","v":1734.4799999999998},null,null,"円",null,null,null,null,null,null,null,"基準"]
[null,null,"　（40Wタイプ36Wで試算*4）"]
[]
[null,null,"◆ＬＥＤ電球50W形",null,null,null,null,"約",{"$f":"0.004*K32*K34*K36*R34","v":192.72},null,null,"円",null,null,null,null,null,null,null,{"$f":"(I45-I48)/I45","v":0.88888888888888884}]
[null,null,"　（50Wタイプ4.0Wで試算*5）"]
[null,null,null,null,null,null,null,"小形電球40W形と比べ　約",{"$f":"I45-I48","v":1541.7599999999998},null,null,"円お得です！（年間電気代の差額）"]
[]
[null,"　●回収期間",null,null,null,null,null,"イニシャルコストを　約",{"$f":"IF(K40=0,\"\",ROUNDUP(K40*K32/(I45-I48),1))","v":""},null,null,"年で回収できます！"]
[null,null,null,"＊ イニシャルコストの回収期間は、ＬＥＤ電球の購入価格を年間電気代の差額で割り試算しています。"]
[null,null,null,"    試算条件によっては、「一般社団法人日本照明工業会ガイド111」 による適正交換時期や耐用の限度を超える場合が"]
[null,null,null,"    ありますが、寿命を保証するものではありませんので、予めご了承ください。"]
[]
[null,"＊1 明るさの目安は、JIS C 8158 : 2012 附属書B によります。"]
[null,"＊2 定格寿命は、LED単体で定められた温度設計に基づいて算出した設計寿命であり、使用環境・使用方法により寿命が異なります。"]
[null,"＊3 年間電気代は、電力料金22円/kWh（税込）で試算しています（一般社団法人日本照明工業会 技術資料114-1996による）。"]
[null,"＊4 当社小形電球40W形（KR100/110V36WW、定格消費電力36W、全光束460lm、定格寿命2,000時間）で試算。"]
[null,"＊5 当社LED電球40W形（LDA4D-H-E17/S/40C、定格消費電力4.0W、全光束440lm、定格寿命40,000時間）で試算。"]
[]
[]
[null,{"$f":"TOP!B61","v":"2017年 3月版"}]

{"sheet":"4LHE17S40C","index":26,"n_rows":64,"n_cols":20,"rows_kept":64,"cut":false,"hidden":false,"merged":[[22,9,22,10],[15,11,15,21],[14,6,14,10],[15,6,15,10],[16,6,16,10],[14,11,14,21],[18,6,18,10],[51,8,51,10],[35,16,35,20],[33,10,33,12],[35,10,35,12],[31,16,31,20],[37,16,37,20],[47,19,47,20],[49,8,49,10],[47,8,47,10],[44,8,44,10],[39,10,39,12],[4,11,4,21],[42,19,42,20],[44,19,44,20],[26,6,26,21],[37,10,37,12],[4,6,12,10],[12,11,12,20],[17,6,17,10],[13,6,13,10],[29,1,29,21],[33,17,33,18],[39,16,39,18],[31,10,31,12],[23,6,23,10],[24,6,24,10],[24,11,24,21],[25,6,25,21],[47,2,47,6],[44,2,44,6],[13,11,13,21],[17,11,17,21],[16,11,16,21],[23,11,23,21],[18,11,18,21],[22,11,22,21],[21,11,21,21],[20,11,20,21],[19,11,19,21],[19,6,19,10],[20,6,20,10],[21,6,22,8],[21,9,21,10]]}
[]
[]
[]
[]
[null,null,null,null,null,null,"形式",null,null,null,null,"LDA4L-H-E17/S/40C"]
[]
[]
[]
[]
[]
[]
[]
[null,null,null,null,null,null,null,null,null,null,null,"オープン価格★　屋内用"]
[null,null,null,null,null,null," 光の広がり",null,null,null,null,"下方配光タイプ"]
[null,null,null,null,null,null," 光色",null,null,null,null,"電球色"]
[null,null,null,null,null,null," 全光束（lm）",null,null,null,null,440]
[null,"●小形電球40W形相当",null,null,null,null," 明るさの目安*1",null,null,null,null,"小形電球40W形相当"]
[null,"　 の明るさ",null,null,null,null," 定格消費電力（W）",null,null,null,null,4.4000000000000004]
[null,"●下方配光タイプ",null,null,null,null," エネルギー消費効率（lm/W）",null,null,null,null,{"$f":"ROUNDDOWN(L16/L18,1)","v":100}]
[null,"●電球ジャストサイズ",null,null,null,null," 質量（g）",null,null,null,null,35]
[null,"●断熱材施工器具対応",null,null,null,null," 定格寿命（時間）*2",null,null,null,null,40000]
[null,"●密閉形器具対応",null,null,null,null,"寸法\n（mm）",null,null,"外径",null,35]
[null,"●定格寿命40,000時間",null,null,null,null,null,null,null,"全長",null,67]
[null,null,null,null,null,null," 断熱材施工器具対応",null,null,null,null,"○（保護機能付き）※1"]
[null,null,null,null,null,null," 密閉形器具対応",null,null,null,null,"○（保護機能付き）※1"]
[null,null,null,null,null,null,"＊ 調光（明るさが調整できる）機能の付いた照明器具には使用できません（100％点灯でも使用不可）。"]
[null,null,null,null,null,null,"＊ 屋外では使用できません。"]
[null,"※1 器具内の温度や周囲温度が高くなると保護回路が働き電力を抑えるため、明るさが低下する場合があります。 "]
[]
[null,"小形電球とＬＥＤ電球の電気代の試算ができます。目安としてご活用ください。"]
[null,"　■試算条件を入力ください。"]
[null,null,"①使用灯数は？",null,null,null,null,null,null,null,1,null,null,"灯",null,null,"電力料金単価（税込）*3"]
[]
[null,null,"②年間使用日数は？",null,null,null,null,null,null,null,365,null,null,"日",null,null,null,22,null,"円/kWh"]
[]
[null,null,"③1日の点灯時間は？",null,null,null,null,null,null,null,6,null,null,"時間/日",null,null,"に設定しています。"]
[]
[null,null,"④年間点灯時間",null,null,null,null,null,null,null,{"$f":"K34*K36","v":2190},null,null,"時間/年",null,null,"＊ 任意に変更ができます。"]
[]
[null,null,"⑤ＬＥＤ電球の購入価格（税込）は？",null,null,null,null,null,null,null,null,null,null,"円/灯",null,"合計",{"$f":"K32*K40","v":0},null,null,"円"]
[null,null,null,"＊ イニシャルコストの回収期間を試算します。"]
[null,"　■試算結果"]
[null,"　●年間電気代*3",null,null,null,null,null,null,null,"年間電気代",null,null,null,null,null,null,null,null,null,"低減効果"]
[]
[null,null,"◆小形電球40W形",null,null,null,null,"約",{"$f":"0.036*K32*K34*K36*R34","v":1734.4799999999998},null,null,"円",null,null,null,null,null,null,null,"基準"]
[null,null,"　（40Wタイプ36Wで試算*4）"]
[]
[null,null,"◆ＬＥＤ電球40W形",null,null,null,null,"約",{"$f":"0.0044*K32*K34*K36*R34","v":211.99200000000002},null,null,"円",null,null,null,null,null,null,null,{"$f":"(I45-I48)/I45","v":0.87777777777777777}]
[null,null,"　（40Wタイプ4.4Wで試算*5）"]
[null,null,null,null,null,null,null,"小形電球40W形と比べ　約",{"$f":"I45-I48","v":1522.4879999999998},null,null,"円お得です！（年間電気代の差額）"]
[]
[null,"　●回収期間",null,null,null,null,null,"イニシャルコストを　約",{"$f":"IF(K40=0,\"\",ROUNDUP(K40*K32/(I45-I48),1))","v":""},null,null,"年で回収できます！"]
[null,null,null,"＊ イニシャルコストの回収期間は、ＬＥＤ電球の購入価格を年間電気代の差額で割り試算しています。"]
[null,null,null,"    試算条件によっては、「一般社団法人日本照明工業会ガイド111」 による適正交換時期や耐用の限度を超える場合が"]
[null,null,null,"    ありますが、寿命を保証するものではありませんので、予めご了承ください。"]
[]
[null,"＊1 明るさの目安は、JIS C 8158 : 2012 附属書B によります。"]
[null,"＊2 定格寿命は、LED単体で定められた温度設計に基づいて算出した設計寿命であり、使用環境・使用方法により寿命が異なります。"]
[null,"＊3 年間電気代は、電力料金22円/kWh（税込）で試算しています（一般社団法人日本照明工業会 技術資料114-1996による）。"]
[null,"＊4 当社小形電球40W形（KR100/110V36WW、定格消費電力36W、全光束460lm、定格寿命2,000時間）で試算。"]
[null,"＊5 当社LED電球40W形（LDA4L-H-E17/S/40C、定格消費電力4.4W、全光束440lm、定格寿命40,000時間）で試算。"]
[]
[]
[null,{"$f":"TOP!B61","v":"2017年 3月版"}]

{"sheet":"7LE11B","index":27,"n_rows":66,"n_cols":21,"rows_kept":66,"cut":false,"hidden":false,"merged":[[4,6,13,9],[4,10,4,13],[4,14,4,17],[4,18,4,22],[13,10,13,13],[13,14,13,17],[13,18,13,22],[14,10,14,13],[14,14,14,17],[14,18,14,22],[15,10,15,13],[15,14,15,17],[15,18,15,22],[16,1,16,5],[16,10,16,22],[17,1,17,5],[17,10,17,13],[17,14,17,17],[17,18,17,22],[21,6,21,9],[21,10,21,13],[21,14,21,17],[21,18,21,22],[18,1,18,5],[18,10,18,13],[18,14,18,17],[18,18,18,22],[19,10,19,22],[20,10,20,22],[31,6,31,22],[33,1,33,22],[35,10,35,12],[35,17,35,21],[23,10,23,22],[24,6,25,7],[24,8,24,9],[24,10,24,22],[25,8,25,9],[25,10,25,13],[25,14,25,17],[25,18,25,22],[22,10,22,22],[43,10,43,12],[43,17,43,19],[46,20,46,21],[48,2,48,6],[48,8,48,10],[48,20,48,21],[37,10,37,12],[37,18,37,19],[39,10,39,12],[39,17,39,21],[41,10,41,12],[41,17,41,21],[26,10,26,22],[27,10,27,22],[28,6,28,22],[51,2,51,6],[51,8,51,10],[51,20,51,21],[53,8,53,10],[55,8,55,10]]}
[]
[]
[]
[]
[null,null,null,null,null,null,"形式",null,null,null,"LDR7L-N-E11-F",null,null,null,"LDR7L-M-E11-F",null,null,null,"LDR7L-W-E11-F"]
[]
[]
[]
[]
[]
[]
[]
[]
[null,null,null,null,null,null,null,null,null,null,"オープン価格★　屋内用",null,null,null,"オープン価格★　屋内用",null,null,null,"オープン価格★　屋内用"]
[null,null,null,null,null,null," 光の広がり",null,null,null,"狭角タイプ",null,null,null,"中角タイプ",null,null,null,"広角タイプ"]
[null,null,null,null,null,null," ビームの開き（配光角）",null,null,null,"11°",null,null,null,"18°",null,null,null,"30°"]
[null,"●しっかり明るく きわだつ配光",null,null,null,null," 光色",null,null,null,"電球色"]
[null,"●最大光度3,500カンデラ",null,null,null,null," 全光束（lm）",null,null,null,580,null,null,null,600,null,null,null,640]
["　","　（中角タイプ）",null,null,null,null," 最大光度(cd)*1",null,null,null,6800,null,null,null,3500,null,null,null,1800]
[null,"●ハロゲン電球に近い大きさ",null,null,null,null," 平均演色評価数（Ra）",null,null,null,80]
[null,"●定格寿命40,000時間",null,null,null,null," 定格消費電力（W）",null,null,null,6.8]
[null,null,null,null,null,null,"エネルギー消費効率（lm/W）",null,null,null,{"$f":"ROUNDDOWN(K18/K21,1)","v":85.2},null,null,null,{"$f":"ROUNDDOWN(O18/K21,1)","v":88.2},null,null,null,{"$f":"ROUNDDOWN(S18/K21,1)","v":94.1}]
[null,null,null,null,null,null," 質量（g）",null,null,null,80]
[null,null,null,null,null,null," 定格寿命（時間）*2",null,null,null,40000]
[null,null,null,null,null,null,"寸法\n（mm）",null,"外径",null,50]
[null,null,null,null,null,null,null,null,"全長",null,66,null,null,null,65,null,null,null,65]
[null,null,null,null,null,null," 断熱材施工器具対応",null,null,null,"×"]
[null,null,null,null,null,null," 密閉形器具対応",null,null,null,"×"]
[null,null,null,null,null,null,"＊調光(明るさが調整できる)機能の付いた照明器具には使用できません(100％点灯でも使用不可)。"]
[null,null,null,null,null,null,"＊密閉形器具の種類によっては使用できない場合があります。"]
[null,null,null,null,null,null,"＊器具内の温度が高くなると保護回路が働き電力を抑えるため、明るさが低下する場合があります。"]
[null,null,null,null,null,null,"＊断熱材施工器具[SGI、SG、SB形表示器具]では使用できません。"]
[]
[null,"ハロゲン電球とＬＥＤ電球の電気代の試算ができます。目安としてご活用ください。"]
[null,"　■試算条件を入力ください。"]
[null,null,"①使用灯数は？",null,null,null,null,null,null,null,1,null,null,"灯",null,null,null,"電力料金単価（税込）*3"]
[]
[null,null,"②年間使用日数は？",null,null,null,null,null,null,null,250,null,null,"日",null,null,null,null,22,null,"円/kWh"]
[]
[null,null,"③1日の点灯時間は？",null,null,null,null,null,null,null,12,null,null,"時間/日",null,null,null,"に設定しています。"]
[]
[null,null,"④年間点灯時間",null,null,null,null,null,null,null,{"$f":"K38*K40","v":3000},null,null,"時間/年",null,null,null,"＊ 任意に変更ができます。"]
[]
[null,null,"⑤ＬＥＤ電球の購入価格（税込）は？",null,null,null,null,null,null,null,null,null,null,"円/灯",null,null,"合計",{"$f":"K36*K44","v":0},null,null,"円"]
[null,null,null,"＊ イニシャルコストの回収期間を試算します。"]
[null,"　■試算結果"]
[null,"　●年間電気代*3",null,null,null,null,null,null,null,"年間電気代",null,null,null,null,null,null,null,null,null,null,"低減効果"]
[]
[null,null,"◆ハロゲン電球60W形",null,null,null,null,"約",{"$f":"0.06*K36*K38*K40*S38","v":3960},null,null,"円",null,null,null,null,null,null,null,null,"基準"]
[null,null,"　（60Wタイプ60Wで試算*4）"]
[]
[null,null,"◆ＬＥＤ電球",null,null,null,null,"約",{"$f":"0.007*K36*K38*K40*S38","v":462},null,null,"円",null,null,null,null,null,null,null,null,{"$f":"(I49-I52)/I49","v":0.8833333333333333}]
[null,null,"　（7.0Wで試算*5）"]
[null,null,null,null,null,null,null,"ハロゲン電球60W形と比べ　約",{"$f":"I49-I52","v":3498},null,null,"円お得です！（年間電気代の差額）"]
[]
[null,"　●回収期間",null,null,null,null,null,"イニシャルコストを　約",{"$f":"IF(K44=0,\"\",ROUNDUP(K44*K36/(I49-I52),1))","v":""},null,null,"年で回収できます！"]
[null,null,null,"＊ イニシャルコストの回収期間は、ＬＥＤ電球の購入価格を年間電気代の差額で割り試算しています。"]
[null,null,null,"    試算条件によっては、「一般社団法人日本照明工業会ガイド111」 による適正交換時期や耐用の限度を超える場合が"]
[null,null,null,"    ありますが、寿命を保証するものではありませんので、予めご了承ください。"]
[]
[null,"＊1 全光束は同じでもビームの開きにより最大光度は異なります。用途に合わせた最大光度でお選びください。"]
[null,"＊2 定格寿命は、LED単体で定められた温度設計に基づいて算出した設計寿命であり、使用環境・使用方法により寿命が異なります。"]
[null,"＊3 年間電気代は、電力料金22円/kWh（税込）で試算しています（一般社団法人日本照明工業会 技術資料114-1996による）。"]
[null,"＊4 当社ハロゲン電球60W形（JDR110V60W/K5ME11、定格消費電力60W、定格寿命3,000時間）で試算。"]
[null,"＊5 当社LED電球（LDR7L-M-E11-B、定格消費電力7.0W、定格寿命40,000時間）で試算。"]
[null,{"$f":"TOP!B61","v":"2017年 3月版"}]

{"sheet":"5LE11D","index":28,"n_rows":66,"n_cols":21,"rows_kept":66,"cut":false,"hidden":false,"merged":[[18,1,18,5],[19,10,19,22],[20,10,20,22],[16,1,16,5],[16,10,16,22],[17,1,17,5],[21,6,21,9],[22,10,22,22],[23,10,23,22],[21,10,21,22],[4,6,13,9],[4,10,4,22],[13,10,13,22],[14,10,14,22],[15,10,15,22],[17,10,17,22],[18,10,18,22],[35,10,35,12],[35,17,35,21],[24,6,25,7],[24,8,24,9],[24,10,24,22],[25,8,25,9],[25,10,25,22],[26,10,26,22],[27,10,27,22],[28,6,28,22],[31,6,31,22],[33,1,33,22],[37,10,37,12],[37,18,37,19],[39,10,39,12],[39,17,39,21],[41,10,41,12],[41,17,41,21],[43,10,43,12],[43,17,43,19],[46,20,46,21],[48,2,48,6],[48,8,48,10],[48,20,48,21],[51,2,51,6],[51,8,51,10],[51,20,51,21],[53,8,53,10],[55,8,55,10]]}
[]
[]
[]
[]
[null,null,null,null,null,null,"形式",null,null,null,"LDR5L-M-E11/D/C"]
[]
[]
[]
[]
[]
[]
[]
[]
[null,null,null,null,null,null,null,null,null,null,"オープン価格★　屋内用"]
[null,null,null,null,null,null," 光の広がり",null,null,null,"中角タイプ"]
[null,null,null,null,null,null," ビームの開き（配光角）",null,null,null,"18°"]
[null,"●最大光度2,300カンデラ",null,null,null,null," 光色",null,null,null,"電球色"]
[null,"　 （中角タイプ）",null,null,null,null," 全光束（lm）",null,null,null,370]
[null,"●ハロゲン電球に近い大きさ",null,null,null,null," 最大光度(cd)*1",null,null,null,2300]
[null,"●ハロゲン電球のような",null,null,null,null," 平均演色評価数（Ra）",null,null,null,80]
[null,"　 光の広がり",null,null,null,null," 定格消費電力（W）",null,null,null,4.7]
[null,"●定格寿命40,000時間",null,null,null,null,"エネルギー消費効率（lm/W）",null,null,null,{"$f":"K18/K21","v":78.723404255319153}]
[null,null,null,null,null,null," 質量（g）",null,null,null,76]
[null,null,null,null,null,null," 定格寿命（時間）*2",null,null,null,40000]
[null,null,null,null,null,null,"寸法\n（mm）",null,"外径",null,50]
[null,null,null,null,null,null,null,null,"全長",null,65]
[null,null,null,null,null,null," 断熱材施工器具対応",null,null,null,"×"]
[null,null,null,null,null,null," 密閉形器具対応",null,null,null,"×"]
[null,null,null,null,null,null,"＊次のような調光器と組み合わせた場合、点灯しない場合や調光できない場合があります。"]
[null,null,null,null,null,null,"　 ［電球用以外の調光器具(蛍光ランプ用調光器など)、人感センサーつき調光器、段調光器、リモコン式調光器、"]
[null,null,null,null,null,null,"　 記憶式調光器、容量1,000W以上の調光器のついた器具など]調光器の種類によっては、ちらつくことがあります。"]
[null,null,null,null,null,null,"＊密閉形または密閉に近い器具(適合表示器具を除く)、断熱材施工器具や屋外では使用できません。"]
[]
[null,"ハロゲン電球とＬＥＤ電球の電気代の試算ができます。目安としてご活用ください。"]
[null,"　■試算条件を入力ください。"]
[null,null,"①使用灯数は？",null,null,null,null,null,null,null,1,null,null,"灯",null,null,null,"電力料金単価（税込）*3"]
[]
[null,null,"②年間使用日数は？",null,null,null,null,null,null,null,250,null,null,"日",null,null,null,null,22,null,"円/kWh"]
[]
[null,null,"③1日の点灯時間は？",null,null,null,null,null,null,null,12,null,null,"時間/日",null,null,null,"に設定しています。"]
[]
[null,null,"④年間点灯時間",null,null,null,null,null,null,null,{"$f":"K38*K40","v":3000},null,null,"時間/年",null,null,null,"＊ 任意に変更ができます。"]
[]
[null,null,"⑤ＬＥＤ電球の購入価格（税込）は？",null,null,null,null,null,null,null,null,null,null,"円/灯",null,null,"合計",{"$f":"K36*K44","v":0},null,null,"円"]
[null,null,null,"＊ イニシャルコストの回収期間を試算します。"]
[null,"　■試算結果"]
[null,"　●年間電気代*3",null,null,null,null,null,null,null,"年間電気代",null,null,null,null,null,null,null,null,null,null,"低減効果"]
[]
[null,null,"◆ハロゲン電球40W形",null,null,null,null,"約",{"$f":"0.04*K36*K38*K40*S38","v":2640},null,null,"円",null,null,null,null,null,null,null,null,"基準"]
[null,null,"　（40Wタイプ40Wで試算*4）"]
[]
[null,null,"◆ＬＥＤ電球",null,null,null,null,"約",{"$f":"0.0047*K36*K38*K40*S38","v":310.20000000000005},null,null,"円",null,null,null,null,null,null,null,null,{"$f":"(I49-I52)/I49","v":0.88250000000000006}]
[null,null,"　（4.7Wで試算*5）"]
[null,null,null,null,null,null,null,"ハロゲン電球60W形と比べ　約",{"$f":"I49-I52","v":2329.8000000000002},null,null,"円お得です！（年間電気代の差額）"]
[]
[null,"　●回収期間",null,null,null,null,null,"イニシャルコストを　約",{"$f":"IF(K44=0,\"\",ROUNDUP(K44*K36/(I49-I52),1))","v":""},null,null,"年で回収できます！"]
[null,null,null,"＊ イニシャルコストの回収期間は、ＬＥＤ電球の購入価格を年間電気代の差額で割り試算しています。"]
[null,null,null,"    試算条件によっては、「一般社団法人日本照明工業会ガイド111」 による適正交換時期や耐用の限度を超える場合が"]
[null,null,null,"    ありますが、寿命を保証するものではありませんので、予めご了承ください。"]
[]
[null,"＊1 全光束は同じでもビームの開きにより最大光度は異なります。用途に合わせた最大光度でお選びください。"]
[null,"＊2 定格寿命は、LED単体で定められた温度設計に基づいて算出した設計寿命であり、使用環境・使用方法により寿命が異なります。"]
[null,"＊3 年間電気代は、電力料金22円/kWh（税込）で試算しています（一般社団法人日本照明工業会 技術資料114-1996による）。"]
[null,"＊4 当社ハロゲン電球40W形（JDR110V40W/K5ME11、定格消費電力40W、定格寿命3,000時間）で試算。"]
[null,"＊5 当社LED電球（LDR5L-M-E11/D/C、定格消費電力4.7W、定格寿命40,000時間）で試算。"]
[null,{"$f":"TOP!B61","v":"2017年 3月版"}]

{"sheet":"14LW150C","index":29,"n_rows":66,"n_cols":21,"rows_kept":66,"cut":false,"hidden":false,"merged":[[16,1,16,5],[4,14,4,17],[4,10,4,13],[4,18,4,22],[14,18,14,22],[14,14,14,17],[14,10,14,13],[15,10,15,13],[16,18,16,22],[4,6,13,9],[13,10,13,22],[15,14,15,17],[16,10,16,13],[16,14,16,17],[15,18,15,22],[17,10,17,13],[17,14,17,17],[17,18,17,22],[18,10,18,13],[18,14,18,17],[18,18,18,22],[17,1,17,5],[18,1,18,5],[35,10,35,12],[35,17,35,21],[21,6,21,9],[22,10,22,22],[23,10,23,22],[24,6,25,7],[24,8,24,9],[24,10,24,22],[25,8,25,9],[25,10,25,22],[26,10,26,21],[27,10,27,21],[28,6,28,22],[31,6,31,22],[51,2,51,6],[51,8,51,10],[51,20,51,21],[37,10,37,12],[37,18,37,19],[48,2,48,6],[39,10,39,12],[39,17,39,21],[41,10,41,12],[41,17,41,21],[53,8,53,10],[55,8,55,10],[43,10,43,12],[43,17,43,19],[46,20,46,21],[48,8,48,10],[48,20,48,21],[19,18,19,22],[19,14,19,17],[33,1,33,22],[19,10,19,13],[20,10,20,13],[20,14,20,17],[20,18,20,22],[21,10,21,13],[21,14,21,17],[21,18,21,22]]}
[]
[]
[]
[]
[null,null,null,null,null,null,"形式",null,null,null,"LDR14D-H/F",null,null,null,"LDR14D-W/150E",null,null,null,"LDR14L-W/150C"]
[]
[]
[]
[]
[]
[]
[]
[]
[null,null,null,null,null,null,null,null,null,null,"オープン価格★（昼光色は無地箱となります）"]
[null,null,null,null,null,null," 光の広がり",null,null,null,"特広角タイプ",null,null,null,"広角タイプ",null,null,null,"広角タイプ"]
[null,null,null,null,null,null," ビームの開き（配光角）",null,null,null,"110°",null,null,null,"30°",null,null,null,"30°"]
[null,"●ビーム電球150W相当",null,null,null,null," 光色",null,null,null,"昼光色",null,null,null,"昼光色",null,null,null,"電球色"]
[null,"●防雨対応で屋外の看板",null,null,null,null," 全光束（lm）",null,null,null,1800,null,null,null,1850,null,null,null,1550]
[null,"　 等にもおすすめ",null,null,null,null," 最大光度(cd)*1",null,null,null,600,null,null,null,4100,null,null,null,3300]
[null,"●ビーム電球同等サイズ",null,null,null,null," 平均演色評価数（Ra）",null,null,null,70,null,null,null,70,null,null,null,80]
[null,"●定格寿命40,000時間",null,null,null,null," 定格消費電力（W）",null,null,null,14.4,null,null,null,14.4,null,null,null,14.4]
[null,null,null,null,null,null,"エネルギー消費効率（lm/W）",null,null,null,{"$f":"ROUNDDOWN(K18/K21,1)","v":125},null,null,null,{"$f":"ROUNDDOWN(O18/O21,1)","v":128.4},null,null,null,{"$f":"ROUNDDOWN(S18/S21,1)","v":107.6}]
[null,null,null,null,null,null," 質量（g）",null,null,null,325]
[null,null,null,null,null,null," 定格寿命（時間）*2",null,null,null,40000]
[null,null,null,null,null,null,"寸法\n（mm）",null,"外径",null,121]
[null,null,null,null,null,null,null,null,"全長",null,132]
[null,null,null,null,null,null," 断熱材施工器具対応",null,null,null,"×"]
[null,null,null,null,null,null," 密閉形器具対応",null,null,null,"×"]
[null,null,null,null,null,null,"＊調光(明るさが調整できる)機能の付いた照明器具には使用できません(100％点灯でも使用不可)。"]
[null,null,null,null,null,null,"＊密閉形または密閉に近い器具(適合表示器具を除く)、断熱材施工器具では使用できません。"]
[null,null,null,null,null,null,"＊屋外、雨や水滴のかかる状態や、湿度の高いところで使用する場合は、防水・防雨形の"]
[null,null,null,null,null,null,"　ビームランプ専用器具をご使用下さい。"]
[]
[null,"ハロゲン電球とＬＥＤ電球の電気代の試算ができます。目安としてご活用ください。"]
[null,"　■試算条件を入力ください。"]
[null,null,"①使用灯数は？",null,null,null,null,null,null,null,1,null,null,"灯",null,null,null,"電力料金単価（税込）*3"]
[]
[null,null,"②年間使用日数は？",null,null,null,null,null,null,null,250,null,null,"日",null,null,null,null,22,null,"円/kWh"]
[]
[null,null,"③1日の点灯時間は？",null,null,null,null,null,null,null,12,null,null,"時間/日",null,null,null,"に設定しています。"]
[]
[null,null,"④年間点灯時間",null,null,null,null,null,null,null,{"$f":"K38*K40","v":3000},null,null,"時間/年",null,null,null,"＊ 任意に変更ができます。"]
[]
[null,null,"⑤ＬＥＤ電球の購入価格（税込）は？",null,null,null,null,null,null,null,null,null,null,"円/灯",null,null,"合計",{"$f":"K36*K44","v":0},null,null,"円"]
[null,null,null,"＊ イニシャルコストの回収期間を試算します。"]
[null,"　■試算結果"]
[null,"　●年間電気代*3",null,null,null,null,null,null,null,"年間電気代",null,null,null,null,null,null,null,null,null,null,"低減効果"]
[]
[null,null,"◆ビーム電球125W形",null,null,null,null,"約",{"$f":"0.125*K36*K38*K40*S38","v":8250},null,null,"円",null,null,null,null,null,null,null,null,"基準"]
[null,null,"　（125Wタイプ125Wで試算*4）"]
[]
[null,null,"◆ＬＥＤ電球",null,null,null,null,"約",{"$f":"$K$21*K36*K38*K40*S38/1000","v":950.4},null,null,"円",null,null,null,null,null,null,null,null,{"$f":"(I49-I52)/I49","v":0.88480000000000003}]
[null,null,"　（14.4Wで試算*5）"]
[null,null,null,null,null,null,null,"ビーム電球125W形と比べ　約",{"$f":"I49-I52","v":7299.6},null,null,"円お得です！（年間電気代の差額）"]
[]
[null,"　●回収期間",null,null,null,null,null,"イニシャルコストを　約",{"$f":"IF(K44=0,\"\",ROUNDUP(K44*K36/(I49-I52),1))","v":""},null,null,"年で回収できます！"]
[null,null,null,"＊ イニシャルコストの回収期間は、ＬＥＤ電球の購入価格を年間電気代の差額で割り試算しています。"]
[null,null,null,"    試算条件によっては、「一般社団法人日本照明工業会ガイド111」 による適正交換時期や耐用の限度を超える場合が"]
[null,null,null,"    ありますが、寿命を保証するものではありませんので、予めご了承ください。"]
[]
[null,"＊1 全光束は同じでもビームの開きにより最大光度は異なります。用途に合わせた最大光度でお選びください。"]
[null,"＊2 定格寿命は、LED単体で定められた温度設計に基づいて算出した設計寿命であり、使用環境・使用方法により寿命が異なります。"]
[null,"＊3 年間電気代は、電力料金22円/kWh（税込）で試算しています（一般社団法人日本照明工業会 技術資料114-1996による）。"]
[null,"＊4 当社ビーム電球125W形（CRF110V125W/M、定格消費電力125W、定格寿命2,000時間）で試算(2013年9月販売終了)。"]
[null,"＊5 当社ﾋﾞｰﾑ電球150W相当LED電球（定格消費電力14.4W、定格寿命40,000時間）で試算。"]
[null,{"$f":"TOP!B61","v":"2017年 3月版"}]

{"sheet":"7DW100E","index":30,"n_rows":64,"n_cols":21,"rows_kept":64,"cut":false,"hidden":false,"merged":[[16,1,16,5],[16,10,16,22],[20,10,20,22],[4,6,13,9],[4,10,4,22],[13,10,13,22],[14,10,14,22],[15,10,15,22],[17,1,17,5],[17,10,17,22],[18,1,18,5],[18,10,18,22],[19,10,19,22],[33,10,33,12],[33,17,33,21],[21,6,21,9],[21,10,21,22],[22,10,22,22],[23,10,23,22],[24,6,25,7],[24,8,24,9],[24,10,24,22],[25,8,25,9],[25,10,25,22],[26,10,26,22],[27,10,27,22],[28,6,28,22],[29,6,29,22],[31,1,31,22],[35,10,35,12],[35,18,35,19],[37,10,37,12],[37,17,37,21],[39,10,39,12],[39,17,39,21],[41,10,41,12],[41,17,41,19],[44,20,44,21],[46,2,46,6],[46,8,46,10],[46,20,46,21],[49,2,49,6],[49,8,49,10],[49,20,49,21],[51,8,51,10],[53,8,53,10]]}
[]
[]
[]
[]
[null,null,null,null,null,null,"形式",null,null,null,"LDR7D-W/100E"]
[]
[]
[]
[]
[]
[]
[]
[]
[null,null,null,null,null,null,null,null,null,null,"オープン価格★"]
[null,null,null,null,null,null," 光の広がり",null,null,null,"広角タイプ"]
[null,null,null,null,null,null," ビームの開き（配光角）",null,null,null,"30°"]
[null,"●ビーム電球100W相当",null,null,null,null," 光色",null,null,null,"昼光色"]
[null,"●ビーム電球のような",null,null,null,null," 全光束（lm）",null,null,null,950]
[null,"　 光の広がり",null,null,null,null," 最大光度(cd)*1",null,null,null,1950]
[null,"●ビーム電球同等サイズ",null,null,null,null," 平均演色評価数（Ra）",null,null,null,70]
[null,"●定格寿命40,000時間",null,null,null,null," 定格消費電力（W）",null,null,null,7.3]
[null,null,null,null,null,null,"エネルギー消費効率（lm/W）",null,null,null,{"$f":"ROUNDDOWN(K18/K21,1)","v":130.1}]
[null,null,null,null,null,null," 質量（g）",null,null,null,325]
[null,null,null,null,null,null," 定格寿命（時間）*2",null,null,null,40000]
[null,null,null,null,null,null,"寸法\n（mm）",null,"外径",null,121]
[null,null,null,null,null,null,null,null,"全長",null,132]
[null,null,null,null,null,null," 断熱材施工器具対応",null,null,null,"×"]
[null,null,null,null,null,null," 密閉形器具対応",null,null,null,"×"]
[null,null,null,null,null,null,"＊調光(明るさが調整できる)機能の付いた照明器具には使用できません(100％点灯でも使用不可)。"]
[null,null,null,null,null,null,"＊密閉形または密閉に近い器具(適合表示器具を除く)、断熱材施工器具や屋外では使用できません。"]
[]
[null,"ハロゲン電球とＬＥＤ電球の電気代の試算ができます。目安としてご活用ください。"]
[null,"　■試算条件を入力ください。"]
[null,null,"①使用灯数は？",null,null,null,null,null,null,null,1,null,null,"灯",null,null,null,"電力料金単価（税込）*3"]
[]
[null,null,"②年間使用日数は？",null,null,null,null,null,null,null,250,null,null,"日",null,null,null,null,22,null,"円/kWh"]
[]
[null,null,"③1日の点灯時間は？",null,null,null,null,null,null,null,12,null,null,"時間/日",null,null,null,"に設定しています。"]
[]
[null,null,"④年間点灯時間",null,null,null,null,null,null,null,{"$f":"K36*K38","v":3000},null,null,"時間/年",null,null,null,"＊ 任意に変更ができます。"]
[]
[null,null,"⑤ＬＥＤ電球の購入価格（税込）は？",null,null,null,null,null,null,null,null,null,null,"円/灯",null,null,"合計",{"$f":"K34*K42","v":0},null,null,"円"]
[null,null,null,"＊ イニシャルコストの回収期間を試算します。"]
[null,"　■試算結果"]
[null,"　●年間電気代*3",null,null,null,null,null,null,null,"年間電気代",null,null,null,null,null,null,null,null,null,null,"低減効果"]
[]
[null,null,"◆ビーム電球85W形",null,null,null,null,"約",{"$f":"0.085*K34*K36*K38*S36","v":5610},null,null,"円",null,null,null,null,null,null,null,null,"基準"]
[null,null,"　（85Wタイプ85Wで試算*4）"]
[]
[null,null,"◆ＬＥＤ電球",null,null,null,null,"約",{"$f":"$K$21*K34*K36*K38*S36/1000","v":481.8},null,null,"円",null,null,null,null,null,null,null,null,{"$f":"(I47-I50)/I47","v":0.91411764705882348}]
[null,null,"　(7.3Wで試算*5）"]
[null,null,null,null,null,null,null,"ビーム電球85W形と比べ　約",{"$f":"I47-I50","v":5128.2},null,null,"円お得です！（年間電気代の差額）"]
[]
[null,"　●回収期間",null,null,null,null,null,"イニシャルコストを　約",{"$f":"IF(K42=0,\"\",ROUNDUP(K42*K34/(I47-I50),1))","v":""},null,null,"年で回収できます！"]
[null,null,null,"＊ イニシャルコストの回収期間は、ＬＥＤ電球の購入価格を年間電気代の差額で割り試算しています。"]
[null,null,null,"    試算条件によっては、「一般社団法人日本照明工業会ガイド111」 による適正交換時期や耐用の限度を超える場合が"]
[null,null,null,"    ありますが、寿命を保証するものではありませんので、予めご了承ください。"]
[]
[null,"＊1 全光束は同じでもビームの開きにより最大光度は異なります。用途に合わせた最大光度でお選びください。"]
[null,"＊2 定格寿命は、LED単体で定められた温度設計に基づいて算出した設計寿命であり、使用環境・使用方法により寿命が異なります。"]
[null,"＊3 年間電気代は、電力料金22円/kWh（税込）で試算しています（一般社団法人日本照明工業会 技術資料114-1996による）。"]
[null,"＊4 当社ビーム電球85W形（CRF110V85W/M、定格消費電力85W、定格寿命2,000時間）で試算(2013年9月販売終了)。"]
[null,"＊5 当社LED電球（LDR7D-W/100E、定格消費電力7.3W、定格寿命40,000時間）で試算。"]
[null,{"$f":"TOP!B61","v":"2017年 3月版"}]

{"sheet":"11LW100C","index":31,"n_rows":64,"n_cols":21,"rows_kept":64,"cut":false,"hidden":false,"merged":[[16,1,16,5],[16,10,16,22],[20,10,20,22],[4,6,13,9],[4,10,4,22],[13,10,13,22],[14,10,14,22],[15,10,15,22],[17,1,17,5],[17,10,17,22],[18,1,18,5],[18,10,18,22],[19,10,19,22],[33,10,33,12],[33,17,33,21],[21,6,21,9],[21,10,21,22],[22,10,22,22],[23,10,23,22],[24,6,25,7],[24,8,24,9],[24,10,24,22],[25,8,25,9],[25,10,25,22],[26,10,26,22],[27,10,27,22],[28,6,28,22],[29,6,29,22],[31,1,31,22],[35,10,35,12],[35,18,35,19],[37,10,37,12],[37,17,37,21],[39,10,39,12],[39,17,39,21],[41,10,41,12],[41,17,41,19],[44,20,44,21],[46,2,46,6],[46,8,46,10],[46,20,46,21],[49,2,49,6],[49,8,49,10],[49,20,49,21],[51,8,51,10],[53,8,53,10]]}
[]
[]
[]
[]
[null,null,null,null,null,null,"形式",null,null,null,"LDR11L-W/100C"]
[]
[]
[]
[]
[]
[]
[]
[]
[null,null,null,null,null,null,null,null,null,null,"オープン価格★"]
[null,null,null,null,null,null," 光の広がり",null,null,null,"広角タイプ"]
[null,null,null,null,null,null," ビームの開き（配光角）",null,null,null,"30°"]
[null,"●ビーム電球100W相当",null,null,null,null," 光色",null,null,null,"電球色"]
[null,"●ビーム電球のような",null,null,null,null," 全光束（lm）",null,null,null,1100]
[null,"　 光の広がり",null,null,null,null," 最大光度(cd)*1",null,null,null,2200]
[null,"●ビーム電球同等サイズ",null,null,null,null," 平均演色評価数（Ra）",null,null,null,80]
[null,"●定格寿命40,000時間",null,null,null,null," 定格消費電力（W）",null,null,null,11]
[null,null,null,null,null,null,"エネルギー消費効率（lm/W）",null,null,null,{"$f":"ROUNDDOWN(K18/K21,1)","v":100}]
[null,null,null,null,null,null," 質量（g）",null,null,null,325]
[null,null,null,null,null,null," 定格寿命（時間）*2",null,null,null,40000]
[null,null,null,null,null,null,"寸法\n（mm）",null,"外径",null,121]
[null,null,null,null,null,null,null,null,"全長",null,132]
[null,null,null,null,null,null," 断熱材施工器具対応",null,null,null,"×"]
[null,null,null,null,null,null," 密閉形器具対応",null,null,null,"×"]
[null,null,null,null,null,null,"＊調光(明るさが調整できる)機能の付いた照明器具には使用できません(100％点灯でも使用不可)。"]
[null,null,null,null,null,null,"＊密閉形または密閉に近い器具(適合表示器具を除く)、断熱材施工器具や屋外では使用できません。"]
[]
[null,"ハロゲン電球とＬＥＤ電球の電気代の試算ができます。目安としてご活用ください。"]
[null,"　■試算条件を入力ください。"]
[null,null,"①使用灯数は？",null,null,null,null,null,null,null,2,null,null,"灯",null,null,null,"電力料金単価（税込）*3"]
[]
[null,null,"②年間使用日数は？",null,null,null,null,null,null,null,250,null,null,"日",null,null,null,null,22,null,"円/kWh"]
[]
[null,null,"③1日の点灯時間は？",null,null,null,null,null,null,null,12,null,null,"時間/日",null,null,null,"に設定しています。"]
[]
[null,null,"④年間点灯時間",null,null,null,null,null,null,null,{"$f":"K36*K38","v":3000},null,null,"時間/年",null,null,null,"＊ 任意に変更ができます。"]
[]
[null,null,"⑤ＬＥＤ電球の購入価格（税込）は？",null,null,null,null,null,null,null,null,null,null,"円/灯",null,null,"合計",{"$f":"K34*K42","v":0},null,null,"円"]
[null,null,null,"＊ イニシャルコストの回収期間を試算します。"]
[null,"　■試算結果"]
[null,"　●年間電気代*3",null,null,null,null,null,null,null,"年間電気代",null,null,null,null,null,null,null,null,null,null,"低減効果"]
[]
[null,null,"◆ビーム電球85W形",null,null,null,null,"約",{"$f":"0.085*K34*K36*K38*S36","v":11220},null,null,"円",null,null,null,null,null,null,null,null,"基準"]
[null,null,"　（85Wタイプ85Wで試算*4）"]
[]
[null,null,"◆ＬＥＤ電球",null,null,null,null,"約",{"$f":"$K$21*K34*K36*K38*S36/1000","v":1452},null,null,"円",null,null,null,null,null,null,null,null,{"$f":"(I47-I50)/I47","v":0.87058823529411766}]
[null,null,"　（11.0Wで試算*5）"]
[null,null,null,null,null,null,null,"ビーム電球85W形と比べ　約",{"$f":"I47-I50","v":9768},null,null,"円お得です！（年間電気代の差額）"]
[]
[null,"　●回収期間",null,null,null,null,null,"イニシャルコストを　約",{"$f":"IF(K42=0,\"\",ROUNDUP(K42*K34/(I47-I50),1))","v":""},null,null,"年で回収できます！"]
[null,null,null,"＊ イニシャルコストの回収期間は、ＬＥＤ電球の購入価格を年間電気代の差額で割り試算しています。"]
[null,null,null,"    試算条件によっては、「一般社団法人日本照明工業会ガイド111」 による適正交換時期や耐用の限度を超える場合が"]
[null,null,null,"    ありますが、寿命を保証するものではありませんので、予めご了承ください。"]
[]
[null,"＊1 全光束は同じでもビームの開きにより最大光度は異なります。用途に合わせた最大光度でお選びください。"]
[null,"＊2 定格寿命は、LED単体で定められた温度設計に基づいて算出した設計寿命であり、使用環境・使用方法により寿命が異なります。"]
[null,"＊3 年間電気代は、電力料金22円/kWh（税込）で試算しています（一般社団法人日本照明工業会 技術資料114-1996による）。"]
[null,"＊4 当社ビーム電球85W形（CRF110V85W/M、定格消費電力85W、定格寿命2,000時間）で試算(2013年9月販売終了)。"]
[null,"＊5 当社LED電球（LDR11L-W/100C、定格消費電力11.0W、定格寿命40,000時間）で試算。"]
[null,{"$f":"TOP!B61","v":"2017年 3月版"}]

{"sheet":"7LW75C","index":32,"n_rows":64,"n_cols":21,"rows_kept":64,"cut":false,"hidden":false,"merged":[[46,2,46,6],[46,8,46,10],[49,2,49,6],[49,8,49,10],[49,20,49,21],[51,8,51,10],[53,8,53,10],[33,10,33,12],[33,17,33,21],[46,20,46,21],[35,10,35,12],[35,18,35,19],[37,10,37,12],[37,17,37,21],[39,10,39,12],[39,17,39,21],[41,10,41,12],[41,17,41,19],[44,20,44,21],[26,10,26,22],[27,10,27,22],[28,6,28,22],[29,6,29,22],[31,1,31,22],[21,6,21,9],[21,10,21,22],[22,10,22,22],[23,10,23,22],[24,6,25,7],[24,8,24,9],[24,10,24,22],[25,8,25,9],[25,10,25,22],[16,1,16,5],[16,10,16,22],[17,1,17,5],[17,10,17,22],[18,1,18,5],[18,10,18,22],[20,10,20,22],[4,6,13,9],[4,10,4,22],[13,10,13,22],[14,10,14,22],[15,10,15,22],[19,10,19,22]]}
[]
[]
[]
[]
[null,null,null,null,null,null,"形式",null,null,null,"LDR7L-W/75C"]
[]
[]
[]
[]
[]
[]
[]
[]
[null,null,null,null,null,null,null,null,null,null,"オープン価格★"]
[null,null,null,null,null,null," 光の広がり",null,null,null,"広角タイプ"]
[null,null,null,null,null,null," ビームの開き（配光角）",null,null,null,"30°"]
[null,"●ビーム電球75W相当",null,null,null,null," 光色",null,null,null,"電球色"]
[null,"●ビーム電球のような",null,null,null,null," 全光束（lm）",null,null,null,800]
[null,"　 光の広がり",null,null,null,null," 最大光度(cd)*1",null,null,null,1500]
[null,"●ビーム電球同等サイズ",null,null,null,null," 平均演色評価数（Ra）",null,null,null,80]
[null,"●定格寿命40,000時間",null,null,null,null," 定格消費電力（W）",null,null,null,7.3]
[null,null,null,null,null,null,"エネルギー消費効率（lm/W）",null,null,null,109.5]
[null,null,null,null,null,null," 質量（g）",null,null,null,325]
[null,null,null,null,null,null," 定格寿命（時間）*2",null,null,null,40000]
[null,null,null,null,null,null,"寸法\n（mm）",null,"外径",null,121]
[null,null,null,null,null,null,null,null,"全長",null,132]
[null,null,null,null,null,null," 断熱材施工器具対応",null,null,null,"×"]
[null,null,null,null,null,null," 密閉形器具対応",null,null,null,"×"]
[null,null,null,null,null,null,"＊調光(明るさが調整できる)機能の付いた照明器具には使用できません(100％点灯でも使用不可)。"]
[null,null,null,null,null,null,"＊密閉形または密閉に近い器具(適合表示器具を除く)、断熱材施工器具や屋外では使用できません。"]
[]
[null,"ハロゲン電球とＬＥＤ電球の電気代の試算ができます。目安としてご活用ください。"]
[null,"　■試算条件を入力ください。"]
[null,null,"①使用灯数は？",null,null,null,null,null,null,null,1,null,null,"灯",null,null,null,"電力料金単価（税込）*3"]
[]
[null,null,"②年間使用日数は？",null,null,null,null,null,null,null,250,null,null,"日",null,null,null,null,22,null,"円/kWh"]
[]
[null,null,"③1日の点灯時間は？",null,null,null,null,null,null,null,12,null,null,"時間/日",null,null,null,"に設定しています。"]
[]
[null,null,"④年間点灯時間",null,null,null,null,null,null,null,{"$f":"K36*K38","v":3000},null,null,"時間/年",null,null,null,"＊ 任意に変更ができます。"]
[]
[null,null,"⑤ＬＥＤ電球の購入価格（税込）は？",null,null,null,null,null,null,null,null,null,null,"円/灯",null,null,"合計",{"$f":"K34*K42","v":0},null,null,"円"]
[null,null,null,"＊ イニシャルコストの回収期間を試算します。"]
[null,"　■試算結果"]
[null,"　●年間電気代*3",null,null,null,null,null,null,null,"年間電気代",null,null,null,null,null,null,null,null,null,null,"低減効果"]
[]
[null,null,"◆ビーム電球65W形",null,null,null,null,"約",{"$f":"0.065*K34*K36*K38*S36","v":4290},null,null,"円",null,null,null,null,null,null,null,null,"基準"]
[null,null,"　（65Wタイプ65Wで試算*4）"]
[]
[null,null,"◆ＬＥＤ電球",null,null,null,null,"約",{"$f":"$K$21*K34*K36*K38*S36/1000","v":481.8},null,null,"円",null,null,null,null,null,null,null,null,{"$f":"(I47-I50)/I47","v":0.88769230769230767}]
[null,null,"　（7.3Wで試算*5）"]
[null,null,null,null,null,null,null,"ビーム電球65W形と比べ　約",{"$f":"I47-I50","v":3808.2},null,null,"円お得です！（年間電気代の差額）"]
[]
[null,"　●回収期間",null,null,null,null,null,"イニシャルコストを　約",{"$f":"IF(K42=0,\"\",ROUNDUP(K42*K34/(I47-I50),1))","v":""},null,null,"年で回収できます！"]
[null,null,null,"＊ イニシャルコストの回収期間は、ＬＥＤ電球の購入価格を年間電気代の差額で割り試算しています。"]
[null,null,null,"    試算条件によっては、「一般社団法人日本照明工業会ガイド111」 による適正交換時期や耐用の限度を超える場合が"]
[null,null,null,"    ありますが、寿命を保証するものではありませんので、予めご了承ください。"]
[]
[null,"＊1 全光束は同じでもビームの開きにより最大光度は異なります。用途に合わせた最大光度でお選びください。"]
[null,"＊2 定格寿命は、LED単体で定められた温度設計に基づいて算出した設計寿命であり、使用環境・使用方法により寿命が異なります。"]
[null,"＊3 年間電気代は、電力料金22円/kWh（税込）で試算しています（一般社団法人日本照明工業会 技術資料114-1996による）。"]
[null,"＊4 当社ビーム電球65W形（CRF110V65W/M、定格消費電力65W、定格寿命2,000時間）で試算(2013年9月販売終了)。"]
[null,"＊5 当社LED電球（LDR7L-W/75C、定格消費電力7.3W、定格寿命40,000時間）で試算。"]
[null,{"$f":"TOP!B61","v":"2017年 3月版"}]